Local authority department which incurred the expenditure,Service Division,Cost Centre,Summary of the Purpose of Expenditure,Expense Type,Expense Code,Detailed Expense Type,Date of Transaction,Transaction Number,Beneficiary,Merchant Category Number,Merchant Category,Gross Amount,VAT,Net Amount
Regeneration and Local Services,Economic Development and Housing,030708,VCD - Marketing & Information,Supplies and Services,304999,Equipment and Materials,01-Dec-2018,000008091132067,MAILCHIMP MONTHLY,5968,Misc equipment tools and materials,237.46,0.00,237.46
Regeneration and Local Services,Economic Development and Housing,030699,Business Growth and Innovation General,Supplies and Services,304999,Equipment and Materials,01-Dec-2018,000008091132173,LINKEDIN-347 3435756,5968,Misc equipment tools and materials,3.17,0.00,3.17
Children and Young Peoples Services,Head of Childrens Social Care,085333,Coxhoe Satelite Home,Supplies and Services,384871,Miscellaneous Expenses,01-Dec-2018,000008091132485,THEALCHEMIST.UK.CO,5812,Training-other activities,63.25,0.00,63.25
Children and Young Peoples Services,Childrens Services Operational Support,052986,CYPS - Locality and Operational Support,Supplies and Services,328041,Clothing uniforms and laundry E328,01-Dec-2018,000008091132779,THE WORKS,5310,Clothing uniforms and laundry,6.20,1.03,5.17
Children and Young Peoples Services,Head of Childrens Social Care,085352,Tow Law CU,Supplies and Services,312011,Newspapers books and periodicals E312,01-Dec-2018,000008091132823,HOME BARGAINS,5251,Books-school library,11.16,1.86,9.30
Children and Young Peoples Services,Head of Childrens Social Care,085352,Tow Law CU,Supplies and Services,324117,Provisions E324,01-Dec-2018,000008091132849,TESCO STORES 6329,5411,Catering costs - provisions,19.36,0.00,19.36
Children and Young Peoples Services,Childrens Services Operational Support,052986,CYPS - Locality and Operational Support,Supplies and Services,324117,Provisions E324,01-Dec-2018,000008091133297,ASDA STORES,5411,Catering costs - provisions,54.09,0.00,54.09
Children and Young Peoples Services,"Head of Early Help, Inclusion and Vulnerable Children",085954,Walworth,Supplies and Services,324117,Provisions E324,01-Dec-2018,000008091133669,TESCO STORES 6329,5411,Catering costs - provisions,116.79,0.00,116.79
Children and Young Peoples Services,Head of Childrens Social Care,085334,West Rainton Satelite Home,Supplies and Services,348037,Subsistence E348,01-Dec-2018,000008091134235,KFC DURHAM,5814,Subsistence,32.45,0.00,32.45
Children and Young Peoples Services,Head of Childrens Social Care,085334,West Rainton Satelite Home,Supplies and Services,328041,Clothing uniforms and laundry E328,01-Dec-2018,000008091134241,PAYPAL WUXIAOJING,5311,Clothing uniforms and laundry,8.79,0.00,8.79
Children and Young Peoples Services,Head of Childrens Social Care,085334,West Rainton Satelite Home,Supplies and Services,304999,Equipment and Materials,01-Dec-2018,000008091134243,INFINITE AIR,7991,Misc equipment tools and materials,50.85,0.00,50.85
Children and Young Peoples Services,Head of Childrens Social Care,085334,West Rainton Satelite Home,Supplies and Services,304259,Equipment and Materials,01-Dec-2018,000008091134245,SPORTSDIRECT 264,5941,Equipment-purchase and rental,64.99,0.00,64.99
Resources,Resources Management,069000,Resources Management,Supplies and Services,324117,Provisions E324,01-Dec-2018,000008091134305,CO-OP GROUP 010830,5411,Catering costs - provisions,2.20,0.00,2.20
Resources,Digital and Customer Services,069010,Administration,Supplies and Services,336005,Advertising E336,01-Dec-2018,000008091135613,FACEBK NZRYPG64B2,7311,Advertising other than for staff,84.13,0.00,84.13
Regeneration and Local Services,Economic Development and Housing,030699,Business Growth and Innovation General,Supplies and Services,304403,Equipment and Materials,02-Dec-2018,000008091132167,ADOBE CREATIVE CLOUD,5734,Other consumables,49.94,8.32,41.62
Regeneration and Local Services,Economic Development and Housing,030699,Business Growth and Innovation General,Supplies and Services,312011,Newspapers books and periodicals E312,02-Dec-2018,000008091132177,FASTHOSTS INTERNET,4816,Books-school library,59.99,10.00,49.99
Children and Young Peoples Services,Head of Childrens Social Care,085333,Coxhoe Satelite Home,Supplies and Services,324117,Provisions E324,02-Dec-2018,000008091133105,CO-OP GROUP 310016,5411,Catering costs - provisions,11.65,0.00,11.65
Children and Young Peoples Services,Head of Education and Skills,071732,Dean Bank Childcare,Supplies and Services,324117,Provisions E324,02-Dec-2018,000008091133375,SAINSBURYS SACAT (2303,5411,Catering costs - provisions,33.00,0.00,33.00
Regeneration and Local Services,Culture & Sport,054813,Gala Theatre - Technical,Supplies and Services,304403,Equipment and Materials,02-Dec-2018,000008091133389,AMZ SourceDIY,5999,Other consumables,-9.00,0.00,-9.00
Children and Young Peoples Services,Head of Childrens Social Care,085342,9 Cedar Drive Aycliffe,Supplies and Services,324117,Provisions E324,02-Dec-2018,000008091134371,TESCO STORES 2916,5411,Catering costs - provisions,38.16,0.00,38.16
Children and Young Peoples Services,Head of Childrens Social Care,085342,9 Cedar Drive Aycliffe,Supplies and Services,324117,Provisions E324,02-Dec-2018,000008091134377,TESCO STORES 2916,5411,Catering costs - provisions,28.00,0.00,28.00
Children and Young Peoples Services,Head of Childrens Social Care,085342,9 Cedar Drive Aycliffe,Supplies and Services,324117,Provisions E324,02-Dec-2018,000008091134381,MAGICSANTALETTER.COM,5499,Catering costs - provisions,15.98,0.00,15.98
Children and Young Peoples Services,"Head of Early Help, Inclusion and Vulnerable Children",074000,TTF-Attachment and Results,Transfer Payments,525033,Other,02-Dec-2018,000008091134749,ASDA GEORGE COM LEEDS,5411,Grants to individuals,2.94,0.49,2.45
Children and Young Peoples Services,"Head of Early Help, Inclusion and Vulnerable Children",074000,TTF-Attachment and Results,Transfer Payments,525033,Other,02-Dec-2018,000008091134749 - 1,ASDA GEORGE COM LEEDS,5411,Grants to individuals,124.81,,124.81
Adult and Health Services,Head of Adults,055306,Spennymoor Pathways,Supplies and Services,312011,Newspapers books and periodicals E312,02-Dec-2018,000008091135635,Amazon.co.uk M03H151Q4,5969,Books-school library,40.30,6.72,33.58
Regeneration and Local Services,Direct Services,021242,Catering - County Hall,Supplies and Services,324117,Provisions E324,03-Dec-2018,000008099877741,TESCO STORES 2916,5411,Catering costs - provisions,8.00,0.00,8.00
Children and Young Peoples Services,Head of Education and Skills,071801,Selby Cottage Childcare Centre,Supplies and Services,324117,Provisions E324,03-Dec-2018,000008099877753,JR HOLLAND FOODSERVICE,5422,Catering costs - provisions,422.36,0.00,422.36
Children and Young Peoples Services,Head of Childrens Social Care,085100,Strategic Manager Families First Area South,Supplies and Services,384199,Miscellaneous Expenses,03-Dec-2018,000008099877761,SUNDERLAND CC,9399,Other hired and contracted services,30.00,0.00,30.00
Resources,Digital and Customer Services,065487,ICT Telephony Recharges,Supplies and Services,344033,Telephones,03-Dec-2018,000008099877765,AMZN MKTP UK M03ST0X34,5942,Telephones general-all costs,50.83,0.00,50.83
Resources,Digital and Customer Services,065487,ICT Telephony Recharges,Supplies and Services,344033,Telephones,03-Dec-2018,000008099877769,AMZN MKTP UK M066H6V24,5942,Telephones general-all costs,121.77,0.00,121.77
Regeneration and Local Services,Spatial Policy Planning Assets & Environment,031118,Seascape,Supplies and Services,324117,Provisions E324,03-Dec-2018,000008099877771,MY.MORRISONS.COM,5411,Catering costs - provisions,20.00,0.00,20.00
Children and Young Peoples Services,Head of Education and Skills,075021,Youth Employment Initiative,Supplies and Services,384199,Miscellaneous Expenses,03-Dec-2018,000008099877797,SUNDERLAND CC,9399,Other hired and contracted services,10.00,0.00,10.00
Children and Young Peoples Services,Head of Education and Skills,075021,Youth Employment Initiative,Supplies and Services,384199,Miscellaneous Expenses,03-Dec-2018,000008099877799,SUNDERLAND CC,9399,Other hired and contracted services,10.00,0.00,10.00
Children and Young Peoples Services,Head of Education and Skills,075021,Youth Employment Initiative,Supplies and Services,384199,Miscellaneous Expenses,03-Dec-2018,000008099877801,WWW.SOUTHAMPTON.GOV.UK,9399,Other hired and contracted services,10.00,0.00,10.00
Regeneration and Local Services,Economic Development and Housing,030708,VCD - Marketing & Information,Supplies and Services,336005,Advertising E336,03-Dec-2018,000008099877817,FACEBK 33XKPHJUC2,7311,Advertising other than for staff,60.66,0.00,60.66
Children and Young Peoples Services,Head of Childrens Social Care,085342,9 Cedar Drive Aycliffe,Supplies and Services,328041,Clothing uniforms and laundry E328,03-Dec-2018,000008099877823,NEW LOOK 1996,5621,Clothing uniforms and laundry,15.99,0.00,15.99
Children and Young Peoples Services,Head of Childrens Social Care,085342,9 Cedar Drive Aycliffe,Supplies and Services,324117,Provisions E324,03-Dec-2018,000008099877825,ASDA STORES 4320,5411,Catering costs - provisions,10.00,0.00,10.00
Children and Young Peoples Services,Head of Childrens Social Care,085342,9 Cedar Drive Aycliffe,Supplies and Services,324117,Provisions E324,03-Dec-2018,000008099877829,TESCO STORES 2916,5411,Catering costs - provisions,57.36,0.00,57.36
Children and Young Peoples Services,Head of Childrens Social Care,085342,9 Cedar Drive Aycliffe,Supplies and Services,324117,Provisions E324,03-Dec-2018,000008099877831,TESCO STORES 2916,5411,Catering costs - provisions,38.00,0.00,38.00
Children and Young Peoples Services,Head of Childrens Social Care,085342,9 Cedar Drive Aycliffe,Supplies and Services,304999,Equipment and Materials,03-Dec-2018,000008099877833,SUPERDRUG STORES PLC,5912,Misc equipment tools and materials,13.78,0.00,13.78
Children and Young Peoples Services,Head of Childrens Social Care,085342,9 Cedar Drive Aycliffe,Supplies and Services,308011,Furniture,03-Dec-2018,000008099877837,LAURA ASHLEY STOCKTON,5719,Furniture repair and replacement,9.00,0.00,9.00
Children and Young Peoples Services,Head of Childrens Social Care,085342,9 Cedar Drive Aycliffe,Supplies and Services,348037,Subsistence E348,03-Dec-2018,000008099877839,MCDONALDS,5814,Subsistence,9.66,0.00,9.66
Children and Young Peoples Services,Head of Childrens Social Care,085342,9 Cedar Drive Aycliffe,Supplies and Services,304259,Equipment and Materials,03-Dec-2018,000008099877841,SPORTSDIRECT 246,5941,Equipment-purchase and rental,32.04,0.00,32.04
Children and Young Peoples Services,Head of Childrens Social Care,085352,Tow Law CU,Supplies and Services,324117,Provisions E324,03-Dec-2018,000008099877879,CO-OP GROUP 010989,5411,Catering costs - provisions,13.14,0.00,13.14
Regeneration and Local Services,Direct Services,021242,Catering - County Hall,Supplies and Services,324117,Provisions E324,03-Dec-2018,000008099877885,JR HOLLAND FOODSERVICE,5422,Catering costs - provisions,224.84,0.00,224.84
Regeneration and Local Services,Direct Services,021242,Catering - County Hall,Supplies and Services,324117,Provisions E324,03-Dec-2018,000008099877891,JR HOLLAND FOODSERVICE,5422,Catering costs - provisions,72.15,0.00,72.15
Regeneration and Local Services,Direct Services,021242,Catering - County Hall,Supplies and Services,324117,Provisions E324,03-Dec-2018,000008099877895,JR HOLLAND FOODSERVICE,5422,Catering costs - provisions,13.80,0.00,13.80
Regeneration and Local Services,Direct Services,021242,Catering - County Hall,Supplies and Services,324117,Provisions E324,03-Dec-2018,000008099877897,JR HOLLAND FOODSERVICE,5422,Catering costs - provisions,13.00,0.00,13.00
Regeneration and Local Services,Direct Services,021242,Catering - County Hall,Supplies and Services,324117,Provisions E324,03-Dec-2018,000008099877901,JR HOLLAND FOODSERVICE,5422,Catering costs - provisions,6.94,0.00,6.94
Regeneration and Local Services,Economic Development and Housing,030544,Rural Employability - Client Engagement,Supplies and Services,304221,Equipment and Materials,03-Dec-2018,000008099877905,SCREWFIX DURHAM,5211,Direct materials,129.94,0.00,129.94
Regeneration and Local Services,Economic Development and Housing,031576,B& B - Temp Accom,Supplies and Services,364320,Grants to Voluntary Organisations,03-Dec-2018,000008099877913,HOTEL 52,7011,Accommodation assistance,130.00,0.00,130.00
Children and Young Peoples Services,Head of Childrens Social Care,085333,Coxhoe Satelite Home,Supplies and Services,304259,Equipment and Materials,03-Dec-2018,000008099877929,PAYPAL DADSLOCKUPP,5941,Equipment-purchase and rental,8.99,0.00,8.99
Children and Young Peoples Services,Head of Childrens Social Care,085333,Coxhoe Satelite Home,Supplies and Services,304403,Equipment and Materials,03-Dec-2018,000008099877933,WEBUY.COM,5065,Other consumables,21.50,0.00,21.50
Regeneration and Local Services,Culture & Sport,010664,Freemans Quay Leisure Centre,Supplies and Services,324117,Provisions E324,03-Dec-2018,000008099877969,ASDA STORES LTD 4313,5411,Catering costs - provisions,5.45,0.00,5.45
Children and Young Peoples Services,Head of Education and Skills,071732,Dean Bank Childcare,Supplies and Services,324117,Provisions E324,03-Dec-2018,000008099877977,ASDA GROCERIES ONLINE,5411,Catering costs - provisions,80.01,0.00,80.01
Children and Young Peoples Services,Head of Education and Skills,071732,Dean Bank Childcare,Supplies and Services,324117,Provisions E324,03-Dec-2018,000008099877981,ASDA GROCERIES ONLINE,5411,Catering costs - provisions,63.26,0.00,63.26
Children and Young Peoples Services,Head of Education and Skills,071732,Dean Bank Childcare,Supplies and Services,324117,Provisions E324,03-Dec-2018,000008099877983,TESCO STORES 2916,5411,Catering costs - provisions,20.90,0.00,20.90
Children and Young Peoples Services,Head of Education and Skills,071732,Dean Bank Childcare,Supplies and Services,324117,Provisions E324,03-Dec-2018,000008099877985,ASDA GROCERIES ONLINE,5411,Catering costs - provisions,-0.04,0.00,-0.04
Regeneration and Local Services,Culture & Sport,054813,Gala Theatre - Technical,Supplies and Services,304403,Equipment and Materials,03-Dec-2018,000008099877987,MESSY SUPPLIES,5999,Other consumables,211.14,0.00,211.14
Resources,Legal & Democratic Services,067910,Democratic Representation,Supplies and Services,384965,Miscellaneous Expenses,03-Dec-2018,000008099878003,SAINSBURYS 2199,5411,Civic Functions,14.00,0.00,14.00
Children and Young Peoples Services,Childrens Services Operational Support,052986,CYPS - Locality and Operational Support,Supplies and Services,304259,Equipment and Materials,03-Dec-2018,000008099878051,HM PASSPORT OFFICE,9399,Equipment-purchase and rental,58.50,0.00,58.50
Children and Young Peoples Services,Childrens Services Operational Support,052986,CYPS - Locality and Operational Support,Supplies and Services,328041,Clothing uniforms and laundry E328,03-Dec-2018,000008099878055,ARGOS RETAIL GROUP,5310,Clothing uniforms and laundry,32.97,0.00,32.97
Regeneration and Local Services,Culture & Sport,011060,Hardwick Park Catering,Supplies and Services,324117,Provisions E324,03-Dec-2018,000008099878063,JR HOLLAND FOODSERVICE,5422,Catering costs - provisions,36.59,0.00,36.59
Regeneration and Local Services,Culture & Sport,054815,Gala Theatre Stage School,Supplies and Services,304259,Equipment and Materials,03-Dec-2018,000008099878071,WILKO DURHAM 426,5722,Equipment-purchase and rental,25.55,0.00,25.55
Regeneration and Local Services,Culture & Sport,054815,Gala Theatre Stage School,Supplies and Services,324117,Provisions E324,03-Dec-2018,000008099878075,SAINSBURYS SACAT 0776,5411,Catering costs - provisions,20.00,0.00,20.00
Regeneration and Local Services,Culture & Sport,054815,Gala Theatre Stage School,Supplies and Services,324117,Provisions E324,03-Dec-2018,000008099878079,TESCO STORES 2371,5411,Catering costs - provisions,59.25,0.00,59.25
Children and Young Peoples Services,Head of Childrens Social Care,085331,New Lea Childrens Home,Supplies and Services,328041,Clothing uniforms and laundry E328,03-Dec-2018,000008099878081,ARGOS RETAIL GROUP,5310,Clothing uniforms and laundry,179.99,0.00,179.99
Regeneration and Local Services,Direct Services,010525,Catering - Green Lane,Supplies and Services,324117,Provisions E324,03-Dec-2018,000008099878089,JR HOLLAND FOODSERVICE,5422,Catering costs - provisions,68.00,0.00,68.00
Children and Young Peoples Services,Head of Childrens Social Care,085622,Families First Ferryhill,Transport,230005,Contract Hire,03-Dec-2018,000008099878103,BLUELINE TAXIS,4121,Short Term Spot Hire of Vehicles,680.00,0.00,680.00
Children and Young Peoples Services,Head of Childrens Social Care,085333,Coxhoe Satelite Home,Supplies and Services,328041,Clothing uniforms and laundry E328,03-Dec-2018,000008099878159,T K MAXX,5331,Clothing uniforms and laundry,2.99,0.00,2.99
Children and Young Peoples Services,Head of Childrens Social Care,085333,Coxhoe Satelite Home,Supplies and Services,324117,Provisions E324,03-Dec-2018,000008099878161,TESCO STORES 2371,5411,Catering costs - provisions,117.98,0.00,117.98
Regeneration and Local Services,Direct Services,010367,C&G - South Grounds Maintenance,Supplies and Services,384999,Miscellaneous Expenses,03-Dec-2018,000008099878183,WWW.GUSTHARTS.COM,5046,Other expenses,123.53,0.00,123.53
Children and Young Peoples Services,Head of Childrens Social Care,085342,9 Cedar Drive Aycliffe,Supplies and Services,312011,Newspapers books and periodicals E312,03-Dec-2018,000008099878185,AMZN Mktp UK M04PW1XV4,5942,Books-school library,51.38,0.00,51.38
Children and Young Peoples Services,Head of Childrens Social Care,085342,9 Cedar Drive Aycliffe,Supplies and Services,312011,Newspapers books and periodicals E312,03-Dec-2018,000008099878187,Amazon.co.uk M010Y3VH4,5969,Books-school library,18.99,0.00,18.99
Children and Young Peoples Services,Head of Childrens Social Care,085342,9 Cedar Drive Aycliffe,Supplies and Services,312011,Newspapers books and periodicals E312,03-Dec-2018,000008099878191,Amazon.co.uk M09S28VL4,5969,Books-school library,9.45,0.00,9.45
Regeneration and Local Services,Direct Services,030691,"Catering - Durham Dales Centre			",Supplies and Services,324117,Provisions E324,03-Dec-2018,000008099878223,JR HOLLAND FOODSERVICE,5422,Catering costs - provisions,79.52,0.00,79.52
Adult and Health Services,Head of Adults,055643,Hawthorn House LD Respite Unit,Supplies and Services,324117,Provisions E324,03-Dec-2018,000008099878253,JR HOLLAND FOODSERVICE,5422,Catering costs - provisions,12.15,0.00,12.15
Adult and Health Services,Head of Adults,055643,Hawthorn House LD Respite Unit,Supplies and Services,324117,Provisions E324,03-Dec-2018,000008099878257,JR HOLLAND FOODSERVICE,5422,Catering costs - provisions,10.55,0.00,10.55
Children and Young Peoples Services,"Head of Early Help, Inclusion and Vulnerable Children",074000,TTF-Attachment and Results,Transfer Payments,525033,Other,03-Dec-2018,000008099878287,ASDA GEORGE COM LEEDS,5411,Grants to individuals,43.50,0.00,43.50
Children and Young Peoples Services,"Head of Early Help, Inclusion and Vulnerable Children",074000,TTF-Attachment and Results,Transfer Payments,525033,Other,03-Dec-2018,000008099878291,Amazon.co.uk M05K24MZ4,5969,Grants to individuals,11.15,0.00,11.15
Children and Young Peoples Services,"Head of Early Help, Inclusion and Vulnerable Children",074000,TTF-Attachment and Results,Transfer Payments,525033,Other,03-Dec-2018,000008099878295,AMZN MKTP UK M03YI6V54,5942,Grants to individuals,25.49,0.00,25.49
Children and Young Peoples Services,"Head of Early Help, Inclusion and Vulnerable Children",074000,TTF-Attachment and Results,Transfer Payments,525033,Other,03-Dec-2018,000008099878299,AMZN MKTP UK M05Y36VA4,5942,Grants to individuals,25.49,0.00,25.49
Children and Young Peoples Services,"Head of Early Help, Inclusion and Vulnerable Children",074000,TTF-Attachment and Results,Transfer Payments,525033,Other,03-Dec-2018,000008099878303,AMZN MKTP UK M08LG5VT4,5942,Grants to individuals,4.36,0.00,4.36
Children and Young Peoples Services,"Head of Early Help, Inclusion and Vulnerable Children",085954,Walworth,Supplies and Services,328041,Clothing uniforms and laundry E328,03-Dec-2018,000008099878311,M and M Direct Ltd,5941,Clothing uniforms and laundry,23.98,0.00,23.98
Children and Young Peoples Services,"Head of Early Help, Inclusion and Vulnerable Children",085957,Secure Management,Supplies and Services,304245,Equipment and Materials,03-Dec-2018,000008099878313,AMZN MKTP UK M08BO8XU4,5942,Materials,51.96,8.66,43.30
Children and Young Peoples Services,"Head of Early Help, Inclusion and Vulnerable Children",085954,Walworth,Supplies and Services,328041,Clothing uniforms and laundry E328,03-Dec-2018,000008099878315,FOOTASYLUM PLC,5691,Clothing uniforms and laundry,149.97,0.00,149.97
Children and Young Peoples Services,"Head of Early Help, Inclusion and Vulnerable Children",085954,Walworth,Supplies and Services,304649,Equipment and Materials,03-Dec-2018,000008099878319,Amazon.co.uk M03G89M54,5969,Toys,37.99,6.33,31.66
Children and Young Peoples Services,"Head of Early Help, Inclusion and Vulnerable Children",085955,Auckland,Supplies and Services,384999,Miscellaneous Expenses,03-Dec-2018,000008099878321,WWW.ARGOS.CO.UK,5310,Other expenses,193.93,0.00,193.93
Children and Young Peoples Services,"Head of Early Help, Inclusion and Vulnerable Children",085954,Walworth,Supplies and Services,304245,Equipment and Materials,03-Dec-2018,000008099878323,WWW.ARGOS.CO.UK,5310,Materials,36.94,0.00,36.94
Children and Young Peoples Services,Head of Childrens Social Care,085372,Young People Services - North,Supplies and Services,328041,Clothing uniforms and laundry E328,03-Dec-2018,000008099878331,WWW.ARGOS.CO.UK,5310,Clothing uniforms and laundry,256.94,0.00,256.94
Children and Young Peoples Services,Head of Childrens Social Care,085372,Young People Services - North,Supplies and Services,328041,Clothing uniforms and laundry E328,03-Dec-2018,000008099878333,WWW.ARGOS.CO.UK,5310,Clothing uniforms and laundry,69.00,0.00,69.00
Children and Young Peoples Services,Head of Education and Skills,071903,EYDCP-Sustainability EDS,Employees,040149,Recruitment Instruction and Training,03-Dec-2018,000008099878335,WWW.ELKLAN.CO.UK,8299,Training-all costs,39.00,0.00,39.00
Regeneration and Local Services,Culture & Sport,054235,Bishop Auckland Town Hall Cafe,Supplies and Services,324117,Provisions E324,03-Dec-2018,000008099878337,JR HOLLAND FOODSERVICE,5422,Catering costs - provisions,20.26,0.00,20.26
Regeneration and Local Services,Direct Services,021324,Catering - Meadowfield,Supplies and Services,324117,Provisions E324,03-Dec-2018,000008099878343,JR HOLLAND FOODSERVICE,5422,Catering costs - provisions,68.70,0.00,68.70
Regeneration and Local Services,Direct Services,021324,Catering - Meadowfield,Supplies and Services,324117,Provisions E324,03-Dec-2018,000008099878347,JR HOLLAND FOODSERVICE,5422,Catering costs - provisions,10.35,0.00,10.35
Children and Young Peoples Services,"Head of Early Help, Inclusion and Vulnerable Children",085801,CDYOS - Support,Supplies and Services,324117,Provisions E324,03-Dec-2018,000008099878349,ASDA GROCERIES ONLINE,5411,Catering costs - provisions,59.52,0.00,59.52
Regeneration and Local Services,Culture & Sport,054820,Gala Theatre - Overheads,Supplies and Services,324117,Provisions E324,03-Dec-2018,000008099878407,TESCO STORES 6029,5411,Catering costs - provisions,4.36,0.00,4.36
Adult and Health Services,Head of Adults,055807,Newton Aycliffe Pathways,Supplies and Services,328041,Clothing uniforms and laundry E328,03-Dec-2018,000008099878459,ORIGINAL FACTORY S,5311,Clothing uniforms and laundry,20.00,0.00,20.00
Regeneration and Local Services,Economic Development and Housing,030694,Plexus 2,Supplies and Services,312011,Newspapers books and periodicals E312,03-Dec-2018,000008099878529,AMZN MKTP UK M07VN8XU4,5942,Books-school library,8.90,0.00,8.90
Regeneration and Local Services,Economic Development and Housing,031576,B& B - Temp Accom,Supplies and Services,364320,Grants to Voluntary Organisations,03-Dec-2018,000008104061821,PREMIER INN,3811,Accommodation assistance,71.00,11.83,59.17
Children and Young Peoples Services,"Head of Early Help, Inclusion and Vulnerable Children",074000,TTF-Attachment and Results,Transfer Payments,525033,Other,03-Dec-2018,000008104062237,AMZN MKTP UK M08IL0VA4,5942,Grants to individuals,24.29,0.00,24.29
Children and Young Peoples Services,"Head of Early Help, Inclusion and Vulnerable Children",074000,TTF-Attachment and Results,Supplies and Services,312011,Newspapers books and periodicals E312,03-Dec-2018,000008104062241,AMZN MKTP UK M09Q95MV4,5942,Books-school library,26.95,0.00,26.95
Children and Young Peoples Services,Head of Childrens Social Care,085333,Coxhoe Satelite Home,Supplies and Services,384999,Miscellaneous Expenses,03-Dec-2018,000008109463163,NEXT DIRECTORY,5965,Other expenses,68.99,0.00,68.99
Children and Young Peoples Services,Head of Childrens Social Care,085333,Coxhoe Satelite Home,Supplies and Services,384999,Miscellaneous Expenses,03-Dec-2018,000008115253561,NEXT DIRECTORY,5965,Other expenses,93.99,0.00,93.99
Regeneration and Local Services,Culture & Sport,054812,Gala Theatre - Catering etc,Supplies and Services,324117,Provisions E324,03-Dec-2018,000008134119885,BATLEYS PERTH,5300,Catering costs - provisions,64.44,10.74,53.70
Regeneration and Local Services,Culture & Sport,054812,Gala Theatre - Catering etc,Supplies and Services,324117,Provisions E324,03-Dec-2018,000008134119885 - 1,BATLEYS PERTH,5300,Catering costs - provisions,87.60,,87.60
Regeneration and Local Services,Direct Services,030691,"Catering - Durham Dales Centre			",Supplies and Services,324117,Provisions E324,03-Dec-2018,000008134120663,BATLEYS PERTH,5300,Catering costs - provisions,20.16,3.36,16.80
Regeneration and Local Services,Direct Services,030691,"Catering - Durham Dales Centre			",Supplies and Services,324117,Provisions E324,03-Dec-2018,000008134120663 - 1,BATLEYS PERTH,5300,Catering costs - provisions,91.12,,91.12
Children and Young Peoples Services,Head of Education and Skills,071801,Selby Cottage Childcare Centre,Supplies and Services,328041,Clothing uniforms and laundry E328,04-Dec-2018,000008104061285,B&M RETAIL LTD,5310,Clothing uniforms and laundry,71.20,0.00,71.20
Children and Young Peoples Services,Head of Education and Skills,071801,Selby Cottage Childcare Centre,Supplies and Services,324117,Provisions E324,04-Dec-2018,000008104061291,TESCO STORES 2278,5411,Catering costs - provisions,9.50,0.00,9.50
Resources,Finance & Transactional Services,065180,Collections,Charges,720130,Fees and Charges,04-Dec-2018,000008104061295,WWW.HMCOURT-SERVIC,9222,Fees-legal,44.00,0.00,44.00
Resources,Digital and Customer Services,065461,Business Support,Supplies and Services,304335,Equipment and Materials,04-Dec-2018,000008104061305,BITEABLE PTY LTD,7392,ICT supplies etc,22.80,0.00,22.80
Regeneration and Local Services,Economic Development and Housing,031500,Housing Solutions - Core Team,Supplies and Services,364320,Grants to Voluntary Organisations,04-Dec-2018,000008104061319,HAYAT HOTEL,7011,Accommodation assistance,50.00,8.33,41.67
Regeneration and Local Services,Economic Development and Housing,030699,Business Growth and Innovation General,Supplies and Services,304403,Equipment and Materials,04-Dec-2018,000008104061455,MEETEDGAR MONTHLY,5734,Other consumables,38.53,0.00,38.53
Regeneration and Local Services,Economic Development and Housing,030699,Business Growth and Innovation General,Supplies and Services,312011,Newspapers books and periodicals E312,04-Dec-2018,000008104061459,FASTHOSTS INTERNET,4816,Books-school library,6.34,1.06,5.28
Resources,Finance & Transactional Services,065180,Collections,Supplies and Services,338045,Services,04-Dec-2018,000008104061487,WWW.HMCOURT-SERVIC,9222,Legal expenses 338045,44.00,0.00,44.00
Regeneration and Local Services,Direct Services,021242,Catering - County Hall,Premises,145009,Cleaning and Domestic Supplies,04-Dec-2018,000008104061619,ALLIANCE DISPOSABLES L,2842,Other cleaning and domestic costs,423.36,70.56,352.80
Regeneration and Local Services,Direct Services,021242,Catering - County Hall,Premises,145009,Cleaning and Domestic Supplies,04-Dec-2018,000008104061619 - 1,ALLIANCE DISPOSABLES L,2842,Other cleaning and domestic costs,0.04,,0.04
Regeneration and Local Services,Direct Services,021242,Catering - County Hall,Premises,145009,Cleaning and Domestic Supplies,04-Dec-2018,000008104061631,ALLIANCE DISPOSABLES L,2842,Other cleaning and domestic costs,124.78,20.80,103.98
Regeneration and Local Services,Direct Services,021242,Catering - County Hall,Supplies and Services,324117,Provisions E324,04-Dec-2018,000008104061647,JR HOLLAND FOODSERVICE,5422,Catering costs - provisions,90.58,0.00,90.58
Resources,Digital and Customer Services,065461,Business Support,Supplies and Services,372009,Subscriptions E372,04-Dec-2018,000008104061667,WEB NETWORKSOLUTIONS,5968,Subscriptions 372009,113.20,0.00,113.20
Resources,Digital and Customer Services,065461,Business Support,Supplies and Services,372009,Subscriptions E372,04-Dec-2018,000008104061679,WEB NETWORKSOLUTIONS,5968,Subscriptions 372009,183.96,0.00,183.96
Resources,Digital and Customer Services,065461,Business Support,Supplies and Services,372009,Subscriptions E372,04-Dec-2018,000008104061691,WEB NETWORKSOLUTIONS,5968,Subscriptions 372009,75.47,0.00,75.47
Regeneration and Local Services,Culture & Sport,054812,Gala Theatre - Catering etc,Premises,145009,Cleaning and Domestic Supplies,04-Dec-2018,000008104061711,ALLIANCE DISPOSABLES L,2842,Other cleaning and domestic costs,2.76,0.46,2.30
Regeneration and Local Services,Culture & Sport,054812,Gala Theatre - Catering etc,Supplies and Services,324117,Provisions E324,04-Dec-2018,000008104061721,JR HOLLAND FOODSERVICE,5422,Catering costs - provisions,27.49,0.00,27.49
Regeneration and Local Services,Economic Development and Housing,031576,B& B - Temp Accom,Supplies and Services,364320,Grants to Voluntary Organisations,04-Dec-2018,000008104061733,HOTEL 52,7011,Accommodation assistance,170.00,0.00,170.00
Children and Young Peoples Services,Head of Childrens Social Care,085333,Coxhoe Satelite Home,Supplies and Services,308011,Furniture,04-Dec-2018,000008104061767,PAYPAL GILDA,5719,Furniture repair and replacement,28.98,0.00,28.98
Children and Young Peoples Services,Head of Childrens Social Care,085333,Coxhoe Satelite Home,Supplies and Services,384999,Miscellaneous Expenses,04-Dec-2018,000008104061771,PAYPAL DAILANGEN,5995,Other expenses,17.29,0.00,17.29
Children and Young Peoples Services,Head of Childrens Social Care,085333,Coxhoe Satelite Home,Supplies and Services,324117,Provisions E324,04-Dec-2018,000008104061775,TESCO STORES 2371,5411,Catering costs - provisions,14.60,0.00,14.60
Children and Young Peoples Services,Head of Childrens Social Care,085333,Coxhoe Satelite Home,Supplies and Services,328041,Clothing uniforms and laundry E328,04-Dec-2018,000008104061781,B & M RETAIL,5310,Clothing uniforms and laundry,45.55,0.00,45.55
Regeneration and Local Services,Culture & Sport,011217,Commercial Management,Supplies and Services,336005,Advertising E336,04-Dec-2018,000008104061785,GOOGLE ADWS2420292471,5968,Advertising other than for staff,-10.00,0.00,-10.00
Regeneration and Local Services,Culture & Sport,011217,Commercial Management,Supplies and Services,336005,Advertising E336,04-Dec-2018,000008104061789,GOOGLE ADWS2420292471,5968,Advertising other than for staff,-6.46,0.00,-6.46
Children and Young Peoples Services,Head of Childrens Social Care,085334,West Rainton Satelite Home,Supplies and Services,304259,Equipment and Materials,04-Dec-2018,000008104061831,WWW.SKATES.CO.UK,5941,Equipment-purchase and rental,149.95,24.99,124.96
Children and Young Peoples Services,Head of Childrens Social Care,085334,West Rainton Satelite Home,Supplies and Services,304259,Equipment and Materials,04-Dec-2018,000008104061835,J D SPORTS,5941,Equipment-purchase and rental,100.05,0.00,100.05
Children and Young Peoples Services,Head of Childrens Social Care,085334,West Rainton Satelite Home,Supplies and Services,312011,Newspapers books and periodicals E312,04-Dec-2018,000008104061839,HOME BARGAINS,5251,Books-school library,9.47,1.58,7.89
Children and Young Peoples Services,Head of Childrens Social Care,085334,West Rainton Satelite Home,Supplies and Services,328041,Clothing uniforms and laundry E328,04-Dec-2018,000008104061843,B & M RETAIL,5310,Clothing uniforms and laundry,22.99,0.00,22.99
Children and Young Peoples Services,Head of Childrens Social Care,085334,West Rainton Satelite Home,Supplies and Services,328041,Clothing uniforms and laundry E328,04-Dec-2018,000008104061847,THE WORKS,5310,Clothing uniforms and laundry,25.50,0.00,25.50
Children and Young Peoples Services,Head of Childrens Social Care,085334,West Rainton Satelite Home,Supplies and Services,324117,Provisions E324,04-Dec-2018,000008104061851,ALDI 12 774,5411,Catering costs - provisions,10.02,1.67,8.35
Children and Young Peoples Services,Head of Childrens Social Care,085334,West Rainton Satelite Home,Supplies and Services,324117,Provisions E324,04-Dec-2018,000008104061851 - 1,ALDI 12 774,5411,Catering costs - provisions,9.77,,9.77
Regeneration and Local Services,Spatial Policy Planning Assets & Environment,031204,North Pennines Nectarworks,Supplies and Services,328041,Clothing uniforms and laundry E328,04-Dec-2018,000008104061879,W BOYES & CO LTD CONSE,5310,Clothing uniforms and laundry,6.55,0.00,6.55
Children and Young Peoples Services,Head of Education and Skills,071903,EYDCP-Sustainability EDS,Supplies and Services,312011,Newspapers books and periodicals E312,04-Dec-2018,000008104061911,AMZN Mktp UK M001D2HL4,5942,Books-school library,4.96,0.00,4.96
Children and Young Peoples Services,"Head of Early Help, Inclusion and Vulnerable Children",071445,Chester le Street One Point Hub,Supplies and Services,324117,Provisions E324,04-Dec-2018,000008104061933,ASDA GROCERIES ONLINE,5411,Catering costs - provisions,42.40,0.00,42.40
Children and Young Peoples Services,"Head of Early Help, Inclusion and Vulnerable Children",071445,Chester le Street One Point Hub,Supplies and Services,324117,Provisions E324,04-Dec-2018,000008104061935,CO-OP GROUP 010460,5411,Catering costs - provisions,15.00,0.00,15.00
Children and Young Peoples Services,"Head of Early Help, Inclusion and Vulnerable Children",071445,Chester le Street One Point Hub,Supplies and Services,324117,Provisions E324,04-Dec-2018,000008104061937,ASDA GROCERIES ONLINE,5411,Catering costs - provisions,-4.80,0.00,-4.80
Children and Young Peoples Services,"Head of Early Help, Inclusion and Vulnerable Children",085952,Secure Education,Supplies and Services,332047,Printing Stationery and Gen Off Exps,04-Dec-2018,000008104061949,AMZN Mktp UK M02X95HT4,5942,Stationery,19.99,0.00,19.99
Children and Young Peoples Services,"Head of Early Help, Inclusion and Vulnerable Children",085955,Auckland,Supplies and Services,312011,Newspapers books and periodicals E312,04-Dec-2018,000008104061953,AMZN Mktp UK M03XE6HJ4,5942,Books-school library,9.98,1.66,8.32
Children and Young Peoples Services,"Head of Early Help, Inclusion and Vulnerable Children",085954,Walworth,Supplies and Services,328041,Clothing uniforms and laundry E328,04-Dec-2018,000008104061955,M and M Direct Ltd,5941,Clothing uniforms and laundry,34.99,0.00,34.99
Children and Young Peoples Services,"Head of Early Help, Inclusion and Vulnerable Children",085955,Auckland,Supplies and Services,328041,Clothing uniforms and laundry E328,04-Dec-2018,000008104061959,M and M Direct Ltd,5941,Clothing uniforms and laundry,69.98,0.00,69.98
Children and Young Peoples Services,"Head of Early Help, Inclusion and Vulnerable Children",085952,Secure Education,Supplies and Services,304403,Equipment and Materials,04-Dec-2018,000008104061965,WWW.TROPHYSTORE.CO.UK,5947,Other consumables,50.95,0.00,50.95
Children and Young Peoples Services,"Head of Early Help, Inclusion and Vulnerable Children",085956,Lumley,Supplies and Services,324117,Provisions E324,04-Dec-2018,000008104061969,TESCO STORES 6329,5411,Catering costs - provisions,75.52,0.00,75.52
Children and Young Peoples Services,"Head of Early Help, Inclusion and Vulnerable Children",085955,Auckland,Supplies and Services,328041,Clothing uniforms and laundry E328,04-Dec-2018,000008104061971,VERY,5964,Clothing uniforms and laundry,231.99,0.00,231.99
Children and Young Peoples Services,"Head of Early Help, Inclusion and Vulnerable Children",085955,Auckland,Supplies and Services,312011,Newspapers books and periodicals E312,04-Dec-2018,000008104061975,AMZN MKTP UK M09TD9H34,5942,Books-school library,10.48,0.00,10.48
Children and Young Peoples Services,"Head of Early Help, Inclusion and Vulnerable Children",085962,Aycliffe Secure - Durham,Supplies and Services,384999,Miscellaneous Expenses,04-Dec-2018,000008104061977,WWW.THERANGE.CO.UK,5712,Other expenses,45.93,0.00,45.93
Children and Young Peoples Services,"Head of Early Help, Inclusion and Vulnerable Children",085955,Auckland,Supplies and Services,328041,Clothing uniforms and laundry E328,04-Dec-2018,000008104061979,VERY,5964,Clothing uniforms and laundry,-19.00,0.00,-19.00
Children and Young Peoples Services,"Head of Early Help, Inclusion and Vulnerable Children",085955,Auckland,Supplies and Services,328041,Clothing uniforms and laundry E328,04-Dec-2018,000008104061983,VERY,5964,Clothing uniforms and laundry,-49.00,0.00,-49.00
Children and Young Peoples Services,"Head of Early Help, Inclusion and Vulnerable Children",085955,Auckland,Supplies and Services,328041,Clothing uniforms and laundry E328,04-Dec-2018,000008104061985,VERY,5964,Clothing uniforms and laundry,-100.00,0.00,-100.00
Regeneration and Local Services,Culture & Sport,054813,Gala Theatre - Technical,Supplies and Services,312011,Newspapers books and periodicals E312,04-Dec-2018,000008104061999,Amazon.co.uk M08V90HL4,5969,Books-school library,389.00,0.00,389.00
Regeneration and Local Services,Culture & Sport,054813,Gala Theatre - Technical,Supplies and Services,312011,Newspapers books and periodicals E312,04-Dec-2018,000008104062005,Amazon.co.uk M09BH7HT4,5969,Books-school library,80.82,0.00,80.82
Regeneration and Local Services,Culture & Sport,054813,Gala Theatre - Technical,Supplies and Services,304259,Equipment and Materials,04-Dec-2018,000008104062009,Prime Video M06HP3H44,5735,Equipment-purchase and rental,5.99,0.00,5.99
Regeneration and Local Services,Culture & Sport,054813,Gala Theatre - Technical,Supplies and Services,312011,Newspapers books and periodicals E312,04-Dec-2018,000008104062013,Amazon.co.uk M040M7BK4,5969,Books-school library,59.99,0.00,59.99
Regeneration and Local Services,Culture & Sport,054813,Gala Theatre - Technical,Supplies and Services,312011,Newspapers books and periodicals E312,04-Dec-2018,000008104062015,Amazon.co.uk M079F9B04,5969,Books-school library,18.75,0.00,18.75
Regeneration and Local Services,Culture & Sport,054813,Gala Theatre - Technical,Supplies and Services,304221,Equipment and Materials,04-Dec-2018,000008104062017,B & Q 1006,5211,Direct materials,25.79,0.00,25.79
Regeneration and Local Services,Culture & Sport,054813,Gala Theatre - Technical,Supplies and Services,312011,Newspapers books and periodicals E312,04-Dec-2018,000008104062019,AMZN MKTP UK M03SB4534,5942,Books-school library,145.67,0.00,145.67
Regeneration and Local Services,Culture & Sport,054813,Gala Theatre - Technical,Supplies and Services,324117,Provisions E324,04-Dec-2018,000008104062021,WM MORRISONS STORE,5411,Catering costs - provisions,39.05,0.00,39.05
Regeneration and Local Services,Direct Services,010301,C&G - North Grounds Maintenance,Third Party Payments 4THIRD,430100,Rendered by Private Contractors,04-Dec-2018,000008104062027,JOHN WARREN (ANIMAL BY,7399,Payments to sub-contractors,10.80,0.00,10.80
Regeneration and Local Services,Culture & Sport,011060,Hardwick Park Catering,Supplies and Services,324117,Provisions E324,04-Dec-2018,000008104062035,JR HOLLAND FOODSERVICE,5422,Catering costs - provisions,19.86,0.00,19.86
Regeneration and Local Services,Business Support,030053,Building Capacity Exchange,Supplies and Services,324117,Provisions E324,04-Dec-2018,000008104062059,TESCO STORES 5970,5411,Catering costs - provisions,11.99,0.00,11.99
Regeneration and Local Services,Economic Development and Housing,030553,Europe Direct Scheme,Supplies and Services,308011,Furniture,04-Dec-2018,000008104062063,IKEA LIMITED,5712,Furniture repair and replacement,27.00,4.50,22.50
Regeneration and Local Services,Economic Development and Housing,030771,Durham Advance Flexible Fund,Supplies and Services,384700,Miscellaneous Expenses,04-Dec-2018,000008104062125,ARRIVA NORTH EAST,4131,Miscellaneous grants,10.00,0.00,10.00
Regeneration and Local Services,Direct Services,030691,"Catering - Durham Dales Centre			",Supplies and Services,324117,Provisions E324,04-Dec-2018,000008104062137,JR HOLLAND FOODSERVICE,5422,Catering costs - provisions,102.36,0.00,102.36
Adult and Health Services,Head of Adults,055643,Hawthorn House LD Respite Unit,Supplies and Services,324117,Provisions E324,04-Dec-2018,000008104062159,JR HOLLAND FOODSERVICE,5422,Catering costs - provisions,23.11,0.00,23.11
Adult and Health Services,Head of Adults,055643,Hawthorn House LD Respite Unit,Supplies and Services,324117,Provisions E324,04-Dec-2018,000008104062165,JR HOLLAND FOODSERVICE,5422,Catering costs - provisions,13.86,0.00,13.86
Adult and Health Services,Head of Adults,055643,Hawthorn House LD Respite Unit,Supplies and Services,324117,Provisions E324,04-Dec-2018,000008104062169,JR HOLLAND FOODSERVICE,5422,Catering costs - provisions,3.68,0.00,3.68
Regeneration and Local Services,Culture & Sport,054399,Local Delivery-Libraries,Supplies and Services,312009,Newspapers books and periodicals E312,04-Dec-2018,000008104062181,Amazon.co.uk M00XE7HB4,5969,Newspapers books and periodicals,58.85,0.00,58.85
Children and Young Peoples Services,Head of Childrens Social Care,085380,Operations Manager Adoption & Fostering,Supplies and Services,324117,Provisions E324,04-Dec-2018,000008104062205,LIDL UK LANGLEY MOOR,5411,Catering costs - provisions,4.55,0.00,4.55
Regeneration and Local Services,Economic Development and Housing,030771,Durham Advance Flexible Fund,Supplies and Services,328041,Clothing uniforms and laundry E328,04-Dec-2018,000008104062249,JACAMO (INTERNET),5691,Clothing uniforms and laundry,9.00,0.00,9.00
Regeneration and Local Services,Economic Development and Housing,030771,Durham Advance Flexible Fund,Supplies and Services,328041,Clothing uniforms and laundry E328,04-Dec-2018,000008104062253,JACAMO (INTERNET),5691,Clothing uniforms and laundry,14.00,0.00,14.00
Children and Young Peoples Services,"Head of Early Help, Inclusion and Vulnerable Children",085955,Auckland,Supplies and Services,304649,Equipment and Materials,04-Dec-2018,000008104062257,Amazon.co.uk M03JA0594,5969,Toys,37.99,0.00,37.99
Transformation and Partnerships,Communications Management,060125,Information Management,Supplies and Services,372009,Subscriptions E372,04-Dec-2018,000008104062265,I R M S,7399,Subscriptions 372009,350.00,0.00,350.00
Regeneration and Local Services,Economic Development and Housing,030690,Durham Dales Centre - Tourist Information Centre,Supplies and Services,384999,Miscellaneous Expenses,04-Dec-2018,000008104062269,GAINSBOROUGH GIFTWARE,5950,Other expenses,222.12,37.02,185.10
Children and Young Peoples Services,Head of Childrens Social Care,085352,Tow Law CU,Supplies and Services,324117,Provisions E324,04-Dec-2018,000008104062283,TESCO STORES 2371,5411,Catering costs - provisions,255.09,0.00,255.09
Children and Young Peoples Services,Head of Childrens Social Care,085333,Coxhoe Satelite Home,Supplies and Services,324117,Provisions E324,04-Dec-2018,000008104062289,TESCO STORES 2916,5411,Catering costs - provisions,48.08,0.00,48.08
Regeneration and Local Services,Culture & Sport,011263,Louisa Centre,Supplies and Services,324117,Provisions E324,04-Dec-2018,000008104062357,ASDA SUPERSTORE,5411,Catering costs - provisions,22.00,0.00,22.00
Children and Young Peoples Services,Head of Childrens Social Care,085380,Operations Manager Adoption & Fostering,Supplies and Services,324117,Provisions E324,04-Dec-2018,000008104062377,TESCO STORES 2371,5411,Catering costs - provisions,131.09,0.00,131.09
Children and Young Peoples Services,Head of Childrens Social Care,085380,Operations Manager Adoption & Fostering,Supplies and Services,328041,Clothing uniforms and laundry E328,04-Dec-2018,000008104062381,B & M RETAIL,5310,Clothing uniforms and laundry,19.42,0.00,19.42
Regeneration and Local Services,Culture & Sport,054233,Bishop Auckland Town Hall Library,Supplies and Services,328041,Clothing uniforms and laundry E328,04-Dec-2018,000008104062385,POUNDLAND LTD 1390,5310,Clothing uniforms and laundry,5.00,0.00,5.00
Adult and Health Services,Head of Adults,055309,Peterlee Pathways,Supplies and Services,324117,Provisions E324,04-Dec-2018,000008104062443,LIDL UK PETERLEE,5411,Catering costs - provisions,2.96,0.00,2.96
Regeneration and Local Services,Economic Development and Housing,030771,Durham Advance Flexible Fund,Transport,235057,Public Transport,04-Dec-2018,000008104062503,GO NORTH EAST LIMITED,4131,Staff travelling,20.10,0.00,20.10
Resources,Finance & Transactional Services,065180,Collections,Supplies and Services,338064,Services,04-Dec-2018,000008104062539,DISCLOSURE SCOTLAND,9399,Disclosure & Barring (DBS) Fees,25.00,0.00,25.00
Children and Young Peoples Services,Head of Childrens Social Care,085333,Coxhoe Satelite Home,Supplies and Services,328041,Clothing uniforms and laundry E328,04-Dec-2018,000008109462997,AMZN MKTP UK M09150BC4,5942,Clothing uniforms and laundry,16.99,0.00,16.99
Children and Young Peoples Services,Head of Childrens Social Care,085361,LAC & Permanence Team 1,Supplies and Services,384999,Miscellaneous Expenses,04-Dec-2018,000008109463143,NEWCASTLE CITY COUNCIL,9399,Other expenses,250.00,0.00,250.00
Children and Young Peoples Services,Head of Childrens Social Care,085333,Coxhoe Satelite Home,Supplies and Services,304259,Equipment and Materials,04-Dec-2018,000008109463157,NEW BALANCE ATHLET,5941,Equipment-purchase and rental,114.40,0.00,114.40
Regeneration and Local Services,Economic Development and Housing,031500,Housing Solutions - Core Team,Employees,040149,Recruitment Instruction and Training,04-Dec-2018,000008109463703,PREMIER INN,3811,Training-all costs,89.00,0.00,89.00
Regeneration and Local Services,Economic Development and Housing,030690,Durham Dales Centre - Tourist Information Centre,Supplies and Services,328041,Clothing uniforms and laundry E328,04-Dec-2018,000008109463709,WWW.AKHOSIERY.CO.UK,5621,Clothing uniforms and laundry,379.32,63.22,316.10
Regeneration and Local Services,Economic Development and Housing,030694,Plexus 2,Supplies and Services,312011,Newspapers books and periodicals E312,04-Dec-2018,000008109464029,AMZN MKTP UK M02IR9H44,5942,Books-school library,26.76,0.00,26.76
Regeneration and Local Services,Direct Services,021242,Catering - County Hall,Supplies and Services,324117,Provisions E324,04-Dec-2018,000008130214707,FREEMAN CATERING BUTCH,5422,Catering costs - provisions,381.84,0.00,381.84
Regeneration and Local Services,Direct Services,021242,Catering - County Hall,Supplies and Services,324117,Provisions E324,04-Dec-2018,000008130214713,FREEMAN CATERING BUTCH,5422,Catering costs - provisions,24.89,0.00,24.89
Regeneration and Local Services,Direct Services,021242,Catering - County Hall,Supplies and Services,324117,Provisions E324,04-Dec-2018,000008130214717,FREEMAN CATERING BUTCH,5422,Catering costs - provisions,34.20,0.00,34.20
Regeneration and Local Services,Culture & Sport,054812,Gala Theatre - Catering etc,Supplies and Services,324117,Provisions E324,04-Dec-2018,000008130214749,FREEMAN CATERING BUTCH,5422,Catering costs - provisions,49.20,0.00,49.20
Regeneration and Local Services,Culture & Sport,054812,Gala Theatre - Catering etc,Supplies and Services,324117,Provisions E324,04-Dec-2018,000008130214753,FREEMAN CATERING BUTCH,5422,Catering costs - provisions,49.75,0.00,49.75
Regeneration and Local Services,Culture & Sport,011060,Hardwick Park Catering,Supplies and Services,324117,Provisions E324,04-Dec-2018,000008130215151,FREEMAN CATERING BUTCH,5422,Catering costs - provisions,24.59,0.00,24.59
Regeneration and Local Services,Culture & Sport,011060,Hardwick Park Catering,Supplies and Services,324117,Provisions E324,04-Dec-2018,000008130215155,FREEMAN CATERING BUTCH,5422,Catering costs - provisions,39.92,0.00,39.92
Regeneration and Local Services,Direct Services,021234,Catering - Locomotion,Supplies and Services,324117,Provisions E324,04-Dec-2018,000008130215179,FREEMAN CATERING BUTCH,5422,Catering costs - provisions,47.19,0.00,47.19
Regeneration and Local Services,Direct Services,010525,Catering - Green Lane,Supplies and Services,324117,Provisions E324,04-Dec-2018,000008130215219,FREEMAN CATERING BUTCH,5422,Catering costs - provisions,40.02,0.00,40.02
Regeneration and Local Services,Direct Services,010525,Catering - Green Lane,Supplies and Services,324117,Provisions E324,04-Dec-2018,000008130215223,FREEMAN CATERING BUTCH,5422,Catering costs - provisions,37.55,0.00,37.55
Regeneration and Local Services,Direct Services,030691,"Catering - Durham Dales Centre			",Supplies and Services,324117,Provisions E324,04-Dec-2018,000008130215373,FREEMAN CATERING BUTCH,5422,Catering costs - provisions,79.09,0.00,79.09
Regeneration and Local Services,Direct Services,030691,"Catering - Durham Dales Centre			",Supplies and Services,324117,Provisions E324,04-Dec-2018,000008130215377,FREEMAN CATERING BUTCH,5422,Catering costs - provisions,97.23,0.00,97.23
Adult and Health Services,Head of Adults,055643,Hawthorn House LD Respite Unit,Supplies and Services,324117,Provisions E324,04-Dec-2018,000008130215417,FREEMAN CATERING BUTCH,5422,Catering costs - provisions,37.86,0.00,37.86
Regeneration and Local Services,Direct Services,021324,Catering - Meadowfield,Supplies and Services,324117,Provisions E324,04-Dec-2018,000008130215533,FREEMAN CATERING BUTCH,5422,Catering costs - provisions,49.56,0.00,49.56
Regeneration and Local Services,Direct Services,021324,Catering - Meadowfield,Supplies and Services,324117,Provisions E324,04-Dec-2018,000008130215535,FREEMAN CATERING BUTCH,5422,Catering costs - provisions,64.60,0.00,64.60
Regeneration and Local Services,Direct Services,021242,Catering - County Hall,Supplies and Services,324117,Provisions E324,04-Dec-2018,000008134119813,BATLEYS PERTH,5300,Catering costs - provisions,136.68,22.78,113.90
Regeneration and Local Services,Direct Services,021242,Catering - County Hall,Supplies and Services,324117,Provisions E324,04-Dec-2018,000008134119813 - 1,BATLEYS PERTH,5300,Catering costs - provisions,207.45,,207.45
Regeneration and Local Services,Direct Services,021324,Catering - Meadowfield,Supplies and Services,324117,Provisions E324,04-Dec-2018,000008134120987,BATLEYS PERTH,5300,Catering costs - provisions,82.62,13.77,68.85
Regeneration and Local Services,Direct Services,021324,Catering - Meadowfield,Supplies and Services,324117,Provisions E324,04-Dec-2018,000008134120987 - 1,BATLEYS PERTH,5300,Catering costs - provisions,175.06,,175.06
Regeneration and Local Services,Culture & Sport,011060,Hardwick Park Catering,Supplies and Services,324117,Provisions E324,04-Dec-2018,000008196374709,BATLEYS PERTH,5300,Catering costs - provisions,-5.99,0.00,-5.99
Regeneration and Local Services,Culture & Sport,011060,Hardwick Park Catering,Supplies and Services,324117,Provisions E324,04-Dec-2018,000008196374713,BATLEYS PERTH,5300,Catering costs - provisions,-23.58,0.00,-23.58
Regeneration and Local Services,Direct Services,021234,Catering - Locomotion,Supplies and Services,324117,Provisions E324,04-Dec-2018,000008196374739,BATLEYS PERTH,5300,Catering costs - provisions,283.20,47.20,236.00
Regeneration and Local Services,Direct Services,021234,Catering - Locomotion,Supplies and Services,324117,Provisions E324,04-Dec-2018,000008196374739 - 1,BATLEYS PERTH,5300,Catering costs - provisions,48.50,,48.50
Regeneration and Local Services,Culture & Sport,054235,Bishop Auckland Town Hall Cafe,Supplies and Services,324117,Provisions E324,04-Dec-2018,000008196374941,BATLEYS PERTH,5300,Catering costs - provisions,13.20,0.00,13.20
Regeneration and Local Services,Culture & Sport,054235,Bishop Auckland Town Hall Cafe,Supplies and Services,324117,Provisions E324,04-Dec-2018,000008196374945,BATLEYS PERTH,5300,Catering costs - provisions,50.46,8.41,42.05
Regeneration and Local Services,Culture & Sport,054235,Bishop Auckland Town Hall Cafe,Supplies and Services,324117,Provisions E324,04-Dec-2018,000008196374945 - 1,BATLEYS PERTH,5300,Catering costs - provisions,166.73,,166.73
Resources,Digital and Customer Services,065461,Business Support,Supplies and Services,304335,Equipment and Materials,05-Dec-2018,000008104061311,BITEABLE PTY LTD,7392,ICT supplies etc,0.63,0.00,0.63
Regeneration and Local Services,Economic Development and Housing,030699,Business Growth and Innovation General,Supplies and Services,304403,Equipment and Materials,05-Dec-2018,000008104061465,MEETEDGAR MONTHLY,5734,Other consumables,1.06,0.00,1.06
Resources,Digital and Customer Services,065461,Business Support,Supplies and Services,372009,Subscriptions E372,05-Dec-2018,000008104061697,WEB NETWORKSOLUTIONS,5968,Subscriptions 372009,3.11,0.00,3.11
Resources,Digital and Customer Services,065461,Business Support,Supplies and Services,372009,Subscriptions E372,05-Dec-2018,000008104061701,WEB NETWORKSOLUTIONS,5968,Subscriptions 372009,5.06,0.00,5.06
Resources,Digital and Customer Services,065461,Business Support,Supplies and Services,372009,Subscriptions E372,05-Dec-2018,000008104061703,WEB NETWORKSOLUTIONS,5968,Subscriptions 372009,2.08,0.00,2.08
Children and Young Peoples Services,Head of Education and Skills,071801,Selby Cottage Childcare Centre,Supplies and Services,304259,Equipment and Materials,05-Dec-2018,000008109462819,WILKO RETAIL LIMIT,5722,Equipment-purchase and rental,66.35,0.00,66.35
Children and Young Peoples Services,Head of Education and Skills,071801,Selby Cottage Childcare Centre,Supplies and Services,324117,Provisions E324,05-Dec-2018,000008109462823,TESCO STORES 2278,5411,Catering costs - provisions,18.00,0.00,18.00
Children and Young Peoples Services,Head of Education and Skills,071801,Selby Cottage Childcare Centre,Supplies and Services,328041,Clothing uniforms and laundry E328,05-Dec-2018,000008109462825,B&M RETAIL LTD,5310,Clothing uniforms and laundry,2.99,0.00,2.99
Children and Young Peoples Services,Head of Education and Skills,071801,Selby Cottage Childcare Centre,Supplies and Services,324117,Provisions E324,05-Dec-2018,000008109462829,ALDI 32 774,5411,Catering costs - provisions,58.46,0.00,58.46
Children and Young Peoples Services,Head of Education and Skills,071801,Selby Cottage Childcare Centre,Supplies and Services,324117,Provisions E324,05-Dec-2018,000008109462835,TESCO STORES 2278,5411,Catering costs - provisions,4.45,0.00,4.45
Regeneration and Local Services,Economic Development and Housing,031576,B& B - Temp Accom,Supplies and Services,352001,Conference Expenses,05-Dec-2018,000008109462847,HOTEL 52,7011,Conferencesseminars fees etc,65.00,0.00,65.00
Children and Young Peoples Services,Head of Childrens Social Care,085332,Middlestone Moor CU,Supplies and Services,324117,Provisions E324,05-Dec-2018,000008109462935,ALDI 74 774,5411,Catering costs - provisions,15.87,0.00,15.87
Regeneration and Local Services,Economic Development and Housing,030699,Business Growth and Innovation General,Supplies and Services,342033,Computers and Communications,05-Dec-2018,000008109462941,SLICKPLAN.COM,7372,Computer hardware,7.88,0.00,7.88
Regeneration and Local Services,Economic Development and Housing,030699,Business Growth and Innovation General,Supplies and Services,304999,Equipment and Materials,05-Dec-2018,000008109462947,WWW.PARAGON.NET.UK RT,5968,Misc equipment tools and materials,35.99,6.00,29.99
Children and Young Peoples Services,Head of Childrens Social Care,085333,Coxhoe Satelite Home,Supplies and Services,384999,Miscellaneous Expenses,05-Dec-2018,000008109462989,AMZN MKTP UK M051F18P4,5942,Other expenses,50.78,0.00,50.78
Regeneration and Local Services,Direct Services,010367,C&G - South Grounds Maintenance,Supplies and Services,328041,Clothing uniforms and laundry E328,05-Dec-2018,000008109463003,WP-INDUSTRIAL WORKWEAR,5691,Clothing uniforms and laundry,296.70,49.45,247.25
Regeneration and Local Services,Direct Services,010367,C&G - South Grounds Maintenance,Supplies and Services,304221,Equipment and Materials,05-Dec-2018,000008109463007,MKM PETERLEE,5211,Direct materials,54.29,9.05,45.24
Regeneration and Local Services,Direct Services,010367,C&G - South Grounds Maintenance,Supplies and Services,304221,Equipment and Materials,05-Dec-2018,000008109463011,SCREWFIX PETERLEE,5211,Direct materials,8.99,1.50,7.49
Regeneration and Local Services,Direct Services,021242,Catering - County Hall,Supplies and Services,324117,Provisions E324,05-Dec-2018,000008109463049,JR HOLLAND FOODSERVICE,5422,Catering costs - provisions,237.14,0.00,237.14
Regeneration and Local Services,Direct Services,021242,Catering - County Hall,Supplies and Services,324117,Provisions E324,05-Dec-2018,000008109463055,JR HOLLAND FOODSERVICE,5422,Catering costs - provisions,62.41,0.00,62.41
Regeneration and Local Services,Direct Services,021242,Catering - County Hall,Supplies and Services,324117,Provisions E324,05-Dec-2018,000008109463061,JR HOLLAND FOODSERVICE,5422,Catering costs - provisions,31.51,0.00,31.51
Children and Young Peoples Services,Head of Childrens Social Care,085622,Families First Ferryhill,Supplies and Services,308011,Furniture,05-Dec-2018,000008109463071,WWW.ARGOS.CO.UK,5310,Furniture repair and replacement,177.00,0.00,177.00
Regeneration and Local Services,Economic Development and Housing,030771,Durham Advance Flexible Fund,Transport,235057,Public Transport,05-Dec-2018,000008109463091,ARRIVA NORTH EAST,4131,Staff travelling,14.40,0.00,14.40
Regeneration and Local Services,Direct Services,021242,Catering - County Hall,Supplies and Services,324117,Provisions E324,05-Dec-2018,000008109463123,SAINSBURYS LOC4634,5411,Catering costs - provisions,8.32,0.00,8.32
Regeneration and Local Services,Economic Development and Housing,030772,CLLD South,Supplies and Services,384700,Miscellaneous Expenses,05-Dec-2018,000008109463141,MARTIN MCCOLL,5499,Miscellaneous grants,10.00,0.00,10.00
Children and Young Peoples Services,Head of Childrens Social Care,085362,LAC & Permanence Team 2,Supplies and Services,304403,Equipment and Materials,05-Dec-2018,000008109463149,HM PASSPORT OFFICE,9399,Other consumables,98.00,0.00,98.00
Children and Young Peoples Services,Head of Education and Skills,071732,Dean Bank Childcare,Supplies and Services,324117,Provisions E324,05-Dec-2018,000008109463199,TESCO STORES 2916,5411,Catering costs - provisions,41.50,0.00,41.50
Resources,Legal & Democratic Services,067910,Democratic Representation,Supplies and Services,384965,Miscellaneous Expenses,05-Dec-2018,000008109463217,CO-OP GROUP 310015,5411,Civic Functions,9.00,0.00,9.00
Regeneration and Local Services,Culture & Sport,010991,County-wide FISCH,Supplies and Services,324117,Provisions E324,05-Dec-2018,000008109463227,SAINSBURYS 2199,5411,Catering costs - provisions,8.94,0.00,8.94
Children and Young Peoples Services,"Head of Early Help, Inclusion and Vulnerable Children",085955,Auckland,Supplies and Services,312011,Newspapers books and periodicals E312,05-Dec-2018,000008109463251,AMZN Mktp UK M09929QR4,5942,Books-school library,7.99,1.33,6.66
Children and Young Peoples Services,"Head of Early Help, Inclusion and Vulnerable Children",085955,Auckland,Supplies and Services,312011,Newspapers books and periodicals E312,05-Dec-2018,000008109463257,AMZN MKTP UK M01VT0B74,5942,Books-school library,6.97,0.00,6.97
Children and Young Peoples Services,"Head of Early Help, Inclusion and Vulnerable Children",085955,Auckland,Supplies and Services,312011,Newspapers books and periodicals E312,05-Dec-2018,000008109463261,AMZN MKTP UK M03Y248C4,5942,Books-school library,17.94,0.00,17.94
Children and Young Peoples Services,"Head of Early Help, Inclusion and Vulnerable Children",085954,Walworth,Supplies and Services,304259,Equipment and Materials,05-Dec-2018,000008109463263,AMZN Mktp UK M00NR8QS4,5942,Equipment-purchase and rental,18.90,0.00,18.90
Children and Young Peoples Services,"Head of Early Help, Inclusion and Vulnerable Children",085955,Auckland,Supplies and Services,324117,Provisions E324,05-Dec-2018,000008109463269,TESCO STORES 6329,5411,Catering costs - provisions,86.84,0.00,86.84
Children and Young Peoples Services,"Head of Early Help, Inclusion and Vulnerable Children",085955,Auckland,Supplies and Services,328041,Clothing uniforms and laundry E328,05-Dec-2018,000008109463273,VERY,5964,Clothing uniforms and laundry,103.99,0.00,103.99
Children and Young Peoples Services,"Head of Early Help, Inclusion and Vulnerable Children",085955,Auckland,Supplies and Services,328041,Clothing uniforms and laundry E328,05-Dec-2018,000008109463279,VERY,5964,Clothing uniforms and laundry,83.99,0.00,83.99
Children and Young Peoples Services,"Head of Early Help, Inclusion and Vulnerable Children",085952,Secure Education,Supplies and Services,312011,Newspapers books and periodicals E312,05-Dec-2018,000008109463283,BARRINGTON STOKE LTD,5942,Books-school library,23.96,0.00,23.96
Regeneration and Local Services,Culture & Sport,054813,Gala Theatre - Technical,Supplies and Services,312011,Newspapers books and periodicals E312,05-Dec-2018,000008109463291,Amazon.co.uk M09DJ58D4,5969,Books-school library,24.99,0.00,24.99
Regeneration and Local Services,Culture & Sport,054813,Gala Theatre - Technical,Supplies and Services,312011,Newspapers books and periodicals E312,05-Dec-2018,000008109463293,Amazon.co.uk M008H48F4,5969,Books-school library,339.98,0.00,339.98
Regeneration and Local Services,Culture & Sport,054813,Gala Theatre - Technical,Supplies and Services,312011,Newspapers books and periodicals E312,05-Dec-2018,000008109463297,Amazon.co.uk M08O96QN4,5969,Books-school library,47.96,0.00,47.96
Regeneration and Local Services,Culture & Sport,054813,Gala Theatre - Technical,Supplies and Services,324117,Provisions E324,05-Dec-2018,000008109463301,WM MORRISONS STORE,5411,Catering costs - provisions,115.69,0.00,115.69
Regeneration and Local Services,Culture & Sport,011060,Hardwick Park Catering,Supplies and Services,324117,Provisions E324,05-Dec-2018,000008109463309,JR HOLLAND FOODSERVICE,5422,Catering costs - provisions,71.24,0.00,71.24
Regeneration and Local Services,Culture & Sport,011060,Hardwick Park Catering,Supplies and Services,324117,Provisions E324,05-Dec-2018,000008109463317,JR HOLLAND FOODSERVICE,5422,Catering costs - provisions,29.77,0.00,29.77
Regeneration and Local Services,Direct Services,021234,Catering - Locomotion,Supplies and Services,324117,Provisions E324,05-Dec-2018,000008109463365,JR HOLLAND FOODSERVICE,5422,Catering costs - provisions,31.89,0.00,31.89
Regeneration and Local Services,Direct Services,010525,Catering - Green Lane,Supplies and Services,324117,Provisions E324,05-Dec-2018,000008109463391,JR HOLLAND FOODSERVICE,5422,Catering costs - provisions,82.42,0.00,82.42
Regeneration and Local Services,Direct Services,010913,Bldg Serv - Construction General,Supplies and Services,304221,Equipment and Materials,05-Dec-2018,000008109463475,ARGOS RETAIL GROUP,5310,Direct materials,419.97,0.00,419.97
Children and Young Peoples Services,Head of Childrens Social Care,085342,9 Cedar Drive Aycliffe,Supplies and Services,324117,Provisions E324,05-Dec-2018,000008109463493,TESCO STORES 2916,5411,Catering costs - provisions,38.40,0.00,38.40
Adult and Health Services,Head of Adults,055643,Hawthorn House LD Respite Unit,Supplies and Services,324117,Provisions E324,05-Dec-2018,000008109463557,JR HOLLAND FOODSERVICE,5422,Catering costs - provisions,17.38,0.00,17.38
Adult and Health Services,Head of Adults,055643,Hawthorn House LD Respite Unit,Supplies and Services,324117,Provisions E324,05-Dec-2018,000008109463561,JR HOLLAND FOODSERVICE,5422,Catering costs - provisions,5.98,0.00,5.98
Adult and Health Services,Head of Adults,055643,Hawthorn House LD Respite Unit,Supplies and Services,324117,Provisions E324,05-Dec-2018,000008109463567,JR HOLLAND FOODSERVICE,5422,Catering costs - provisions,0.92,0.00,0.92
Regeneration and Local Services,Spatial Policy Planning Assets & Environment,031222,North Pennines Allen Valleys Landscape Partnership,Supplies and Services,304259,Equipment and Materials,05-Dec-2018,000008109463573,DISCOUNT FIRE SUPP,7393,Equipment-purchase and rental,371.38,61.90,309.48
Regeneration and Local Services,Spatial Policy Planning Assets & Environment,031222,North Pennines Allen Valleys Landscape Partnership,Supplies and Services,304221,Equipment and Materials,05-Dec-2018,000008109463579,SCREWFIX DIRECT,5211,Direct materials,"1,399.99",233.33,1166.66
Children and Young Peoples Services,Head of Childrens Social Care,085380,Operations Manager Adoption & Fostering,Supplies and Services,324117,Provisions E324,05-Dec-2018,000008109463611,ASDA STORES,5411,Catering costs - provisions,34.42,0.00,34.42
Children and Young Peoples Services,Head of Childrens Social Care,085380,Operations Manager Adoption & Fostering,Supplies and Services,324117,Provisions E324,05-Dec-2018,000008109463617,ASDA STORES,5411,Catering costs - provisions,1.00,0.00,1.00
Resources,Digital and Customer Services,065335,School Services - Implementations,Supplies and Services,304303,Equipment and Materials,05-Dec-2018,000008109463655,AMZN Mktp UK M05FJ08L4,5942,Network for resale,58.95,0.00,58.95
Resources,Digital and Customer Services,065335,School Services - Implementations,Supplies and Services,304639,Equipment and Materials,05-Dec-2018,000008109463659,AMZN Mktp UK M02LQ6QB4,5942,Technicians-supplies,74.95,0.00,74.95
Children and Young Peoples Services,"Head of Early Help, Inclusion and Vulnerable Children",085965,Barnard,Supplies and Services,312011,Newspapers books and periodicals E312,05-Dec-2018,000008109463667,AMZN Mktp UK M05PK7814,5942,Books-school library,8.39,1.40,6.99
Children and Young Peoples Services,"Head of Early Help, Inclusion and Vulnerable Children",085954,Walworth,Supplies and Services,384999,Miscellaneous Expenses,05-Dec-2018,000008109463673,WILKO.COM,5399,Other expenses,44.00,0.00,44.00
Children and Young Peoples Services,"Head of Early Help, Inclusion and Vulnerable Children",085965,Barnard,Supplies and Services,304649,Equipment and Materials,05-Dec-2018,000008109463675,WWW.NITROTEK.CO.UK,5945,Toys,125.98,0.00,125.98
Children and Young Peoples Services,"Head of Early Help, Inclusion and Vulnerable Children",085957,Secure Management,Supplies and Services,338057,Services,05-Dec-2018,000008109463681,AMZN Mktp UK M01MJ2Q04,5942,Medical fees 338057,6.95,1.16,5.79
Children and Young Peoples Services,"Head of Early Help, Inclusion and Vulnerable Children",085965,Barnard,Supplies and Services,304083,Equipment and Materials,05-Dec-2018,000008109463683,AMZN Mktp UK M07SF4QY4,5942,Catering equipment,24.98,0.00,24.98
Children and Young Peoples Services,"Head of Early Help, Inclusion and Vulnerable Children",085956,Lumley,Supplies and Services,384999,Miscellaneous Expenses,05-Dec-2018,000008109463685,Amazon.co.uk M08ON0QB4,5969,Other expenses,107.07,17.85,89.22
Regeneration and Local Services,Economic Development and Housing,030690,Durham Dales Centre - Tourist Information Centre,Supplies and Services,328041,Clothing uniforms and laundry E328,05-Dec-2018,000008109463713,WWW.AKHOSIERY.CO.UK,5621,Clothing uniforms and laundry,-60.48,-10.08,-50.40
Regeneration and Local Services,Culture & Sport,054235,Bishop Auckland Town Hall Cafe,Supplies and Services,324117,Provisions E324,05-Dec-2018,000008109463735,JR HOLLAND FOODSERVICE,5422,Catering costs - provisions,49.59,0.00,49.59
Regeneration and Local Services,Transport and Contracted Services,031704,Care Connect - CCTV Countywide,Supplies and Services,384956,Miscellaneous Expenses,05-Dec-2018,000008109463743,SECURITY INDUSTRY,7393,Licences,220.00,0.00,220.00
Regeneration and Local Services,Transport and Contracted Services,031704,Care Connect - CCTV Countywide,Supplies and Services,384956,Miscellaneous Expenses,05-Dec-2018,000008109463749,SECURITY INDUSTRY,7393,Licences,220.00,0.00,220.00
Regeneration and Local Services,Direct Services,021324,Catering - Meadowfield,Supplies and Services,324117,Provisions E324,05-Dec-2018,000008109463753,JR HOLLAND FOODSERVICE,5422,Catering costs - provisions,70.92,0.00,70.92
Regeneration and Local Services,Direct Services,021324,Catering - Meadowfield,Supplies and Services,324117,Provisions E324,05-Dec-2018,000008109463759,JR HOLLAND FOODSERVICE,5422,Catering costs - provisions,14.19,0.00,14.19
Children and Young Peoples Services,Childrens Services Operational Support,052986,CYPS - Locality and Operational Support,Supplies and Services,304259,Equipment and Materials,05-Dec-2018,000008109463767,WWW.DURHAM.GOV.UK,9399,Equipment-purchase and rental,40.00,0.00,40.00
Children and Young Peoples Services,Head of Childrens Social Care,085352,Tow Law CU,Supplies and Services,324117,Provisions E324,05-Dec-2018,000008109463789,SAINSBURYS SACAT 2199,5411,Catering costs - provisions,2.60,0.00,2.60
Children and Young Peoples Services,Head of Childrens Social Care,085352,Tow Law CU,Supplies and Services,312011,Newspapers books and periodicals E312,05-Dec-2018,000008109463791,HOME BARGAINS,5251,Books-school library,25.12,0.00,25.12
Children and Young Peoples Services,Head of Childrens Social Care,085352,Tow Law CU,Supplies and Services,328041,Clothing uniforms and laundry E328,05-Dec-2018,000008109463793,ARGOS BISHOP AUCKL,5310,Clothing uniforms and laundry,24.99,0.00,24.99
Children and Young Peoples Services,Head of Childrens Social Care,085363,LAC & Permanence Team 3,Supplies and Services,304259,Equipment and Materials,05-Dec-2018,000008109463799,WWW.DURHAM.GOV.UK,9399,Equipment-purchase and rental,50.00,0.00,50.00
Children and Young Peoples Services,Head of Childrens Social Care,085380,Operations Manager Adoption & Fostering,Supplies and Services,324117,Provisions E324,05-Dec-2018,000008109463867,ASDA STORES,5411,Catering costs - provisions,25.80,0.00,25.80
Regeneration and Local Services,Culture & Sport,054233,Bishop Auckland Town Hall Library,Supplies and Services,304259,Equipment and Materials,05-Dec-2018,000008109463873,WILKO RETAIL LIMIT,5722,Equipment-purchase and rental,18.00,0.00,18.00
Resources,Digital and Customer Services,069010,Administration,Transport,235057,Public Transport,05-Dec-2018,000008109463923,Oyster Online,4112,Staff travelling,50.00,0.00,50.00
Resources,Digital and Customer Services,069010,Administration,Transport,235057,Public Transport,05-Dec-2018,000008109463927,Oyster Online,4112,Staff travelling,50.00,0.00,50.00
Regeneration and Local Services,Direct Services,021235,Catering - Wharton Park,Supplies and Services,324117,Provisions E324,05-Dec-2018,000008109463937,JR HOLLAND FOODSERVICE,5422,Catering costs - provisions,19.10,0.00,19.10
Resources,Finance & Transactional Services,065116,Creditors/Purchasing,Supplies and Services,384999,Miscellaneous Expenses,05-Dec-2018,000008109463957,PAYPAL FULLBORE,5945,Other expenses,70.90,0.00,70.90
Resources,Finance & Transactional Services,065116,Creditors/Purchasing,Supplies and Services,384999,Miscellaneous Expenses,05-Dec-2018,000008109463961,PAYPAL FULLBORE,5945,Other expenses,70.90,0.00,70.90
Regeneration and Local Services,Spatial Policy Planning Assets & Environment,031071,Sustainability and Climate Change,Supplies and Services,348037,Subsistence E348,05-Dec-2018,000008109463967,ELECTRIC ELEPHANT,5812,Subsistence,10.02,1.67,8.35
Regeneration and Local Services,Spatial Policy Planning Assets & Environment,031071,Sustainability and Climate Change,Supplies and Services,348037,Subsistence E348,05-Dec-2018,000008109463967 - 1,ELECTRIC ELEPHANT,5812,Subsistence,2.98,,2.98
Regeneration and Local Services,Direct Services,030691,"Catering - Durham Dales Centre			",Supplies and Services,324117,Provisions E324,05-Dec-2018,000008109464035,SCOTMID CO-OP STANHOPE,5411,Catering costs - provisions,11.40,0.00,11.40
Regeneration and Local Services,Economic Development and Housing,031500,Housing Solutions - Core Team,Employees,040149,Recruitment Instruction and Training,05-Dec-2018,000008115253921,PREMIER INN,3811,Training-all costs,86.00,0.00,86.00
Regeneration and Local Services,Spatial Policy Planning Assets & Environment,031071,Sustainability and Climate Change,Supplies and Services,348037,Subsistence E348,05-Dec-2018,000008115254067,HMSHOST KINGSCROSS STA,5812,Subsistence,7.35,1.23,6.12
Regeneration and Local Services,Transport and Contracted Services,031701,Care Connect All Localities,Supplies and Services,344033,Telephones,06-Dec-2018,000008109462851,AMZN Mktp UK M00WA1694,5942,Telephones general-all costs,8.85,1.48,7.37
Regeneration and Local Services,Economic Development and Housing,030699,Business Growth and Innovation General,Supplies and Services,342033,Computers and Communications,06-Dec-2018,000008109462949,SLICKPLAN.COM,7372,Computer hardware,0.22,0.00,0.22
Resources,Digital and Customer Services,065335,School Services - Implementations,Supplies and Services,304303,Equipment and Materials,06-Dec-2018,000008109463661,AMZN Mktp UK M00580694,5942,Network for resale,20.48,0.00,20.48
Regeneration and Local Services,Economic Development and Housing,031576,B& B - Temp Accom,Supplies and Services,352001,Conference Expenses,06-Dec-2018,000008115253441,HOTEL 52,7011,Conferencesseminars fees etc,280.00,0.00,280.00
Children and Young Peoples Services,Head of Education and Skills,071733,Shildon Childcare,Charges,720130,Fees and Charges,06-Dec-2018,000008115253443,WWW.MONEYCLAIM.GOV,9399,Fees-legal,105.00,0.00,105.00
Resources,Legal & Democratic Services,069320,Litigation Solicitors,Charges,720130,Fees and Charges,06-Dec-2018,000008115253447,WWW.MONEYCLAIM.GOV,9399,Fees-legal,35.00,0.00,35.00
Regeneration and Local Services,Direct Services,010301,C&G - North Grounds Maintenance,Supplies and Services,304221,Equipment and Materials,06-Dec-2018,000008115253453,HARELAW SAWMILL,5211,Direct materials,471.72,0.00,471.72
Regeneration and Local Services,Economic Development and Housing,031576,B& B - Temp Accom,Supplies and Services,364320,Grants to Voluntary Organisations,06-Dec-2018,000008115253465,HOTEL 52,7011,Accommodation assistance,345.00,57.50,287.50
Children and Young Peoples Services,Head of Childrens Social Care,085332,Middlestone Moor CU,Supplies and Services,384999,Miscellaneous Expenses,06-Dec-2018,000008115253471,T K MAXX,5331,Other expenses,14.99,0.00,14.99
Children and Young Peoples Services,Head of Childrens Social Care,085332,Middlestone Moor CU,Supplies and Services,384999,Miscellaneous Expenses,06-Dec-2018,000008115253473,DUNELM LTD,5714,Other expenses,72.00,0.00,72.00
Children and Young Peoples Services,Head of Childrens Social Care,085332,Middlestone Moor CU,Supplies and Services,384871,Miscellaneous Expenses,06-Dec-2018,000008115253475,SHOWCASE TEESIDE,7832,Training-other activities,18.25,0.00,18.25
Children and Young Peoples Services,Head of Childrens Social Care,085332,Middlestone Moor CU,Supplies and Services,308011,Furniture,06-Dec-2018,000008115253477,THE RANGE,5311,Furniture repair and replacement,45.95,0.00,45.95
Regeneration and Local Services,Direct Services,010367,C&G - South Grounds Maintenance,Supplies and Services,304403,Equipment and Materials,06-Dec-2018,000008115253515,MAXWELLS DIY,5231,Other consumables,5.97,1.00,4.97
Children and Young Peoples Services,Head of Childrens Social Care,085352,Tow Law CU,Supplies and Services,324117,Provisions E324,06-Dec-2018,000008115253527,NISA LOCAL,5411,Catering costs - provisions,4.29,0.00,4.29
Regeneration and Local Services,Direct Services,021242,Catering - County Hall,Premises,145009,Cleaning and Domestic Supplies,06-Dec-2018,000008115253533,ALLIANCE DISPOSABLES L,2842,Other cleaning and domestic costs,82.30,13.72,68.58
Regeneration and Local Services,Direct Services,021242,Catering - County Hall,Supplies and Services,324117,Provisions E324,06-Dec-2018,000008115253535,JR HOLLAND FOODSERVICE,5422,Catering costs - provisions,100.47,0.00,100.47
Regeneration and Local Services,Direct Services,021242,Catering - County Hall,Supplies and Services,324117,Provisions E324,06-Dec-2018,000008115253537,JR HOLLAND FOODSERVICE,5422,Catering costs - provisions,13.80,0.00,13.80
Regeneration and Local Services,Economic Development and Housing,030544,Rural Employability - Client Engagement,Supplies and Services,324117,Provisions E324,06-Dec-2018,000008115253539,ASDA STORES LTD 4313,5411,Catering costs - provisions,32.00,0.00,32.00
Regeneration and Local Services,Economic Development and Housing,030771,Durham Advance Flexible Fund,Transport,235057,Public Transport,06-Dec-2018,000008115253549,GO NORTH EAST LIMITED,4131,Staff travelling,13.40,0.00,13.40
Regeneration and Local Services,Culture & Sport,054812,Gala Theatre - Catering etc,Premises,145009,Cleaning and Domestic Supplies,06-Dec-2018,000008115253551,ALLIANCE DISPOSABLES L,2842,Other cleaning and domestic costs,184.62,30.77,153.85
Regeneration and Local Services,Culture & Sport,054812,Gala Theatre - Catering etc,Premises,145009,Cleaning and Domestic Supplies,06-Dec-2018,000008115253551 - 1,ALLIANCE DISPOSABLES L,2842,Other cleaning and domestic costs,0.05,,0.05
Regeneration and Local Services,Culture & Sport,054812,Gala Theatre - Catering etc,Supplies and Services,324117,Provisions E324,06-Dec-2018,000008115253553,JR HOLLAND FOODSERVICE,5422,Catering costs - provisions,69.79,0.00,69.79
Children and Young Peoples Services,Head of Childrens Social Care,085334,West Rainton Satelite Home,Supplies and Services,304259,Equipment and Materials,06-Dec-2018,000008115253577,WILKO DURHAM 426,5722,Equipment-purchase and rental,28.30,0.00,28.30
Children and Young Peoples Services,Head of Childrens Social Care,085334,West Rainton Satelite Home,Supplies and Services,324117,Provisions E324,06-Dec-2018,000008115253579,GEORGE BOLAM (FOODS) L,5499,Catering costs - provisions,183.85,0.00,183.85
Children and Young Peoples Services,Head of Childrens Social Care,085334,West Rainton Satelite Home,Supplies and Services,324117,Provisions E324,06-Dec-2018,000008115253581,TESCO STORES 2371,5411,Catering costs - provisions,28.67,0.00,28.67
Children and Young Peoples Services,Head of Childrens Social Care,085334,West Rainton Satelite Home,Supplies and Services,324117,Provisions E324,06-Dec-2018,000008115253583,TESCO STORES 2371,5411,Catering costs - provisions,5.00,0.00,5.00
Children and Young Peoples Services,Head of Childrens Social Care,085334,West Rainton Satelite Home,Supplies and Services,328041,Clothing uniforms and laundry E328,06-Dec-2018,000008115253585,ARGOS LTD,5310,Clothing uniforms and laundry,179.99,0.00,179.99
Children and Young Peoples Services,Head of Childrens Social Care,085334,West Rainton Satelite Home,Supplies and Services,328041,Clothing uniforms and laundry E328,06-Dec-2018,000008115253587,B & M RETAIL,5310,Clothing uniforms and laundry,21.98,0.00,21.98
Children and Young Peoples Services,Head of Childrens Social Care,085334,West Rainton Satelite Home,Supplies and Services,304259,Equipment and Materials,06-Dec-2018,000008115253589,SPORTSDIRECT 264,5941,Equipment-purchase and rental,67.00,0.00,67.00
Regeneration and Local Services,Direct Services,010561,Fleet - Morrison Busty Fleet,Transport,215013,Running Costs of Vehicles,06-Dec-2018,000008115253591,DVLA VEHICLE TAX,9399,Vehicle Excise Duty (VED),652.50,0.00,652.50
Regeneration and Local Services,Direct Services,010551,Fleet - Chilton Fleet,Transport,215013,Running Costs of Vehicles,06-Dec-2018,000008115253593,DVLA VEHICLE TAX,9399,Vehicle Excise Duty (VED),252.50,0.00,252.50
Regeneration and Local Services,Direct Services,010561,Fleet - Morrison Busty Fleet,Transport,215013,Running Costs of Vehicles,06-Dec-2018,000008115253595,DVLA VEHICLE TAX,9399,Vehicle Excise Duty (VED),652.50,0.00,652.50
Regeneration and Local Services,Direct Services,010561,Fleet - Morrison Busty Fleet,Transport,215013,Running Costs of Vehicles,06-Dec-2018,000008115253597,DVLA VEHICLE TAX,9399,Vehicle Excise Duty (VED),252.50,0.00,252.50
Regeneration and Local Services,Direct Services,010900,Fleet - Meadowfield Fleet,Transport,215013,Running Costs of Vehicles,06-Dec-2018,000008115253599,DVLA VEHICLE TAX,9399,Vehicle Excise Duty (VED),252.50,0.00,252.50
Regeneration and Local Services,Direct Services,010551,Fleet - Chilton Fleet,Transport,215013,Running Costs of Vehicles,06-Dec-2018,000008115253601,DVLA VEHICLE TAX,9399,Vehicle Excise Duty (VED),652.50,0.00,652.50
Regeneration and Local Services,Direct Services,010561,Fleet - Morrison Busty Fleet,Transport,215013,Running Costs of Vehicles,06-Dec-2018,000008115253603,DVLA VEHICLE TAX,9399,Vehicle Excise Duty (VED),252.50,0.00,252.50
Regeneration and Local Services,Direct Services,010864,Fleet - Hackworth Road Fleet,Transport,215013,Running Costs of Vehicles,06-Dec-2018,000008115253605,DVLA VEHICLE TAX,9399,Vehicle Excise Duty (VED),167.50,0.00,167.50
Regeneration and Local Services,Direct Services,010864,Fleet - Hackworth Road Fleet,Transport,215013,Running Costs of Vehicles,06-Dec-2018,000008115253607,DVLA VEHICLE TAX,9399,Vehicle Excise Duty (VED),252.50,0.00,252.50
Regeneration and Local Services,Direct Services,010551,Fleet - Chilton Fleet,Transport,215013,Running Costs of Vehicles,06-Dec-2018,000008115253609,DVLA VEHICLE TAX,9399,Vehicle Excise Duty (VED),252.50,0.00,252.50
Regeneration and Local Services,Direct Services,010900,Fleet - Meadowfield Fleet,Transport,215013,Running Costs of Vehicles,06-Dec-2018,000008115253613,DVLA VEHICLE TAX,9399,Vehicle Excise Duty (VED),167.50,0.00,167.50
Regeneration and Local Services,Direct Services,010561,Fleet - Morrison Busty Fleet,Transport,215013,Running Costs of Vehicles,06-Dec-2018,000008115253615,DVLA VEHICLE TAX,9399,Vehicle Excise Duty (VED),652.50,0.00,652.50
Regeneration and Local Services,Direct Services,010561,Fleet - Morrison Busty Fleet,Transport,215013,Running Costs of Vehicles,06-Dec-2018,000008115253617,DVLA VEHICLE TAX,9399,Vehicle Excise Duty (VED),252.50,0.00,252.50
Regeneration and Local Services,Direct Services,010561,Fleet - Morrison Busty Fleet,Transport,215013,Running Costs of Vehicles,06-Dec-2018,000008115253619,DVLA VEHICLE TAX,9399,Vehicle Excise Duty (VED),252.50,0.00,252.50
Regeneration and Local Services,Direct Services,010551,Fleet - Chilton Fleet,Transport,215013,Running Costs of Vehicles,06-Dec-2018,000008115253621,DVLA VEHICLE TAX,9399,Vehicle Excise Duty (VED),652.50,0.00,652.50
Regeneration and Local Services,Direct Services,010561,Fleet - Morrison Busty Fleet,Transport,215013,Running Costs of Vehicles,06-Dec-2018,000008115253625,DVLA VEHICLE TAX,9399,Vehicle Excise Duty (VED),652.50,0.00,652.50
Regeneration and Local Services,Direct Services,010864,Fleet - Hackworth Road Fleet,Transport,215013,Running Costs of Vehicles,06-Dec-2018,000008115253627,DVLA VEHICLE TAX,9399,Vehicle Excise Duty (VED),167.50,0.00,167.50
Regeneration and Local Services,Direct Services,010551,Fleet - Chilton Fleet,Transport,215013,Running Costs of Vehicles,06-Dec-2018,000008115253629,DVLA VEHICLE TAX,9399,Vehicle Excise Duty (VED),652.50,0.00,652.50
Regeneration and Local Services,Direct Services,010551,Fleet - Chilton Fleet,Transport,215013,Running Costs of Vehicles,06-Dec-2018,000008115253631,DVLA VEHICLE TAX,9399,Vehicle Excise Duty (VED),252.50,0.00,252.50
Regeneration and Local Services,Direct Services,010561,Fleet - Morrison Busty Fleet,Transport,215013,Running Costs of Vehicles,06-Dec-2018,000008115253633,DVLA VEHICLE TAX,9399,Vehicle Excise Duty (VED),252.50,0.00,252.50
Regeneration and Local Services,Direct Services,010551,Fleet - Chilton Fleet,Transport,215013,Running Costs of Vehicles,06-Dec-2018,000008115253635,DVLA VEHICLE TAX,9399,Vehicle Excise Duty (VED),252.50,0.00,252.50
Regeneration and Local Services,Direct Services,010561,Fleet - Morrison Busty Fleet,Transport,215013,Running Costs of Vehicles,06-Dec-2018,000008115253637,DVLA VEHICLE TAX,9399,Vehicle Excise Duty (VED),652.50,0.00,652.50
Regeneration and Local Services,Direct Services,010900,Fleet - Meadowfield Fleet,Transport,215013,Running Costs of Vehicles,06-Dec-2018,000008115253639,DVLA VEHICLE TAX,9399,Vehicle Excise Duty (VED),142.50,0.00,142.50
Regeneration and Local Services,Direct Services,010561,Fleet - Morrison Busty Fleet,Transport,215013,Running Costs of Vehicles,06-Dec-2018,000008115253641,DVLA VEHICLE TAX,9399,Vehicle Excise Duty (VED),167.50,0.00,167.50
Regeneration and Local Services,Direct Services,010561,Fleet - Morrison Busty Fleet,Transport,215013,Running Costs of Vehicles,06-Dec-2018,000008115253643,DVLA VEHICLE TAX,9399,Vehicle Excise Duty (VED),142.50,0.00,142.50
Regeneration and Local Services,Technical Services,025121,Strategic Highways - Drainage and Coast Protection,Third Party Payments 4THIRD,430100,Rendered by Private Contractors,06-Dec-2018,000008115253653,WALLINGFORD HYDROS,7399,Payments to sub-contractors,180.00,30.00,150.00
Children and Young Peoples Services,"Head of Early Help, Inclusion and Vulnerable Children",085962,Aycliffe Secure - Durham,Supplies and Services,324117,Provisions E324,06-Dec-2018,000008115253687,TESCO STORES 6329,5411,Catering costs - provisions,84.82,0.00,84.82
Regeneration and Local Services,Culture & Sport,054813,Gala Theatre - Technical,Supplies and Services,312011,Newspapers books and periodicals E312,06-Dec-2018,000008115253689,AMZN Mktp UK M055M9DY4,5942,Books-school library,79.98,0.00,79.98
Regeneration and Local Services,Culture & Sport,054813,Gala Theatre - Technical,Supplies and Services,304221,Equipment and Materials,06-Dec-2018,000008115253691,B & Q 1006,5211,Direct materials,111.49,0.00,111.49
Regeneration and Local Services,Direct Services,010301,C&G - North Grounds Maintenance,Supplies and Services,304221,Equipment and Materials,06-Dec-2018,000008115253701,HEXHAM MACHINERY CENTR,5261,Direct materials,51.60,8.60,43.00
Regeneration and Local Services,Direct Services,010301,C&G - North Grounds Maintenance,Supplies and Services,304221,Equipment and Materials,06-Dec-2018,000008115253703,AZTEC CHEMICALS LTD,5169,Direct materials,198.00,33.00,165.00
Regeneration and Local Services,Direct Services,010301,C&G - North Grounds Maintenance,Supplies and Services,304221,Equipment and Materials,06-Dec-2018,000008115253705,AZTEC CHEMICALS LTD,5169,Direct materials,424.80,70.80,354.00
Regeneration and Local Services,Direct Services,010301,C&G - North Grounds Maintenance,Supplies and Services,304221,Equipment and Materials,06-Dec-2018,000008115253707,HARELAW SAWMILL,5211,Direct materials,45.07,7.51,37.56
Regeneration and Local Services,Culture & Sport,011060,Hardwick Park Catering,Supplies and Services,324117,Provisions E324,06-Dec-2018,000008115253709,JR HOLLAND FOODSERVICE,5422,Catering costs - provisions,49.34,0.00,49.34
Regeneration and Local Services,Culture & Sport,054815,Gala Theatre Stage School,Supplies and Services,324117,Provisions E324,06-Dec-2018,000008115253739,TESCO STORES 6029,5411,Catering costs - provisions,5.30,0.00,5.30
Regeneration and Local Services,Culture & Sport,054815,Gala Theatre Stage School,Supplies and Services,304403,Equipment and Materials,06-Dec-2018,000008115253741,CARD FACTORY,5947,Other consumables,9.94,0.00,9.94
Regeneration and Local Services,Direct Services,021234,Catering - Locomotion,Premises,145009,Cleaning and Domestic Supplies,06-Dec-2018,000008115253743,ALLIANCE DISPOSABLES L,2842,Other cleaning and domestic costs,9.52,1.59,7.93
Regeneration and Local Services,Direct Services,021234,Catering - Locomotion,Supplies and Services,324117,Provisions E324,06-Dec-2018,000008115253745,JR HOLLAND FOODSERVICE,5422,Catering costs - provisions,72.37,0.00,72.37
Regeneration and Local Services,Direct Services,010525,Catering - Green Lane,Premises,145009,Cleaning and Domestic Supplies,06-Dec-2018,000008115253755,ALLIANCE DISPOSABLES L,2842,Other cleaning and domestic costs,215.09,35.85,179.24
Regeneration and Local Services,Economic Development and Housing,030553,Europe Direct Scheme,Supplies and Services,324117,Provisions E324,06-Dec-2018,000008115253771,TESCO STORES 6029,5411,Catering costs - provisions,21.95,0.00,21.95
Regeneration and Local Services,Economic Development and Housing,030553,Europe Direct Scheme,Supplies and Services,332047,Printing Stationery and Gen Off Exps,06-Dec-2018,000008115253773,RYMAN,5943,Stationery,6.04,1.01,5.03
Regeneration and Local Services,Economic Development and Housing,030553,Europe Direct Scheme,Transport,235057,Public Transport,06-Dec-2018,000008115253775,WALKERGATE CAR PAR,7523,Staff travelling,1.80,0.00,1.80
Children and Young Peoples Services,"Head of Early Help, Inclusion and Vulnerable Children",088108,Spennymoor & Shildon 0-19 Targeted Family Support,Supplies and Services,324117,Provisions E324,06-Dec-2018,000008115253777,ASDA STORES,5411,Catering costs - provisions,17.29,0.00,17.29
Children and Young Peoples Services,"Head of Early Help, Inclusion and Vulnerable Children",088108,Spennymoor & Shildon 0-19 Targeted Family Support,Supplies and Services,324117,Provisions E324,06-Dec-2018,000008115253781,ASDA STORES,5411,Catering costs - provisions,8.50,0.00,8.50
Children and Young Peoples Services,"Head of Early Help, Inclusion and Vulnerable Children",071443,Stanley One Point Hub,Supplies and Services,308011,Furniture,06-Dec-2018,000008115253785,MAGUIRES,5713,Furniture repair and replacement,500.00,0.00,500.00
Regeneration and Local Services,EnvironmentHealth & Consumer Protection,011035,Consumer Protection,Supplies and Services,304259,Equipment and Materials,06-Dec-2018,000008115253823,CANFORD AUDIO PLC,5732,Equipment-purchase and rental,343.20,57.20,286.00
Children and Young Peoples Services,Head of Childrens Social Care,085334,West Rainton Satelite Home,Supplies and Services,312011,Newspapers books and periodicals E312,06-Dec-2018,000008115253825,Amazon.co.uk M08YK9D44,5969,Books-school library,12.99,0.00,12.99
Children and Young Peoples Services,Head of Childrens Social Care,085342,9 Cedar Drive Aycliffe,Supplies and Services,324117,Provisions E324,06-Dec-2018,000008115253831,TESCO STORES 2916,5411,Catering costs - provisions,15.62,0.00,15.62
Regeneration and Local Services,Direct Services,030691,"Catering - Durham Dales Centre			",Supplies and Services,324117,Provisions E324,06-Dec-2018,000008115253841,JR HOLLAND FOODSERVICE,5422,Catering costs - provisions,-5.58,0.00,-5.58
Regeneration and Local Services,Direct Services,030691,"Catering - Durham Dales Centre			",Supplies and Services,324117,Provisions E324,06-Dec-2018,000008115253845,JR HOLLAND FOODSERVICE,5422,Catering costs - provisions,-10.29,0.00,-10.29
Regeneration and Local Services,Culture & Sport,054399,Local Delivery-Libraries,Supplies and Services,312009,Newspapers books and periodicals E312,06-Dec-2018,000008115253873,Amazon.co.uk M03FR56Y4,5969,Newspapers books and periodicals,7.99,0.00,7.99
Children and Young Peoples Services,"Head of Early Help, Inclusion and Vulnerable Children",074000,TTF-Attachment and Results,Transfer Payments,525033,Other,06-Dec-2018,000008115253901,FRANKS THE FLOORING ST,5713,Grants to individuals,150.00,0.00,150.00
Resources,Digital and Customer Services,065335,School Services - Implementations,Supplies and Services,304639,Equipment and Materials,06-Dec-2018,000008115253907,AMZN Mktp UK M05JB0D24,5942,Technicians-supplies,10.94,0.00,10.94
Children and Young Peoples Services,"Head of Early Help, Inclusion and Vulnerable Children",085957,Secure Management,Supplies and Services,324117,Provisions E324,06-Dec-2018,000008115253917,TESCO DELIVERY SAVER2,5968,Catering costs - provisions,6.99,0.00,6.99
Children and Young Peoples Services,"Head of Early Help, Inclusion and Vulnerable Children",085955,Auckland,Supplies and Services,308011,Furniture,06-Dec-2018,000008115253919,WWW.ARGOS.CO.UK,5310,Furniture repair and replacement,134.97,22.50,112.47
Regeneration and Local Services,Economic Development and Housing,031500,Housing Solutions - Core Team,Supplies and Services,352001,Conference Expenses,06-Dec-2018,000008115253925,HAYAT HOTEL,7011,Conferencesseminars fees etc,150.00,0.00,150.00
Children and Young Peoples Services,Head of Childrens Social Care,085372,Young People Services - North,Supplies and Services,304259,Equipment and Materials,06-Dec-2018,000008115253935,WWW.DURHAM.GOV.UK,9399,Equipment-purchase and rental,12.00,0.00,12.00
Children and Young Peoples Services,Childrens Services Operational Support,052986,CYPS - Locality and Operational Support,Supplies and Services,304259,Equipment and Materials,06-Dec-2018,000008115253937,WWW.DURHAM.GOV.UK,9399,Equipment-purchase and rental,36.00,0.00,36.00
Regeneration and Local Services,Transport and Contracted Services,031704,Care Connect - CCTV Countywide,Supplies and Services,384956,Miscellaneous Expenses,06-Dec-2018,000008115253941,SECURITY INDUSTRY,7393,Licences,220.00,0.00,220.00
Regeneration and Local Services,Culture & Sport,026591,Hardwick Park,Supplies and Services,304245,Equipment and Materials,06-Dec-2018,000008115253945,AMZN Mktp UK M01ND8664,5942,Materials,21.99,0.00,21.99
Regeneration and Local Services,Culture & Sport,026591,Hardwick Park,Supplies and Services,304245,Equipment and Materials,06-Dec-2018,000008115253949,Amazon.co.uk M01QJ96O4,5969,Materials,34.99,5.83,29.16
Regeneration and Local Services,Culture & Sport,026591,Hardwick Park,Supplies and Services,304245,Equipment and Materials,06-Dec-2018,000008115253951,Amazon.co.uk M05KB9604,5969,Materials,47.99,8.00,39.99
Regeneration and Local Services,Culture & Sport,026591,Hardwick Park,Supplies and Services,304245,Equipment and Materials,06-Dec-2018,000008115253955,Amazon.co.uk M05S66664,5969,Materials,47.99,8.00,39.99
Regeneration and Local Services,Culture & Sport,026591,Hardwick Park,Supplies and Services,304245,Equipment and Materials,06-Dec-2018,000008115253959,Amazon.co.uk M06QG3684,5969,Materials,34.99,5.83,29.16
Regeneration and Local Services,EnvironmentHealth & Consumer Protection,010809,Env HealthConsumer Protection Manag,Supplies and Services,304403,Equipment and Materials,06-Dec-2018,000008115253961,PROPERTY PERSPECTIVE L,5999,Other consumables,342.00,57.00,285.00
Children and Young Peoples Services,"Head of Early Help, Inclusion and Vulnerable Children",085801,CDYOS - Support,Supplies and Services,348037,Subsistence E348,06-Dec-2018,000008115253973,BISHOPS` MILL,5812,Subsistence,51.72,8.62,43.10
Regeneration and Local Services,Economic Development and Housing,030554,International Relations,Supplies and Services,340001,Postages E340,06-Dec-2018,000008115254003,WWW.DHL INTERNATIONAL,4215,Postages,51.00,8.50,42.50
Adult and Health Services,Head of Adults,055807,Newton Aycliffe Pathways,Supplies and Services,324117,Provisions E324,06-Dec-2018,000008115254029,SAINSBURYS SACAT 0776,5411,Catering costs - provisions,19.60,0.00,19.60
Resources,Digital and Customer Services,069010,Administration,Supplies and Services,340001,Postages E340,06-Dec-2018,000008115254037,ROYAL MAIL ONLINE SHOP,9402,Postages,221.05,0.00,221.05
Resources,Digital and Customer Services,069010,Administration,Supplies and Services,312011,Newspapers books and periodicals E312,06-Dec-2018,000008115254041,Amazon.co.uk M06OO4DU4,5969,Books-school library,27.35,4.56,22.79
Regeneration and Local Services,Direct Services,021235,Catering - Wharton Park,Supplies and Services,324117,Provisions E324,06-Dec-2018,000008115254051,JR HOLLAND FOODSERVICE,5422,Catering costs - provisions,-0.57,0.00,-0.57
Resources,Finance & Transactional Services,065116,Creditors/Purchasing,Supplies and Services,328041,Clothing uniforms and laundry E328,06-Dec-2018,000008115254061,WWW.ARGOS.CO.UK,5310,Clothing uniforms and laundry,329.98,0.00,329.98
Children and Young Peoples Services,Head of Childrens Social Care,071442,Durham One Point Hub,Supplies and Services,328041,Clothing uniforms and laundry E328,06-Dec-2018,000008115254129,WWW.ARGOS.CO.UK,5310,Clothing uniforms and laundry,47.28,0.00,47.28
Children and Young Peoples Services,Head of Childrens Social Care,085511,Emergency Duty Team,Employees,040149,Recruitment Instruction and Training,06-Dec-2018,000008121971797,PREMIER INN,3811,Training-all costs,75.00,0.00,75.00
Regeneration and Local Services,Economic Development and Housing,030508,Erasmas plus Grant,Transport,235057,Public Transport,06-Dec-2018,000008121972815,ROYAL DUTCH AIRLINES (KLM),3010,Staff travelling,252.96,0.00,252.96
Regeneration and Local Services,Economic Development and Housing,030508,Erasmas plus Grant,Transport,235057,Public Transport,06-Dec-2018,000008121972817,ROYAL DUTCH AIRLINES (KLM),3010,Staff travelling,252.96,0.00,252.96
Resources,Finance & Transactional Services,065116,Creditors/Purchasing,Supplies and Services,384999,Miscellaneous Expenses,06-Dec-2018,000008121972969,PAYPAL FULLBORE,5945,Other expenses,-70.90,0.00,-70.90
Regeneration and Local Services,Direct Services,021242,Catering - County Hall,Supplies and Services,324117,Provisions E324,06-Dec-2018,000008134119821,BATLEYS PERTH,5300,Catering costs - provisions,667.50,111.25,556.25
Regeneration and Local Services,Direct Services,021242,Catering - County Hall,Supplies and Services,324117,Provisions E324,06-Dec-2018,000008134119821 - 1,BATLEYS PERTH,5300,Catering costs - provisions,279.43,,279.43
Regeneration and Local Services,Direct Services,021242,Catering - County Hall,Supplies and Services,324117,Provisions E324,06-Dec-2018,000008134119837,BATLEYS PERTH,5300,Catering costs - provisions,23.72,3.95,19.77
Regeneration and Local Services,Culture & Sport,011060,Hardwick Park Catering,Supplies and Services,324117,Provisions E324,06-Dec-2018,000008196374689,BATLEYS PERTH,5300,Catering costs - provisions,115.98,19.33,96.65
Regeneration and Local Services,Culture & Sport,011060,Hardwick Park Catering,Supplies and Services,324117,Provisions E324,06-Dec-2018,000008196374689 - 1,BATLEYS PERTH,5300,Catering costs - provisions,112.15,,112.15
Regeneration and Local Services,Culture & Sport,011060,Hardwick Park Catering,Supplies and Services,324117,Provisions E324,06-Dec-2018,000008196374699,BATLEYS PERTH,5300,Catering costs - provisions,58.86,9.81,49.05
Regeneration and Local Services,Culture & Sport,011060,Hardwick Park Catering,Supplies and Services,324117,Provisions E324,06-Dec-2018,000008196374699 - 1,BATLEYS PERTH,5300,Catering costs - provisions,70.35,,70.35
Regeneration and Local Services,Culture & Sport,054235,Bishop Auckland Town Hall Cafe,Supplies and Services,324117,Provisions E324,06-Dec-2018,000008196374959,BATLEYS PERTH,5300,Catering costs - provisions,-12.54,-2.09,-10.45
Regeneration and Local Services,Spatial Policy Planning Assets & Environment,031081,Heritage Coast,Supplies and Services,312009,Newspapers books and periodicals E312,07-Dec-2018,000008115253459,Amazon.co.uk M008H7D74,5969,Newspapers books and periodicals,13.75,0.00,13.75
Resources,Digital and Customer Services,069010,Administration,Supplies and Services,312011,Newspapers books and periodicals E312,07-Dec-2018,000008115254045,AMZN Mktp UK M018B1DZ4,5942,Books-school library,6.05,1.01,5.04
Children and Young Peoples Services,Head of Education and Skills,071801,Selby Cottage Childcare Centre,Supplies and Services,324117,Provisions E324,07-Dec-2018,000008121971319,ASDA GROCERIES ONLINE,5411,Catering costs - provisions,72.81,0.00,72.81
Regeneration and Local Services,Economic Development and Housing,031576,B& B - Temp Accom,Supplies and Services,352001,Conference Expenses,07-Dec-2018,000008121971337,HAYAT HOTEL,7011,Conferencesseminars fees etc,150.00,0.00,150.00
Resources,Legal & Democratic Services,067910,Democratic Representation,Supplies and Services,344033,Telephones,07-Dec-2018,000008121971343,AMZN Mktp UK M09J22SW4,5942,Telephones general-all costs,8.98,0.00,8.98
Children and Young Peoples Services,Head of Education and Skills,075021,Youth Employment Initiative,Supplies and Services,384199,Miscellaneous Expenses,07-Dec-2018,000008121971355,WWW.DURHAM.GOV.UK,9399,Other hired and contracted services,12.00,0.00,12.00
Regeneration and Local Services,Direct Services,010383,C&G - South Street Cleansing,Supplies and Services,312011,Newspapers books and periodicals E312,07-Dec-2018,000008121971395,Snowballs,5251,Books-school library,106.15,17.69,88.46
Dedicated Schools Grant,DSG High Needs Block,079050,SENSS-Sensory,Supplies and Services,304403,Equipment and Materials,07-Dec-2018,000008121971451,HOME BARGAINS,5251,Other consumables,24.87,0.00,24.87
Children and Young Peoples Services,Head of Childrens Social Care,085332,Middlestone Moor CU,Supplies and Services,304083,Equipment and Materials,07-Dec-2018,000008121971467,SAINSBURYS 2199,5411,Catering equipment,38.59,0.00,38.59
Children and Young Peoples Services,Head of Childrens Social Care,085332,Middlestone Moor CU,Supplies and Services,324117,Provisions E324,07-Dec-2018,000008121971471,SAINSBURYS 2199,5411,Catering costs - provisions,24.23,4.04,20.19
Children and Young Peoples Services,Head of Childrens Social Care,085332,Middlestone Moor CU,Supplies and Services,324117,Provisions E324,07-Dec-2018,000008121971473,MARKS&SPENCER PLC SF,5411,Catering costs - provisions,6.15,0.00,6.15
Children and Young Peoples Services,Head of Childrens Social Care,085332,Middlestone Moor CU,Supplies and Services,324117,Provisions E324,07-Dec-2018,000008121971479,TESCO STORES 2371,5411,Catering costs - provisions,117.54,0.00,117.54
Regeneration and Local Services,Economic Development and Housing,030699,Business Growth and Innovation General,Supplies and Services,304999,Equipment and Materials,07-Dec-2018,000008121971481,LINKEDIN-438 6222753,5968,Misc equipment tools and materials,35.66,0.00,35.66
Regeneration and Local Services,Economic Development and Housing,030699,Business Growth and Innovation General,Supplies and Services,304999,Equipment and Materials,07-Dec-2018,000008121971487,WWW.PARAGON.NET.UK RT,5968,Misc equipment tools and materials,39.56,6.59,32.97
Regeneration and Local Services,Direct Services,010367,C&G - South Grounds Maintenance,Supplies and Services,304221,Equipment and Materials,07-Dec-2018,000008121971569,EAST DURHAM GARDEN CEN,5261,Direct materials,214.79,0.00,214.79
Regeneration and Local Services,Direct Services,021242,Catering - County Hall,Premises,145009,Cleaning and Domestic Supplies,07-Dec-2018,000008121971641,ALLIANCE DISPOSABLES L,2842,Other cleaning and domestic costs,58.80,9.80,49.00
Regeneration and Local Services,Direct Services,021242,Catering - County Hall,Supplies and Services,324117,Provisions E324,07-Dec-2018,000008121971651,HOPWELLS LTD,5811,Catering costs - provisions,379.46,0.00,379.46
Regeneration and Local Services,Direct Services,021242,Catering - County Hall,Supplies and Services,324117,Provisions E324,07-Dec-2018,000008121971659,HOPWELLS LTD,5811,Catering costs - provisions,325.17,0.00,325.17
Regeneration and Local Services,Direct Services,021242,Catering - County Hall,Supplies and Services,324117,Provisions E324,07-Dec-2018,000008121971663,HOPWELLS LTD,5811,Catering costs - provisions,323.40,0.00,323.40
Regeneration and Local Services,Direct Services,021242,Catering - County Hall,Supplies and Services,324117,Provisions E324,07-Dec-2018,000008121971669,HOPWELLS LTD,5811,Catering costs - provisions,231.80,0.00,231.80
Regeneration and Local Services,Direct Services,021242,Catering - County Hall,Supplies and Services,324117,Provisions E324,07-Dec-2018,000008121971673,HOPWELLS LTD,5811,Catering costs - provisions,223.58,0.00,223.58
Regeneration and Local Services,Direct Services,021242,Catering - County Hall,Supplies and Services,324117,Provisions E324,07-Dec-2018,000008121971679,HOPWELLS LTD,5811,Catering costs - provisions,200.79,0.00,200.79
Regeneration and Local Services,Direct Services,021242,Catering - County Hall,Supplies and Services,324117,Provisions E324,07-Dec-2018,000008121971681,JR HOLLAND FOODSERVICE,5422,Catering costs - provisions,78.33,0.00,78.33
Regeneration and Local Services,Direct Services,021242,Catering - County Hall,Supplies and Services,324117,Provisions E324,07-Dec-2018,000008121971693,JR HOLLAND FOODSERVICE,5422,Catering costs - provisions,13.80,0.00,13.80
Regeneration and Local Services,Direct Services,021242,Catering - County Hall,Supplies and Services,324117,Provisions E324,07-Dec-2018,000008121971697,JR HOLLAND FOODSERVICE,5422,Catering costs - provisions,5.52,0.00,5.52
Regeneration and Local Services,Direct Services,021242,Catering - County Hall,Supplies and Services,324117,Provisions E324,07-Dec-2018,000008121971701,HOPWELLS LTD,5811,Catering costs - provisions,-75.56,0.00,-75.56
Regeneration and Local Services,Culture & Sport,054812,Gala Theatre - Catering etc,Supplies and Services,324117,Provisions E324,07-Dec-2018,000008121971741,HOPWELLS LTD,5811,Catering costs - provisions,54.65,0.00,54.65
Children and Young Peoples Services,Head of Childrens Social Care,085511,Emergency Duty Team,Supplies and Services,352001,Conference Expenses,07-Dec-2018,000008121971801,HOLIDAY INNS,3501,Conferencesseminars fees etc,64.99,0.00,64.99
Children and Young Peoples Services,Head of Childrens Social Care,085333,Coxhoe Satelite Home,Supplies and Services,328041,Clothing uniforms and laundry E328,07-Dec-2018,000008121971837,B & M RETAIL,5310,Clothing uniforms and laundry,12.14,0.00,12.14
Children and Young Peoples Services,Head of Childrens Social Care,085333,Coxhoe Satelite Home,Supplies and Services,328041,Clothing uniforms and laundry E328,07-Dec-2018,000008121971841,B & M RETAIL,5310,Clothing uniforms and laundry,6.99,0.00,6.99
Children and Young Peoples Services,Head of Childrens Social Care,085333,Coxhoe Satelite Home,Supplies and Services,324117,Provisions E324,07-Dec-2018,000008121971845,ALDI 12 774,5411,Catering costs - provisions,194.67,0.00,194.67
Children and Young Peoples Services,Head of Childrens Social Care,085342,9 Cedar Drive Aycliffe,Supplies and Services,324117,Provisions E324,07-Dec-2018,000008121971871,TESCO STORES 2916,5411,Catering costs - provisions,23.17,0.00,23.17
Children and Young Peoples Services,Head of Childrens Social Care,085342,9 Cedar Drive Aycliffe,Supplies and Services,324117,Provisions E324,07-Dec-2018,000008121971873,ALDI 74 774,5411,Catering costs - provisions,7.38,0.00,7.38
Children and Young Peoples Services,Head of Childrens Social Care,085342,9 Cedar Drive Aycliffe,Supplies and Services,324117,Provisions E324,07-Dec-2018,000008121971877,ALDI,5411,Catering costs - provisions,149.99,25.00,124.99
Children and Young Peoples Services,Head of Education and Skills,071903,EYDCP-Sustainability EDS,Supplies and Services,312011,Newspapers books and periodicals E312,07-Dec-2018,000008121971977,HOME BARGAINS,5251,Books-school library,19.88,0.00,19.88
Children and Young Peoples Services,"Head of Early Help, Inclusion and Vulnerable Children",085956,Lumley,Supplies and Services,324117,Provisions E324,07-Dec-2018,000008121972027,TESCO STORES 6329,5411,Catering costs - provisions,71.22,0.00,71.22
Regeneration and Local Services,Culture & Sport,054813,Gala Theatre - Technical,Supplies and Services,312011,Newspapers books and periodicals E312,07-Dec-2018,000008121972035,AMZN Mktp UK M00F28SW4,5942,Books-school library,14.95,0.00,14.95
Regeneration and Local Services,Culture & Sport,054813,Gala Theatre - Technical,Supplies and Services,312011,Newspapers books and periodicals E312,07-Dec-2018,000008121972041,AMZN MKTP UK M06SY3SK4,5942,Books-school library,44.97,0.00,44.97
Regeneration and Local Services,Culture & Sport,054813,Gala Theatre - Technical,Supplies and Services,312011,Newspapers books and periodicals E312,07-Dec-2018,000008121972045,Amazon.co.uk M07G88264,5969,Books-school library,23.99,0.00,23.99
Children and Young Peoples Services,Childrens Services Operational Support,052986,CYPS - Locality and Operational Support,Supplies and Services,308011,Furniture,07-Dec-2018,000008121972081,EDS BEDS LTD,5712,Furniture repair and replacement,114.00,0.00,114.00
Regeneration and Local Services,Culture & Sport,011060,Hardwick Park Catering,Supplies and Services,324117,Provisions E324,07-Dec-2018,000008121972091,HOPWELLS LTD,5811,Catering costs - provisions,14.76,2.46,12.30
Regeneration and Local Services,Culture & Sport,011060,Hardwick Park Catering,Supplies and Services,324117,Provisions E324,07-Dec-2018,000008121972091 - 1,HOPWELLS LTD,5811,Catering costs - provisions,136.26,,136.26
Regeneration and Local Services,Culture & Sport,011060,Hardwick Park Catering,Supplies and Services,324117,Provisions E324,07-Dec-2018,000008121972097,HOPWELLS LTD,5811,Catering costs - provisions,56.40,9.40,47.00
Regeneration and Local Services,Culture & Sport,011060,Hardwick Park Catering,Supplies and Services,324117,Provisions E324,07-Dec-2018,000008121972097 - 1,HOPWELLS LTD,5811,Catering costs - provisions,60.61,,60.61
Regeneration and Local Services,Culture & Sport,011060,Hardwick Park Catering,Supplies and Services,324117,Provisions E324,07-Dec-2018,000008121972105,HOPWELLS LTD,5811,Catering costs - provisions,60.00,0.00,60.00
Regeneration and Local Services,Culture & Sport,011060,Hardwick Park Catering,Supplies and Services,324117,Provisions E324,07-Dec-2018,000008121972111,HOPWELLS LTD,5811,Catering costs - provisions,38.73,0.00,38.73
Regeneration and Local Services,Culture & Sport,011060,Hardwick Park Catering,Supplies and Services,324117,Provisions E324,07-Dec-2018,000008121972119,JR HOLLAND FOODSERVICE,5422,Catering costs - provisions,22.58,0.00,22.58
Regeneration and Local Services,Culture & Sport,054815,Gala Theatre Stage School,Supplies and Services,372009,Subscriptions E372,07-Dec-2018,000008121972161,SAVANTINI LIMITED,7299,Subscriptions 372009,70.93,0.00,70.93
Regeneration and Local Services,Direct Services,021234,Catering - Locomotion,Supplies and Services,324117,Provisions E324,07-Dec-2018,000008121972165,HOPWELLS LTD,5811,Catering costs - provisions,86.46,14.41,72.05
Regeneration and Local Services,Direct Services,021234,Catering - Locomotion,Supplies and Services,324117,Provisions E324,07-Dec-2018,000008121972165 - 1,HOPWELLS LTD,5811,Catering costs - provisions,269.14,,269.14
Regeneration and Local Services,Direct Services,021234,Catering - Locomotion,Supplies and Services,324117,Provisions E324,07-Dec-2018,000008121972171,JR HOLLAND FOODSERVICE,5422,Catering costs - provisions,1.04,0.00,1.04
Children and Young Peoples Services,Head of Childrens Social Care,085331,New Lea Childrens Home,Supplies and Services,308011,Furniture,07-Dec-2018,000008121972179,WWW.IKEA.COM,5712,Furniture repair and replacement,235.00,39.17,195.83
Regeneration and Local Services,Direct Services,010525,Catering - Green Lane,Supplies and Services,324117,Provisions E324,07-Dec-2018,000008121972183,HOPWELLS LTD,5811,Catering costs - provisions,151.53,0.00,151.53
Regeneration and Local Services,Direct Services,010525,Catering - Green Lane,Supplies and Services,324117,Provisions E324,07-Dec-2018,000008121972189,HOPWELLS LTD,5811,Catering costs - provisions,97.85,0.00,97.85
Regeneration and Local Services,Direct Services,010525,Catering - Green Lane,Supplies and Services,324117,Provisions E324,07-Dec-2018,000008121972193,HOPWELLS LTD,5811,Catering costs - provisions,93.74,0.00,93.74
Regeneration and Local Services,Direct Services,010525,Catering - Green Lane,Supplies and Services,324117,Provisions E324,07-Dec-2018,000008121972197,JR HOLLAND FOODSERVICE,5422,Catering costs - provisions,8.54,0.00,8.54
Regeneration and Local Services,Economic Development and Housing,030554,International Relations,Transport,235057,Public Transport,07-Dec-2018,000008121972305,ROYAL DUTCH AIRLINES (KLM),3010,Staff travelling,220.83,0.00,220.83
Regeneration and Local Services,Economic Development and Housing,030554,International Relations,Transport,235057,Public Transport,07-Dec-2018,000008121972307,ROYAL DUTCH AIRLINES (KLM),3010,Staff travelling,220.83,0.00,220.83
Regeneration and Local Services,Economic Development and Housing,030554,International Relations,Transport,235057,Public Transport,07-Dec-2018,000008121972311,ROYAL DUTCH AIRLINES (KLM),3010,Staff travelling,220.83,0.00,220.83
Regeneration and Local Services,Economic Development and Housing,030554,International Relations,Transport,235057,Public Transport,07-Dec-2018,000008121972313,ROYAL DUTCH AIRLINES (KLM),3010,Staff travelling,220.83,0.00,220.83
Regeneration and Local Services,Economic Development and Housing,030554,International Relations,Transport,235057,Public Transport,07-Dec-2018,000008121972319,ROYAL DUTCH AIRLINES (KLM),3010,Staff travelling,220.83,0.00,220.83
Children and Young Peoples Services,Head of Childrens Social Care,085626,Families First Shildon/Chilton,Supplies and Services,308011,Furniture,07-Dec-2018,000008121972329,FRANKS THE FLOORING ST,5713,Furniture repair and replacement,350.00,0.00,350.00
Regeneration and Local Services,Direct Services,030691,"Catering - Durham Dales Centre			",Supplies and Services,324117,Provisions E324,07-Dec-2018,000008121972475,HOPWELLS LTD,5811,Catering costs - provisions,163.83,0.00,163.83
Adult and Health Services,Head of Adults,055643,Hawthorn House LD Respite Unit,Supplies and Services,324117,Provisions E324,07-Dec-2018,000008121972547,JR HOLLAND FOODSERVICE,5422,Catering costs - provisions,16.36,0.00,16.36
Adult and Health Services,Head of Adults,055643,Hawthorn House LD Respite Unit,Supplies and Services,324117,Provisions E324,07-Dec-2018,000008121972551,JR HOLLAND FOODSERVICE,5422,Catering costs - provisions,10.55,0.00,10.55
Children and Young Peoples Services,Head of Education and Skills,078103,CPD ICT,Supplies and Services,384999,Miscellaneous Expenses,07-Dec-2018,000008121972577,LEGO,5945,Other expenses,95.84,15.97,79.87
Children and Young Peoples Services,"Head of Early Help, Inclusion and Vulnerable Children",074000,TTF-Attachment and Results,Transfer Payments,525033,Other,07-Dec-2018,000008121972593,AMZN MKTP UK M04AW0SP4,5942,Grants to individuals,13.80,0.00,13.80
Resources,Digital and Customer Services,065335,School Services - Implementations,Supplies and Services,304639,Equipment and Materials,07-Dec-2018,000008121972623,AMZN Mktp UK M06G73S34,5942,Technicians-supplies,16.37,0.00,16.37
Children and Young Peoples Services,"Head of Early Help, Inclusion and Vulnerable Children",085954,Walworth,Supplies and Services,312011,Newspapers books and periodicals E312,07-Dec-2018,000008121972639,AMZN Mktp UK M00SC6S24,5942,Books-school library,17.66,0.00,17.66
Children and Young Peoples Services,Childrens Services Operational Support,052986,CYPS - Locality and Operational Support,Supplies and Services,324117,Provisions E324,07-Dec-2018,000008121972647,ASDA GEORGE COM LEEDS,5411,Catering costs - provisions,35.00,0.00,35.00
Children and Young Peoples Services,Childrens Services Operational Support,052986,CYPS - Locality and Operational Support,Supplies and Services,328041,Clothing uniforms and laundry E328,07-Dec-2018,000008121972651,ARGOS RETAIL GROUP,5310,Clothing uniforms and laundry,99.00,0.00,99.00
Children and Young Peoples Services,Childrens Services Operational Support,052986,CYPS - Locality and Operational Support,Supplies and Services,328041,Clothing uniforms and laundry E328,07-Dec-2018,000008121972655,ARGOS RETAIL GROUP,5310,Clothing uniforms and laundry,115.98,0.00,115.98
Children and Young Peoples Services,Childrens Services Operational Support,052986,CYPS - Locality and Operational Support,Supplies and Services,328041,Clothing uniforms and laundry E328,07-Dec-2018,000008121972657,WWW.ARGOS.CO.UK,5310,Clothing uniforms and laundry,181.94,0.00,181.94
Regeneration and Local Services,Culture & Sport,054235,Bishop Auckland Town Hall Cafe,Supplies and Services,324117,Provisions E324,07-Dec-2018,000008121972675,HOPWELLS LTD,5811,Catering costs - provisions,87.50,0.00,87.50
Regeneration and Local Services,Culture & Sport,054235,Bishop Auckland Town Hall Cafe,Supplies and Services,324117,Provisions E324,07-Dec-2018,000008121972679,HOPWELLS LTD,5811,Catering costs - provisions,47.38,0.00,47.38
Regeneration and Local Services,Culture & Sport,054235,Bishop Auckland Town Hall Cafe,Supplies and Services,324117,Provisions E324,07-Dec-2018,000008121972683,HOPWELLS LTD,5811,Catering costs - provisions,-10.13,0.00,-10.13
Regeneration and Local Services,Direct Services,021324,Catering - Meadowfield,Supplies and Services,324117,Provisions E324,07-Dec-2018,000008121972697,HOPWELLS LTD,5811,Catering costs - provisions,102.00,0.00,102.00
Regeneration and Local Services,Direct Services,021324,Catering - Meadowfield,Supplies and Services,324117,Provisions E324,07-Dec-2018,000008121972701,HOPWELLS LTD,5811,Catering costs - provisions,77.31,0.00,77.31
Regeneration and Local Services,Direct Services,021324,Catering - Meadowfield,Supplies and Services,324117,Provisions E324,07-Dec-2018,000008121972705,JR HOLLAND FOODSERVICE,5422,Catering costs - provisions,40.00,0.00,40.00
Regeneration and Local Services,Direct Services,021324,Catering - Meadowfield,Supplies and Services,324117,Provisions E324,07-Dec-2018,000008121972711,JR HOLLAND FOODSERVICE,5422,Catering costs - provisions,10.35,0.00,10.35
Resources,Digital and Customer Services,069010,Administration,Supplies and Services,336005,Advertising E336,07-Dec-2018,000008121972923,FACEBK DCR6YG25B2,7311,Advertising other than for staff,500.00,0.00,500.00
Regeneration and Local Services,Direct Services,021235,Catering - Wharton Park,Supplies and Services,324117,Provisions E324,07-Dec-2018,000008121972955,HOPWELLS LTD,5811,Catering costs - provisions,29.26,0.00,29.26
Adult and Health Services,Head of Adults,055643,Hawthorn House LD Respite Unit,Supplies and Services,324117,Provisions E324,07-Dec-2018,000008130215405,BATLEYS PERTH,5300,Catering costs - provisions,20.82,3.47,17.35
Adult and Health Services,Head of Adults,055643,Hawthorn House LD Respite Unit,Supplies and Services,324117,Provisions E324,07-Dec-2018,000008130215405 - 1,BATLEYS PERTH,5300,Catering costs - provisions,87.62,,87.62
Adult and Health Services,Head of Adults,055643,Hawthorn House LD Respite Unit,Supplies and Services,324117,Provisions E324,07-Dec-2018,000008130215413,BATLEYS PERTH,5300,Catering costs - provisions,1.35,0.00,1.35
Regeneration and Local Services,Direct Services,021242,Catering - County Hall,Supplies and Services,324117,Provisions E324,07-Dec-2018,000008134119841,BATLEYS PERTH,5300,Catering costs - provisions,338.04,56.34,281.70
Regeneration and Local Services,Direct Services,021242,Catering - County Hall,Supplies and Services,324117,Provisions E324,07-Dec-2018,000008134119841 - 1,BATLEYS PERTH,5300,Catering costs - provisions,182.47,,182.47
Regeneration and Local Services,Direct Services,010525,Catering - Green Lane,Supplies and Services,324117,Provisions E324,07-Dec-2018,000008134120301,BATLEYS PERTH,5300,Catering costs - provisions,145.26,24.21,121.05
Regeneration and Local Services,Direct Services,010525,Catering - Green Lane,Supplies and Services,324117,Provisions E324,07-Dec-2018,000008134120301 - 1,BATLEYS PERTH,5300,Catering costs - provisions,96.35,,96.35
Children and Young Peoples Services,Head of Education and Skills,071801,Selby Cottage Childcare Centre,Supplies and Services,304999,Equipment and Materials,08-Dec-2018,000008121971331,Amazon Prime M09UR2KA4,5968,Misc equipment tools and materials,7.99,0.00,7.99
Children and Young Peoples Services,Head of Education and Skills,071903,EYDCP-Sustainability EDS,Supplies and Services,312011,Newspapers books and periodicals E312,08-Dec-2018,000008121971979,Amazon.co.uk M09T74KG4,5969,Books-school library,54.99,0.00,54.99
Children and Young Peoples Services,"Head of Early Help, Inclusion and Vulnerable Children",085954,Walworth,Supplies and Services,324117,Provisions E324,08-Dec-2018,000008121972031,TESCO STORES 6329,5411,Catering costs - provisions,115.96,0.00,115.96
Regeneration and Local Services,Culture & Sport,054813,Gala Theatre - Technical,Supplies and Services,312011,Newspapers books and periodicals E312,08-Dec-2018,000008121972049,AMZN Mktp UK M01E822N4,5942,Books-school library,9.99,0.00,9.99
Children and Young Peoples Services,Head of Childrens Social Care,085352,Tow Law CU,Supplies and Services,324117,Provisions E324,08-Dec-2018,000008121972283,CO-OP GROUP 010989,5411,Catering costs - provisions,12.30,0.00,12.30
Children and Young Peoples Services,Head of Childrens Social Care,085333,Coxhoe Satelite Home,Supplies and Services,312011,Newspapers books and periodicals E312,08-Dec-2018,000008121972433,COXHOE TIMBER SERVICES,5251,Books-school library,8.60,0.00,8.60
Children and Young Peoples Services,Head of Childrens Social Care,085333,Coxhoe Satelite Home,Supplies and Services,332047,Printing Stationery and Gen Off Exps,08-Dec-2018,000008121972435,VUE CINEMAS WWW,7832,Stationery,30.96,0.00,30.96
Children and Young Peoples Services,Head of Childrens Social Care,085342,9 Cedar Drive Aycliffe,Supplies and Services,324117,Provisions E324,08-Dec-2018,000008121972443,TESCO STORES 2916,5411,Catering costs - provisions,78.30,0.00,78.30
Children and Young Peoples Services,"Head of Early Help, Inclusion and Vulnerable Children",074000,TTF-Attachment and Results,Transfer Payments,525033,Other,08-Dec-2018,000008121972595,AMZN MKTP UK M00SV92B4,5942,Grants to individuals,25.49,0.00,25.49
Children and Young Peoples Services,"Head of Early Help, Inclusion and Vulnerable Children",074000,TTF-Attachment and Results,Charges,720130,Fees and Charges,08-Dec-2018,000008121972601,AMZN MKTP UK M00S562H4,5942,Fees-legal,25.49,0.00,25.49
Children and Young Peoples Services,"Head of Early Help, Inclusion and Vulnerable Children",074000,TTF-Attachment and Results,Transfer Payments,525033,Other,08-Dec-2018,000008121972605,AMZN MKTP UK M01SJ32V4,5942,Grants to individuals,25.49,0.00,25.49
Children and Young Peoples Services,"Head of Early Help, Inclusion and Vulnerable Children",074000,TTF-Attachment and Results,Supplies and Services,312011,Newspapers books and periodicals E312,08-Dec-2018,000008121972607,AMZN MKTP UK M03LL7K34,5942,Books-school library,25.36,0.00,25.36
Children and Young Peoples Services,"Head of Early Help, Inclusion and Vulnerable Children",074000,TTF-Attachment and Results,Transfer Payments,525033,Other,08-Dec-2018,000008121972611,AMZN MKTP UK M03SW02W4,5942,Grants to individuals,29.98,0.00,29.98
Children and Young Peoples Services,"Head of Early Help, Inclusion and Vulnerable Children",074000,TTF-Attachment and Results,Transfer Payments,525033,Other,08-Dec-2018,000008121972615,AMZN MKTP UK M09HM1244,5942,Grants to individuals,11.97,0.00,11.97
Children and Young Peoples Services,"Head of Early Help, Inclusion and Vulnerable Children",074000,TTF-Attachment and Results,Transfer Payments,525033,Other,08-Dec-2018,000008121972621,AMZN MKTP UK M09S432X4,5942,Grants to individuals,25.49,0.00,25.49
Children and Young Peoples Services,Head of Childrens Social Care,085352,Tow Law CU,Supplies and Services,304999,Equipment and Materials,08-Dec-2018,000008121972727,TOPGEAR KARTING,7929,Misc equipment tools and materials,53.00,0.00,53.00
Children and Young Peoples Services,Head of Childrens Social Care,085333,Coxhoe Satelite Home,Supplies and Services,384999,Miscellaneous Expenses,09-Dec-2018,000008121971555,LIDL UK CONSETT,5411,Other expenses,20.98,0.00,20.98
Children and Young Peoples Services,Head of Childrens Social Care,085333,Coxhoe Satelite Home,Supplies and Services,384999,Miscellaneous Expenses,09-Dec-2018,000008121971559,TESCO STORES 4358,5411,Other expenses,10.00,0.00,10.00
Children and Young Peoples Services,Head of Childrens Social Care,085333,Coxhoe Satelite Home,Supplies and Services,384999,Miscellaneous Expenses,09-Dec-2018,000008121971561,SUPERDRUG STORES PLC,5912,Other expenses,4.48,0.00,4.48
Children and Young Peoples Services,Head of Childrens Social Care,085333,Coxhoe Satelite Home,Supplies and Services,384999,Miscellaneous Expenses,09-Dec-2018,000008121971565,ALDI 11 774,5411,Other expenses,5.99,0.00,5.99
Children and Young Peoples Services,Head of Childrens Social Care,085333,Coxhoe Satelite Home,Supplies and Services,324117,Provisions E324,09-Dec-2018,000008121971847,TESCO STORES 2371,5411,Catering costs - provisions,4.50,0.00,4.50
Children and Young Peoples Services,Head of Childrens Social Care,085333,Coxhoe Satelite Home,Supplies and Services,332047,Printing Stationery and Gen Off Exps,09-Dec-2018,000008121971849,VUE BSL SITE,7832,Stationery,9.98,0.00,9.98
Children and Young Peoples Services,Head of Childrens Social Care,085333,Coxhoe Satelite Home,Supplies and Services,332047,Printing Stationery and Gen Off Exps,09-Dec-2018,000008121971851,VUE BSL SITE,7832,Stationery,7.67,0.00,7.67
Regeneration and Local Services,Culture & Sport,054813,Gala Theatre - Technical,Supplies and Services,304259,Equipment and Materials,09-Dec-2018,000008121972057,Prime Video M069327B4,5735,Equipment-purchase and rental,4.99,0.00,4.99
Regeneration and Local Services,Culture & Sport,054813,Gala Theatre - Technical,Supplies and Services,312011,Newspapers books and periodicals E312,09-Dec-2018,000008121972061,AMZN Mktp UK M08UO99H4,5942,Books-school library,69.97,0.00,69.97
Regeneration and Local Services,Culture & Sport,054813,Gala Theatre - Technical,Supplies and Services,312011,Newspapers books and periodicals E312,09-Dec-2018,000008121972067,AMZN Mktp UK M08ZR09V4,5942,Books-school library,14.95,0.00,14.95
Regeneration and Local Services,Culture & Sport,054813,Gala Theatre - Technical,Supplies and Services,312011,Newspapers books and periodicals E312,09-Dec-2018,000008121972069,AMZN Mktp UK M09UY2914,5942,Books-school library,3.03,0.00,3.03
Resources,Digital and Customer Services,065335,School Services - Implementations,Supplies and Services,304639,Equipment and Materials,09-Dec-2018,000008121972629,AMZN Mktp UK M05B467A4,5942,Technicians-supplies,27.61,0.00,27.61
Resources,Digital and Customer Services,065335,School Services - Implementations,Supplies and Services,304639,Equipment and Materials,09-Dec-2018,000008121972633,AMZN Mktp UK M07UU39S4,5942,Technicians-supplies,69.51,0.00,69.51
Regeneration and Local Services,Business Support,030053,Building Capacity Exchange,Supplies and Services,352001,Conference Expenses,09-Dec-2018,000008121972823,HOTEL METEORA,7011,Conferencesseminars fees etc,84.96,0.00,84.96
Children and Young Peoples Services,Head of Childrens Social Care,085352,Tow Law CU,Supplies and Services,324117,Provisions E324,09-Dec-2018,000008121972901,NISA LOCAL,5411,Catering costs - provisions,10.08,1.68,8.40
Children and Young Peoples Services,Head of Childrens Social Care,085352,Tow Law CU,Supplies and Services,324117,Provisions E324,09-Dec-2018,000008121972901 - 1,NISA LOCAL,5411,Catering costs - provisions,9.26,,9.26
Regeneration and Local Services,Economic Development and Housing,030707,Planning & Research,Supplies and Services,342033,Computers and Communications,09-Dec-2018,000008130214579,SurveyMonkey,7372,Computer hardware,280.00,0.00,280.00
Children and Young Peoples Services,Head of Childrens Social Care,085333,Coxhoe Satelite Home,Supplies and Services,304259,Equipment and Materials,09-Dec-2018,000008130214833,PAYPAL MARKETPLACE,5735,Equipment-purchase and rental,24.97,0.00,24.97
Regeneration and Local Services,Culture & Sport,054813,Gala Theatre - Technical,Supplies and Services,312011,Newspapers books and periodicals E312,10-Dec-2018,000008121971903,AMZN Mktp UK M05J509P4,5942,Books-school library,29.43,0.00,29.43
Regeneration and Local Services,Business Support,030053,Building Capacity Exchange,Supplies and Services,352001,Conference Expenses,10-Dec-2018,000008121972827,HOTEL METEORA,7011,Conferencesseminars fees etc,2.34,0.00,2.34
Children and Young Peoples Services,Head of Education and Skills,071801,Selby Cottage Childcare Centre,Supplies and Services,324117,Provisions E324,10-Dec-2018,000008130214529,TESCO STORES 2278,5411,Catering costs - provisions,16.50,0.00,16.50
Adult and Health Services,Head of Adults,055302,Durham Pathways,Supplies and Services,324117,Provisions E324,10-Dec-2018,000008130214571,ALDI STORES,5411,Catering costs - provisions,0.54,0.09,0.45
Adult and Health Services,Head of Adults,055302,Durham Pathways,Supplies and Services,324117,Provisions E324,10-Dec-2018,000008130214571 - 1,ALDI STORES,5411,Catering costs - provisions,17.03,,17.03
Children and Young Peoples Services,Head of Childrens Social Care,085332,Middlestone Moor CU,Supplies and Services,324117,Provisions E324,10-Dec-2018,000008130214585,HOME BARGAINS SPENNYMO,5251,Catering costs - provisions,31.62,5.27,26.35
Children and Young Peoples Services,Head of Childrens Social Care,085332,Middlestone Moor CU,Premises,145023,Cleaning and Domestic Supplies,10-Dec-2018,000008130214585 - 1,HOME BARGAINS SPENNYMO,5251,Cleaning and domestic materials,11.48,,11.48
Children and Young Peoples Services,Head of Childrens Social Care,085332,Middlestone Moor CU,Supplies and Services,324117,Provisions E324,10-Dec-2018,000008130214593,ASDA SUPERSTORE 4987,5411,Catering costs - provisions,24.78,0.00,24.78
Children and Young Peoples Services,Head of Childrens Social Care,085332,Middlestone Moor CU,Supplies and Services,324117,Provisions E324,10-Dec-2018,000008130214601,ICELAND,5411,Catering costs - provisions,19.78,0.00,19.78
Children and Young Peoples Services,Head of Childrens Social Care,085333,Coxhoe Satelite Home,Supplies and Services,304649,Equipment and Materials,10-Dec-2018,000008130214625,CEX,5065,Toys,43.00,0.00,43.00
Children and Young Peoples Services,Head of Childrens Social Care,085333,Coxhoe Satelite Home,Supplies and Services,328041,Clothing uniforms and laundry E328,10-Dec-2018,000008130214627,MATALAN,5691,Clothing uniforms and laundry,17.00,0.00,17.00
Children and Young Peoples Services,Head of Childrens Social Care,085333,Coxhoe Satelite Home,Supplies and Services,384999,Miscellaneous Expenses,10-Dec-2018,000008130214633,BEAUTY OUTLET,7230,Other expenses,14.99,0.00,14.99
Children and Young Peoples Services,Head of Childrens Social Care,085333,Coxhoe Satelite Home,Supplies and Services,328041,Clothing uniforms and laundry E328,10-Dec-2018,000008130214635,T K MAXX,5331,Clothing uniforms and laundry,44.98,0.00,44.98
Children and Young Peoples Services,Head of Childrens Social Care,085333,Coxhoe Satelite Home,Supplies and Services,324117,Provisions E324,10-Dec-2018,000008130214639,TESCO STORES 2371,5411,Catering costs - provisions,11.60,0.00,11.60
Children and Young Peoples Services,Head of Childrens Social Care,085333,Coxhoe Satelite Home,Supplies and Services,332048,Printing Stationery and Gen Off Exps,10-Dec-2018,000008130214643,TESCO STORES 2371,5411,Administrative stationery etc,8.25,0.00,8.25
Children and Young Peoples Services,Head of Childrens Social Care,085333,Coxhoe Satelite Home,Supplies and Services,384999,Miscellaneous Expenses,10-Dec-2018,000008130214647,B & M RETAIL,5310,Other expenses,48.40,0.00,48.40
Children and Young Peoples Services,Head of Childrens Social Care,085333,Coxhoe Satelite Home,Supplies and Services,312009,Newspapers books and periodicals E312,10-Dec-2018,000008130214651,THE WORKS,5310,Newspapers books and periodicals,15.00,0.00,15.00
Regeneration and Local Services,Direct Services,021242,Catering - County Hall,Premises,145009,Cleaning and Domestic Supplies,10-Dec-2018,000008130214687,ALLIANCE DISPOSABLES L,2842,Other cleaning and domestic costs,58.50,9.75,48.75
Regeneration and Local Services,Direct Services,021242,Catering - County Hall,Supplies and Services,324117,Provisions E324,10-Dec-2018,000008130214691,JR HOLLAND FOODSERVICE,5422,Catering costs - provisions,150.23,0.00,150.23
Regeneration and Local Services,Direct Services,021242,Catering - County Hall,Supplies and Services,324117,Provisions E324,10-Dec-2018,000008130214703,JR HOLLAND FOODSERVICE,5422,Catering costs - provisions,6.94,0.00,6.94
Regeneration and Local Services,Culture & Sport,054233,Bishop Auckland Town Hall Library,Supplies and Services,304259,Equipment and Materials,10-Dec-2018,000008130214727,WILKO RETAIL LIMIT,5722,Equipment-purchase and rental,6.00,0.00,6.00
Regeneration and Local Services,Culture & Sport,054812,Gala Theatre - Catering etc,Premises,145009,Cleaning and Domestic Supplies,10-Dec-2018,000008130214759,ALLIANCE DISPOSABLES L,2842,Other cleaning and domestic costs,-80.35,-13.39,-66.96
Regeneration and Local Services,Direct Services,021242,Catering - County Hall,Supplies and Services,324117,Provisions E324,10-Dec-2018,000008130214795,LIDL UK DURHAM,5411,Catering costs - provisions,5.97,0.00,5.97
Children and Young Peoples Services,Head of Childrens Social Care,085511,Emergency Duty Team,Supplies and Services,352001,Conference Expenses,10-Dec-2018,000008130214805,HOLIDAY INNS,3501,Conferencesseminars fees etc,129.98,0.00,129.98
Children and Young Peoples Services,Head of Childrens Social Care,085333,Coxhoe Satelite Home,Supplies and Services,304259,Equipment and Materials,10-Dec-2018,000008130214827,M and M Direct Ltd,5941,Equipment-purchase and rental,103.39,0.00,103.39
Children and Young Peoples Services,Head of Childrens Social Care,085333,Coxhoe Satelite Home,Supplies and Services,312011,Newspapers books and periodicals E312,10-Dec-2018,000008130214835,PAYPAL PAYPALGIFTS,4816,Books-school library,30.00,0.00,30.00
Regeneration and Local Services,Economic Development and Housing,031576,B& B - Temp Accom,Supplies and Services,364320,Grants to Voluntary Organisations,10-Dec-2018,000008130214893,HOTEL 52,7011,Accommodation assistance,195.00,32.50,162.50
Children and Young Peoples Services,Head of Education and Skills,071732,Dean Bank Childcare,Supplies and Services,312011,Newspapers books and periodicals E312,10-Dec-2018,000008130214959,AMZN Mktp UK M02Q97UA4,5942,Books-school library,3.52,0.00,3.52
Children and Young Peoples Services,Head of Education and Skills,071732,Dean Bank Childcare,Supplies and Services,324117,Provisions E324,10-Dec-2018,000008130214961,ASDA GROCERIES ONLINE,5411,Catering costs - provisions,54.54,0.00,54.54
Regeneration and Local Services,Culture & Sport,054813,Gala Theatre - Technical,Supplies and Services,312011,Newspapers books and periodicals E312,10-Dec-2018,000008130214973,AMZN Mktp UK M076H2UD4,5942,Books-school library,4.99,0.00,4.99
Regeneration and Local Services,Culture & Sport,054813,Gala Theatre - Technical,Supplies and Services,312011,Newspapers books and periodicals E312,10-Dec-2018,000008130214981,AMZN Mktp UK M07616R74,5942,Books-school library,14.79,0.00,14.79
Regeneration and Local Services,Culture & Sport,054813,Gala Theatre - Technical,Supplies and Services,312011,Newspapers books and periodicals E312,10-Dec-2018,000008130215125,AMZN Mktp UK M01J78U34,5942,Books-school library,36.08,0.00,36.08
Regeneration and Local Services,Culture & Sport,054813,Gala Theatre - Technical,Supplies and Services,312011,Newspapers books and periodicals E312,10-Dec-2018,000008130215129,AMZN Mktp UK M03AI9IT4,5942,Books-school library,49.90,0.00,49.90
Regeneration and Local Services,Culture & Sport,054813,Gala Theatre - Technical,Supplies and Services,312011,Newspapers books and periodicals E312,10-Dec-2018,000008130215131,AMZN Mktp UK M05KL1UF4,5942,Books-school library,12.49,0.00,12.49
Regeneration and Local Services,Culture & Sport,054813,Gala Theatre - Technical,Supplies and Services,312011,Newspapers books and periodicals E312,10-Dec-2018,000008130215133,AMZN Mktp UK M09P01U14,5942,Books-school library,11.99,0.00,11.99
Regeneration and Local Services,Culture & Sport,054813,Gala Theatre - Technical,Supplies and Services,312011,Newspapers books and periodicals E312,10-Dec-2018,000008130215135,AMZN Mktp UK M04RK5I14,5942,Books-school library,43.99,0.00,43.99
Regeneration and Local Services,Culture & Sport,054813,Gala Theatre - Technical,Supplies and Services,312011,Newspapers books and periodicals E312,10-Dec-2018,000008130215137,AMZN Mktp UK M09KT9IH4,5942,Books-school library,78.19,0.00,78.19
Children and Young Peoples Services,Childrens Services Operational Support,052986,CYPS - Locality and Operational Support,Supplies and Services,308011,Furniture,10-Dec-2018,000008130215147,M J M FLOORING,5719,Furniture repair and replacement,300.00,0.00,300.00
Regeneration and Local Services,Direct Services,021234,Catering - Locomotion,Premises,145009,Cleaning and Domestic Supplies,10-Dec-2018,000008130215183,ALLIANCE DISPOSABLES L,2842,Other cleaning and domestic costs,-16.00,-2.67,-13.33
Regeneration and Local Services,Economic Development and Housing,030714,Salvus House,Supplies and Services,384999,Miscellaneous Expenses,10-Dec-2018,000008130215199,ASDA STORES LTD 4313,5411,Other expenses,44.05,0.00,44.05
Children and Young Peoples Services,Head of Childrens Social Care,085331,New Lea Childrens Home,Supplies and Services,328041,Clothing uniforms and laundry E328,10-Dec-2018,000008130215205,ARGOS RETAIL GROUP,5310,Clothing uniforms and laundry,12.99,0.00,12.99
Children and Young Peoples Services,"Head of Early Help, Inclusion and Vulnerable Children",085952,Secure Education,Supplies and Services,324117,Provisions E324,10-Dec-2018,000008130215243,TESCO STORES 6329,5411,Catering costs - provisions,218.10,0.00,218.10
Regeneration and Local Services,Direct Services,010367,C&G - South Grounds Maintenance,Supplies and Services,304221,Equipment and Materials,10-Dec-2018,000008130215265,JEWSON LTD,5211,Direct materials,171.00,28.50,142.50
Regeneration and Local Services,Direct Services,010367,C&G - South Grounds Maintenance,Supplies and Services,304221,Equipment and Materials,10-Dec-2018,000008130215269,JEWSON LTD,5211,Direct materials,102.60,17.10,85.50
Regeneration and Local Services,Economic Development and Housing,030771,Durham Advance Flexible Fund,Supplies and Services,384700,Miscellaneous Expenses,10-Dec-2018,000008130215311,VUE NCS CITB HS&E TEST,8299,Miscellaneous grants,21.00,0.00,21.00
Regeneration and Local Services,Economic Development and Housing,030771,Durham Advance Flexible Fund,Supplies and Services,384700,Miscellaneous Expenses,10-Dec-2018,000008130215313,ARRIVA NORTH EAST,4131,Miscellaneous grants,23.00,0.00,23.00
Resources,Resources Management,069000,Resources Management,Supplies and Services,324117,Provisions E324,10-Dec-2018,000008130215325,CO-OP GROUP 010830,5411,Catering costs - provisions,2.20,0.00,2.20
Children and Young Peoples Services,Head of Childrens Social Care,085342,9 Cedar Drive Aycliffe,Supplies and Services,324117,Provisions E324,10-Dec-2018,000008130215339,TESCO STORES 2916,5411,Catering costs - provisions,10.28,0.00,10.28
Children and Young Peoples Services,Head of Childrens Social Care,085342,9 Cedar Drive Aycliffe,Supplies and Services,312011,Newspapers books and periodicals E312,10-Dec-2018,000008130215343,AMZN Mktp UK M013W9IK4,5942,Books-school library,10.89,0.00,10.89
Children and Young Peoples Services,"Head of Early Help, Inclusion and Vulnerable Children",074000,TTF-Attachment and Results,Transfer Payments,525033,Other,10-Dec-2018,000008130215435,AMZN Mktp UK M04L31U24,5942,Grants to individuals,4.20,0.00,4.20
Children and Young Peoples Services,"Head of Early Help, Inclusion and Vulnerable Children",074000,TTF-Attachment and Results,Transfer Payments,525033,Other,10-Dec-2018,000008130215439,AMZN Mktp UK M00DZ0IO4,5942,Grants to individuals,29.99,0.00,29.99
Children and Young Peoples Services,"Head of Early Help, Inclusion and Vulnerable Children",074000,TTF-Attachment and Results,Transfer Payments,525033,Other,10-Dec-2018,000008130215445,Amazon.co.uk M00X77UE4,5969,Grants to individuals,17.79,0.00,17.79
Children and Young Peoples Services,"Head of Early Help, Inclusion and Vulnerable Children",074000,TTF-Attachment and Results,Transfer Payments,525033,Other,10-Dec-2018,000008130215447,Amazon.co.uk M01DP1I04,5969,Grants to individuals,29.99,0.00,29.99
Children and Young Peoples Services,"Head of Early Help, Inclusion and Vulnerable Children",074000,TTF-Attachment and Results,Transfer Payments,525033,Other,10-Dec-2018,000008130215453,Amazon.co.uk M017J9UR4,5969,Grants to individuals,25.49,0.00,25.49
Children and Young Peoples Services,"Head of Early Help, Inclusion and Vulnerable Children",074000,TTF-Attachment and Results,Transfer Payments,525033,Other,10-Dec-2018,000008130215457,Amazon.co.uk M027E1UG4,5969,Grants to individuals,25.49,0.00,25.49
Children and Young Peoples Services,"Head of Early Help, Inclusion and Vulnerable Children",085965,Barnard,Supplies and Services,312011,Newspapers books and periodicals E312,10-Dec-2018,000008130215477,AMZN Mktp UK M09JR7IR4,5942,Books-school library,13.23,0.00,13.23
Children and Young Peoples Services,"Head of Early Help, Inclusion and Vulnerable Children",085956,Lumley,Supplies and Services,304245,Equipment and Materials,10-Dec-2018,000008130215481,SCREWFIX DIRECT,5211,Materials,152.55,0.00,152.55
Children and Young Peoples Services,"Head of Early Help, Inclusion and Vulnerable Children",085956,Lumley,Supplies and Services,308011,Furniture,10-Dec-2018,000008130215487,WWW.ARGOS.CO.UK,5310,Furniture repair and replacement,89.98,0.00,89.98
Children and Young Peoples Services,Childrens Services Operational Support,052986,CYPS - Locality and Operational Support,Supplies and Services,308011,Furniture,10-Dec-2018,000008130215509,WWW.IKEA.COM,5712,Furniture repair and replacement,295.00,49.17,245.83
Regeneration and Local Services,Transport and Contracted Services,031704,Care Connect - CCTV Countywide,Supplies and Services,384956,Miscellaneous Expenses,10-Dec-2018,000008130215519,SECURITY INDUSTRY,7393,Licences,220.00,0.00,220.00
Regeneration and Local Services,Transport and Contracted Services,031704,Care Connect - CCTV Countywide,Supplies and Services,384956,Miscellaneous Expenses,10-Dec-2018,000008130215523,SECURITY INDUSTRY,7393,Licences,220.00,0.00,220.00
Adult and Health Services,Head of Adults,055301,Stanley Pathways,Supplies and Services,324117,Provisions E324,10-Dec-2018,000008130215543,ASDA SUPERSTORE,5411,Catering costs - provisions,8.00,0.00,8.00
Regeneration and Local Services,Business Support,030053,Building Capacity Exchange,Transport,235057,Public Transport,10-Dec-2018,000008130215621,DB AUTOMATEN,4112,Staff travelling,13.17,0.00,13.17
Regeneration and Local Services,Business Support,030053,Building Capacity Exchange,Transport,235057,Public Transport,10-Dec-2018,000008130215625,DB AUTOMATEN,4112,Staff travelling,5.36,0.00,5.36
Children and Young Peoples Services,Head of Childrens Social Care,085380,Operations Manager Adoption & Fostering,Supplies and Services,324117,Provisions E324,10-Dec-2018,000008130215675,ASDA STORES,5411,Catering costs - provisions,4.34,0.00,4.34
Adult and Health Services,Head of Adults,055807,Newton Aycliffe Pathways,Transport,235005,Public Transport,10-Dec-2018,000008130215695,ARRIVA PASSENGER S,7538,Contract tickets,87.00,0.00,87.00
Adult and Health Services,Head of Adults,055309,Peterlee Pathways,Supplies and Services,324117,Provisions E324,10-Dec-2018,000008130215785,LIDL UK PETERLEE,5411,Catering costs - provisions,6.76,0.00,6.76
Regeneration and Local Services,Economic Development and Housing,030554,International Relations,Supplies and Services,304403,Equipment and Materials,10-Dec-2018,000008130215795,WWW.PARTYDELIGHTS.CO.U,5947,Other consumables,38.85,6.48,32.37
Children and Young Peoples Services,Childrens Services Operational Support,052986,CYPS - Locality and Operational Support,Supplies and Services,312011,Newspapers books and periodicals E312,10-Dec-2018,000008130215811,THE BOOK PEOPLE,5942,Books-school library,43.18,0.00,43.18
Children and Young Peoples Services,Childrens Services Operational Support,052986,CYPS - Locality and Operational Support,Supplies and Services,312011,Newspapers books and periodicals E312,10-Dec-2018,000008130215815,THE BOOK PEOPLE,5942,Books-school library,17.34,0.00,17.34
Regeneration and Local Services,Culture & Sport,054812,Gala Theatre - Catering etc,Supplies and Services,324117,Provisions E324,10-Dec-2018,000008134119891,BATLEYS PERTH,5300,Catering costs - provisions,129.42,21.57,107.85
Regeneration and Local Services,Culture & Sport,054812,Gala Theatre - Catering etc,Supplies and Services,324117,Provisions E324,10-Dec-2018,000008134119891 - 1,BATLEYS PERTH,5300,Catering costs - provisions,99.95,,99.95
Children and Young Peoples Services,Head of Childrens Social Care,085331,New Lea Childrens Home,Supplies and Services,384999,Miscellaneous Expenses,10-Dec-2018,000008134120253,WWW.SMYTHSTOYS.COM,5945,Other expenses,84.96,0.00,84.96
Regeneration and Local Services,Direct Services,019100,Fleet - Strategic Fleet,Supplies and Services,304259,Equipment and Materials,10-Dec-2018,000008134120325,DVSA MOT COMP 2,9399,Equipment-purchase and rental,410.00,0.00,410.00
Regeneration and Local Services,Direct Services,030691,"Catering - Durham Dales Centre			",Supplies and Services,324117,Provisions E324,10-Dec-2018,000008134120671,BATLEYS PERTH,5300,Catering costs - provisions,55.68,9.28,46.40
Regeneration and Local Services,Direct Services,030691,"Catering - Durham Dales Centre			",Supplies and Services,324117,Provisions E324,10-Dec-2018,000008134120671 - 1,BATLEYS PERTH,5300,Catering costs - provisions,57.19,,57.19
Regeneration and Local Services,Business Support,030053,Building Capacity Exchange,Transport,235057,Public Transport,11-Dec-2018,000008130215629,DB AUTOMATEN,4112,Staff travelling,0.36,0.00,0.36
Regeneration and Local Services,Business Support,030053,Building Capacity Exchange,Transport,235057,Public Transport,11-Dec-2018,000008130215633,DB AUTOMATEN,4112,Staff travelling,0.15,0.00,0.15
Children and Young Peoples Services,Head of Education and Skills,071801,Selby Cottage Childcare Centre,Supplies and Services,324117,Provisions E324,11-Dec-2018,000008134119575,TESCO STORES 2278,5411,Catering costs - provisions,25.35,0.00,25.35
Resources,Finance & Transactional Services,065180,Collections,Charges,720130,Fees and Charges,11-Dec-2018,000008134119585,HMCOURT-SERVICES.G,9222,Fees-legal,110.00,0.00,110.00
Regeneration and Local Services,Economic Development and Housing,031576,B& B - Temp Accom,Supplies and Services,364320,Grants to Voluntary Organisations,11-Dec-2018,000008134119601,HOTEL 52,7011,Accommodation assistance,150.00,25.00,125.00
Regeneration and Local Services,Economic Development and Housing,030773,CLLD North,Supplies and Services,304259,Equipment and Materials,11-Dec-2018,000008134119615,WWW.DURHAM.GOV.UK,9399,Equipment-purchase and rental,12.00,0.00,12.00
Adult and Health Services,Head of Adults,055302,Durham Pathways,Supplies and Services,324117,Provisions E324,11-Dec-2018,000008134119701,SAINSBURYS SACAT 0776,5411,Catering costs - provisions,7.50,0.00,7.50
Regeneration and Local Services,Direct Services,010383,C&G - South Street Cleansing,Supplies and Services,304221,Equipment and Materials,11-Dec-2018,000008134119707,S&A BUILDERS MERCHANTS,5211,Direct materials,53.20,8.87,44.33
Children and Young Peoples Services,Head of Childrens Social Care,085332,Middlestone Moor CU,Supplies and Services,324117,Provisions E324,11-Dec-2018,000008134119721,TESCO STORES 2371,5411,Catering costs - provisions,32.16,0.00,32.16
Regeneration and Local Services,Direct Services,010367,C&G - South Grounds Maintenance,Supplies and Services,304221,Equipment and Materials,11-Dec-2018,000008134119767,MKM PETERLEE,5211,Direct materials,187.20,31.20,156.00
Regeneration and Local Services,Direct Services,021242,Catering - County Hall,Premises,145009,Cleaning and Domestic Supplies,11-Dec-2018,000008134119785,ALLIANCE DISPOSABLES L,2842,Other cleaning and domestic costs,608.63,101.44,507.19
Regeneration and Local Services,Direct Services,021242,Catering - County Hall,Premises,145009,Cleaning and Domestic Supplies,11-Dec-2018,000008134119793,ALLIANCE DISPOSABLES L,2842,Other cleaning and domestic costs,151.24,25.21,126.03
Regeneration and Local Services,Direct Services,021242,Catering - County Hall,Supplies and Services,324117,Provisions E324,11-Dec-2018,000008134119797,JR HOLLAND FOODSERVICE,5422,Catering costs - provisions,182.50,0.00,182.50
Regeneration and Local Services,Direct Services,021242,Catering - County Hall,Supplies and Services,324117,Provisions E324,11-Dec-2018,000008134119803,JR HOLLAND FOODSERVICE,5422,Catering costs - provisions,91.18,0.00,91.18
Regeneration and Local Services,Direct Services,021242,Catering - County Hall,Supplies and Services,324117,Provisions E324,11-Dec-2018,000008134119807,JR HOLLAND FOODSERVICE,5422,Catering costs - provisions,6.90,0.00,6.90
Regeneration and Local Services,Economic Development and Housing,030544,Rural Employability - Client Engagement,Supplies and Services,384999,Miscellaneous Expenses,11-Dec-2018,000008134119855,SALLY SALON SERVIC,7230,Other expenses,271.20,45.20,226.00
Regeneration and Local Services,Culture & Sport,054812,Gala Theatre - Catering etc,Premises,145009,Cleaning and Domestic Supplies,11-Dec-2018,000008134119871,ALLIANCE DISPOSABLES L,2842,Other cleaning and domestic costs,37.80,6.30,31.50
Regeneration and Local Services,Culture & Sport,054812,Gala Theatre - Catering etc,Premises,145009,Cleaning and Domestic Supplies,11-Dec-2018,000008134119871 - 1,ALLIANCE DISPOSABLES L,2842,Other cleaning and domestic costs,0.04,,0.04
Regeneration and Local Services,Culture & Sport,054812,Gala Theatre - Catering etc,Supplies and Services,324117,Provisions E324,11-Dec-2018,000008134119879,JR HOLLAND FOODSERVICE,5422,Catering costs - provisions,38.66,0.00,38.66
Children and Young Peoples Services,Head of Childrens Social Care,085333,Coxhoe Satelite Home,Supplies and Services,348037,Subsistence E348,11-Dec-2018,000008134120001,LA PIAZZA,5812,Subsistence,46.50,0.00,46.50
Regeneration and Local Services,Economic Development and Housing,031576,B& B - Temp Accom,Supplies and Services,364320,Grants to Voluntary Organisations,11-Dec-2018,000008134120017,HAYAT HOTEL,7011,Accommodation assistance,150.00,25.00,125.00
Children and Young Peoples Services,Head of Education and Skills,071732,Dean Bank Childcare,Supplies and Services,324117,Provisions E324,11-Dec-2018,000008134120063,CO-OP GROUP 010518,5411,Catering costs - provisions,10.50,0.00,10.50
Regeneration and Local Services,Culture & Sport,054813,Gala Theatre - Technical,Supplies and Services,312011,Newspapers books and periodicals E312,11-Dec-2018,000008134120067,AMZN Mktp UK M014W5WY4,5942,Books-school library,115.10,0.00,115.10
Children and Young Peoples Services,Head of Education and Skills,071903,EYDCP-Sustainability EDS,Supplies and Services,312011,Newspapers books and periodicals E312,11-Dec-2018,000008134120111,Amazon.co.uk M01455WF4,5969,Books-school library,4.99,0.00,4.99
Children and Young Peoples Services,Head of Education and Skills,071903,EYDCP-Sustainability EDS,Supplies and Services,312011,Newspapers books and periodicals E312,11-Dec-2018,000008134120113,Amazon.co.uk M05BO1YR4,5969,Books-school library,6.99,0.00,6.99
Children and Young Peoples Services,"Head of Early Help, Inclusion and Vulnerable Children",085965,Barnard,Supplies and Services,324117,Provisions E324,11-Dec-2018,000008134120151,TESCO STORES 6329,5411,Catering costs - provisions,84.94,0.00,84.94
Regeneration and Local Services,Culture & Sport,011060,Hardwick Park Catering,Supplies and Services,324117,Provisions E324,11-Dec-2018,000008134120201,JR HOLLAND FOODSERVICE,5422,Catering costs - provisions,25.66,0.00,25.66
Regeneration and Local Services,Culture & Sport,054815,Gala Theatre Stage School,Supplies and Services,304999,Equipment and Materials,11-Dec-2018,000008134120217,BOOTS/0561,5912,Misc equipment tools and materials,25.50,0.00,25.50
Regeneration and Local Services,Direct Services,021234,Catering - Locomotion,Supplies and Services,324117,Provisions E324,11-Dec-2018,000008134120221,JR HOLLAND FOODSERVICE,5422,Catering costs - provisions,86.03,0.00,86.03
Regeneration and Local Services,Direct Services,021234,Catering - Locomotion,Supplies and Services,324117,Provisions E324,11-Dec-2018,000008134120229,JR HOLLAND FOODSERVICE,5422,Catering costs - provisions,78.17,0.00,78.17
Children and Young Peoples Services,Head of Childrens Social Care,085331,New Lea Childrens Home,Supplies and Services,312011,Newspapers books and periodicals E312,11-Dec-2018,000008134120249,AMZN Mktp UK M00J80R84,5942,Books-school library,24.99,0.00,24.99
Regeneration and Local Services,Economic Development and Housing,030553,Europe Direct Scheme,Supplies and Services,304403,Equipment and Materials,11-Dec-2018,000008134120391,WORDPRESS BWVSH556RU,5734,Other consumables,36.00,0.00,36.00
Regeneration and Local Services,Economic Development and Housing,030553,Europe Direct Scheme,Supplies and Services,304403,Equipment and Materials,11-Dec-2018,000008134120397,WORDPRESS 1G15TQ8Q7S,5734,Other consumables,15.00,0.00,15.00
Regeneration and Local Services,Economic Development and Housing,031500,Housing Solutions - Core Team,Supplies and Services,384999,Miscellaneous Expenses,11-Dec-2018,000008134120401,WWW.THEDISPUTESERVICE.,6513,Other expenses,23.00,3.83,19.17
Children and Young Peoples Services,Head of Childrens Social Care,085342,9 Cedar Drive Aycliffe,Supplies and Services,348037,Subsistence E348,11-Dec-2018,000008134120463,REDS FISH BAR,5814,Subsistence,29.00,0.00,29.00
Regeneration and Local Services,Direct Services,010367,C&G - South Grounds Maintenance,Supplies and Services,304221,Equipment and Materials,11-Dec-2018,000008134120469,SCREWFIX DIRECT,5211,Direct materials,10.76,0.00,10.76
Children and Young Peoples Services,Head of Childrens Social Care,085342,9 Cedar Drive Aycliffe,Supplies and Services,328041,Clothing uniforms and laundry E328,11-Dec-2018,000008134120473,W BOYES & CO LTD DARLI,5310,Clothing uniforms and laundry,4.99,0.00,4.99
Children and Young Peoples Services,Head of Childrens Social Care,085342,9 Cedar Drive Aycliffe,Supplies and Services,304259,Equipment and Materials,11-Dec-2018,000008134120479,CURRYS SUPERSTORE,5732,Equipment-purchase and rental,49.99,0.00,49.99
Children and Young Peoples Services,Head of Childrens Social Care,085342,9 Cedar Drive Aycliffe,Supplies and Services,304403,Equipment and Materials,11-Dec-2018,000008134120485,CARD FACTORY,5947,Other consumables,8.02,0.00,8.02
Regeneration and Local Services,Direct Services,030691,"Catering - Durham Dales Centre			",Supplies and Services,324117,Provisions E324,11-Dec-2018,000008134120551,JR HOLLAND FOODSERVICE,5422,Catering costs - provisions,143.46,0.00,143.46
Regeneration and Local Services,Direct Services,030691,"Catering - Durham Dales Centre			",Supplies and Services,324117,Provisions E324,11-Dec-2018,000008134120555,JR HOLLAND FOODSERVICE,5422,Catering costs - provisions,31.44,0.00,31.44
Adult and Health Services,Head of Adults,055643,Hawthorn House LD Respite Unit,Supplies and Services,324117,Provisions E324,11-Dec-2018,000008134120733,JR HOLLAND FOODSERVICE,5422,Catering costs - provisions,20.28,0.00,20.28
Adult and Health Services,Head of Adults,055643,Hawthorn House LD Respite Unit,Supplies and Services,324117,Provisions E324,11-Dec-2018,000008134120739,JR HOLLAND FOODSERVICE,5422,Catering costs - provisions,19.06,0.00,19.06
Adult and Health Services,Head of Adults,055643,Hawthorn House LD Respite Unit,Supplies and Services,324117,Provisions E324,11-Dec-2018,000008134120745,JR HOLLAND FOODSERVICE,5422,Catering costs - provisions,4.12,0.00,4.12
Adult and Health Services,Head of Adults,055643,Hawthorn House LD Respite Unit,Supplies and Services,324117,Provisions E324,11-Dec-2018,000008134120749,JR HOLLAND FOODSERVICE,5422,Catering costs - provisions,2.00,0.00,2.00
Children and Young Peoples Services,"Head of Early Help, Inclusion and Vulnerable Children",074000,TTF-Attachment and Results,Transfer Payments,525033,Other,11-Dec-2018,000008134120821,AMZN Mktp UK M02HO0RW4,5942,Grants to individuals,25.49,0.00,25.49
Children and Young Peoples Services,"Head of Early Help, Inclusion and Vulnerable Children",074000,TTF-Attachment and Results,Transfer Payments,525033,Other,11-Dec-2018,000008134120825,AMZN Mktp UK M074G0RD4,5942,Grants to individuals,25.49,0.00,25.49
Children and Young Peoples Services,"Head of Early Help, Inclusion and Vulnerable Children",074000,TTF-Attachment and Results,Charges,720280,Fees and Charges,11-Dec-2018,000008134120831,AMZN Mktp UK M041F9WB4,5942,Cremation fees,27.58,0.00,27.58
Children and Young Peoples Services,"Head of Early Help, Inclusion and Vulnerable Children",074000,TTF-Attachment and Results,Supplies and Services,312011,Newspapers books and periodicals E312,11-Dec-2018,000008134120833,AMZN Mktp UK M04WH6YM4,5942,Books-school library,27.78,0.00,27.78
Children and Young Peoples Services,"Head of Early Help, Inclusion and Vulnerable Children",085965,Barnard,Supplies and Services,312011,Newspapers books and periodicals E312,11-Dec-2018,000008134120873,AMZN Mktp UK M00TE7RI4,5942,Books-school library,6.21,0.00,6.21
Children and Young Peoples Services,"Head of Early Help, Inclusion and Vulnerable Children",085965,Barnard,Supplies and Services,312011,Newspapers books and periodicals E312,11-Dec-2018,000008134120877,AMZN Mktp UK M03H33RA4,5942,Books-school library,10.37,0.00,10.37
Children and Young Peoples Services,"Head of Early Help, Inclusion and Vulnerable Children",085965,Barnard,Supplies and Services,312011,Newspapers books and periodicals E312,11-Dec-2018,000008134120881,AMZN Mktp UK M03V25WQ4,5942,Books-school library,3.98,0.00,3.98
Children and Young Peoples Services,"Head of Early Help, Inclusion and Vulnerable Children",085955,Auckland,Supplies and Services,304649,Equipment and Materials,11-Dec-2018,000008134120889,AMZN Mktp UK M05YN2Y34,5942,Toys,13.98,2.33,11.65
Resources,Legal & Democratic Services,067801,Registrars Headquarters,Supplies and Services,340001,Postages E340,11-Dec-2018,000008134120909,ROYAL MAIL ONLINE SHOP,9402,Postages,45.70,0.00,45.70
Regeneration and Local Services,Economic Development and Housing,030690,Durham Dales Centre - Tourist Information Centre,Supplies and Services,384999,Miscellaneous Expenses,11-Dec-2018,000008134120953,GAINSBOROUGH GIFTWARE,5950,Other expenses,490.16,0.00,490.16
Resources,Digital and Customer Services,069010,Administration,Supplies and Services,342033,Computers and Communications,11-Dec-2018,000008134121173,ELCOMPONENT LTD,5964,Computer hardware,712.80,118.80,594.00
Resources,Digital and Customer Services,069010,Administration,Supplies and Services,304259,Equipment and Materials,11-Dec-2018,000008134121177,WWW.MONEYCLAIM.GOV,9399,Equipment-purchase and rental,77.00,0.00,77.00
Regeneration and Local Services,Direct Services,021235,Catering - Wharton Park,Premises,145009,Cleaning and Domestic Supplies,11-Dec-2018,000008134121191,ALLIANCE DISPOSABLES L,2842,Other cleaning and domestic costs,41.28,6.88,34.40
Regeneration and Local Services,Direct Services,021235,Catering - Wharton Park,Premises,145009,Cleaning and Domestic Supplies,11-Dec-2018,000008134121191 - 1,ALLIANCE DISPOSABLES L,2842,Other cleaning and domestic costs,0.03,,0.03
Regeneration and Local Services,Spatial Policy Planning Assets & Environment,031071,Sustainability and Climate Change,Supplies and Services,304999,Equipment and Materials,11-Dec-2018,000008134121237,BOOTS 1966,5912,Misc equipment tools and materials,19.76,0.00,19.76
Regeneration and Local Services,Spatial Policy Planning Assets & Environment,031071,Sustainability and Climate Change,Supplies and Services,348037,Subsistence E348,11-Dec-2018,000008134121245,SCHNITZELEI MITTE,5812,Subsistence,109.10,0.00,109.10
Regeneration and Local Services,Spatial Policy Planning Assets & Environment,031071,Sustainability and Climate Change,Supplies and Services,348037,Subsistence E348,11-Dec-2018,000008134121255,CAFE RITAZZA NCL LS 18,5814,Subsistence,16.60,2.77,13.83
Regeneration and Local Services,Spatial Policy Planning Assets & Environment,031071,Sustainability and Climate Change,Supplies and Services,348037,Subsistence E348,11-Dec-2018,000008134121259,CAFE RITAZZA NCL LS 18,5814,Subsistence,3.20,0.53,2.67
Adult and Health Services,Head of Adults,055309,Peterlee Pathways,Supplies and Services,304259,Equipment and Materials,11-Dec-2018,000008134121271,CURRYS ONLINE,5732,Equipment-purchase and rental,249.99,41.67,208.32
Regeneration and Local Services,Culture & Sport,011230,Operations Locality 2,Supplies and Services,328041,Clothing uniforms and laundry E328,11-Dec-2018,000008134121281,ARGOS LTD,5310,Clothing uniforms and laundry,249.99,0.00,249.99
Regeneration and Local Services,Direct Services,030691,"Catering - Durham Dales Centre			",Supplies and Services,324117,Provisions E324,11-Dec-2018,000008134121311,Castle Bank Butchers,5422,Catering costs - provisions,43.52,0.00,43.52
Children and Young Peoples Services,"Head of Early Help, Inclusion and Vulnerable Children",085952,Secure Education,Supplies and Services,304335,Equipment and Materials,11-Dec-2018,000008139070795,DRI PLASQ COM,5045,ICT supplies etc,256.63,42.77,213.86
Regeneration and Local Services,Direct Services,021242,Catering - County Hall,Supplies and Services,324117,Provisions E324,11-Dec-2018,000008139071105,BATLEYS PERTH,5300,Catering costs - provisions,21.82,0.00,21.82
Regeneration and Local Services,Direct Services,021242,Catering - County Hall,Supplies and Services,324117,Provisions E324,11-Dec-2018,000008139071109,BATLEYS PERTH,5300,Catering costs - provisions,256.26,42.71,213.55
Regeneration and Local Services,Direct Services,021242,Catering - County Hall,Supplies and Services,324117,Provisions E324,11-Dec-2018,000008139071109 - 1,BATLEYS PERTH,5300,Catering costs - provisions,123.71,,123.71
Regeneration and Local Services,Culture & Sport,011060,Hardwick Park Catering,Supplies and Services,324117,Provisions E324,11-Dec-2018,000008139071493,BATLEYS PERTH,5300,Catering costs - provisions,89.16,14.86,74.30
Regeneration and Local Services,Culture & Sport,011060,Hardwick Park Catering,Supplies and Services,324117,Provisions E324,11-Dec-2018,000008139071493 - 1,BATLEYS PERTH,5300,Catering costs - provisions,127.51,,127.51
Adult and Health Services,Head of Adults,055643,Hawthorn House LD Respite Unit,Supplies and Services,324117,Provisions E324,11-Dec-2018,000008139071767,BATLEYS PERTH,5300,Catering costs - provisions,-1.35,0.00,-1.35
Children and Young Peoples Services,Head of Childrens Social Care,085513,Supervised Contact Centre,Supplies and Services,324117,Provisions E324,11-Dec-2018,000008139071851,ASDA STORES LTD 4313,5411,Catering costs - provisions,44.00,0.00,44.00
Regeneration and Local Services,Culture & Sport,054235,Bishop Auckland Town Hall Cafe,Supplies and Services,324117,Provisions E324,11-Dec-2018,000008139071883,BATLEYS PERTH,5300,Catering costs - provisions,133.74,22.29,111.45
Regeneration and Local Services,Culture & Sport,054235,Bishop Auckland Town Hall Cafe,Supplies and Services,324117,Provisions E324,11-Dec-2018,000008139071883 - 1,BATLEYS PERTH,5300,Catering costs - provisions,32.42,,32.42
Regeneration and Local Services,Direct Services,021324,Catering - Meadowfield,Supplies and Services,324117,Provisions E324,11-Dec-2018,000008139071925,BATLEYS PERTH,5300,Catering costs - provisions,91.50,15.25,76.25
Regeneration and Local Services,Direct Services,021324,Catering - Meadowfield,Supplies and Services,324117,Provisions E324,11-Dec-2018,000008139071925 - 1,BATLEYS PERTH,5300,Catering costs - provisions,154.70,,154.70
Adult and Health Services,Head of Adults,055301,Stanley Pathways,Supplies and Services,324117,Provisions E324,11-Dec-2018,000008139071937,ASDA SUPERSTORE,5411,Catering costs - provisions,15.80,0.00,15.80
Regeneration and Local Services,Spatial Policy Planning Assets & Environment,031071,Sustainability and Climate Change,Supplies and Services,348037,Subsistence E348,12-Dec-2018,000008134121265,SCHNITZELEI MITTE,5812,Subsistence,3.00,0.00,3.00
Children and Young Peoples Services,Head of Education and Skills,071801,Selby Cottage Childcare Centre,Supplies and Services,324117,Provisions E324,12-Dec-2018,000008139070763,TESCO STORES 2278,5411,Catering costs - provisions,21.76,0.00,21.76
Resources,Digital and Customer Services,065487,ICT Telephony Recharges,Supplies and Services,344033,Telephones,12-Dec-2018,000008139070779,AMZN Mktp UK M20K96CU4,5942,Telephones general-all costs,149.00,0.00,149.00
Children and Young Peoples Services,Head of Childrens Social Care,085100,Strategic Manager Families First Area South,Supplies and Services,384199,Miscellaneous Expenses,12-Dec-2018,000008139070785,GRO HM PASSPORT OFFICE,9399,Other hired and contracted services,23.40,0.00,23.40
Regeneration and Local Services,Economic Development and Housing,030773,CLLD North,Supplies and Services,304259,Equipment and Materials,12-Dec-2018,000008139070821,WWW.DURHAM.GOV.UK,9399,Equipment-purchase and rental,12.00,0.00,12.00
Children and Young Peoples Services,Head of Education and Skills,075021,Youth Employment Initiative,Supplies and Services,384199,Miscellaneous Expenses,12-Dec-2018,000008139070827,WWW.DURHAM.GOV.UK,9399,Other hired and contracted services,12.00,0.00,12.00
Adult and Health Services,Head of Adults,055302,Durham Pathways,Supplies and Services,324117,Provisions E324,12-Dec-2018,000008139070853,ASDA STORES LTD 4313,5411,Catering costs - provisions,3.50,0.00,3.50
Children and Young Peoples Services,Head of Childrens Social Care,085342,9 Cedar Drive Aycliffe,Supplies and Services,324117,Provisions E324,12-Dec-2018,000008139070913,TESCO STORES 2916,5411,Catering costs - provisions,64.40,0.00,64.40
Children and Young Peoples Services,Head of Childrens Social Care,085332,Middlestone Moor CU,Supplies and Services,324117,Provisions E324,12-Dec-2018,000008139070927,TESCO STORES 2371,5411,Catering costs - provisions,34.50,0.00,34.50
Regeneration and Local Services,Economic Development and Housing,030699,Business Growth and Innovation General,Supplies and Services,304999,Equipment and Materials,12-Dec-2018,000008139070935,MAILCHIMP MISC,5968,Misc equipment tools and materials,1.60,0.00,1.60
Regeneration and Local Services,Economic Development and Housing,030699,Business Growth and Innovation General,Supplies and Services,304999,Equipment and Materials,12-Dec-2018,000008139070943,MAILCHIMP MISC,5968,Misc equipment tools and materials,0.80,0.00,0.80
Children and Young Peoples Services,Head of Childrens Social Care,085333,Coxhoe Satelite Home,Supplies and Services,324117,Provisions E324,12-Dec-2018,000008139071027,CO-OP GROUP 310016,5411,Catering costs - provisions,11.80,0.00,11.80
Children and Young Peoples Services,Childrens Services Operational Support,052986,CYPS - Locality and Operational Support,Supplies and Services,312011,Newspapers books and periodicals E312,12-Dec-2018,000008139071063,HOME BARGAINS SPENNYMO,5251,Books-school library,12.90,0.00,12.90
Regeneration and Local Services,Direct Services,021242,Catering - County Hall,Supplies and Services,324117,Provisions E324,12-Dec-2018,000008139071083,JR HOLLAND FOODSERVICE,5422,Catering costs - provisions,253.87,0.00,253.87
Regeneration and Local Services,Direct Services,021242,Catering - County Hall,Supplies and Services,324117,Provisions E324,12-Dec-2018,000008139071097,JR HOLLAND FOODSERVICE,5422,Catering costs - provisions,31.51,0.00,31.51
Regeneration and Local Services,Direct Services,021242,Catering - County Hall,Supplies and Services,324117,Provisions E324,12-Dec-2018,000008139071101,JR HOLLAND FOODSERVICE,5422,Catering costs - provisions,5.20,0.00,5.20
Children and Young Peoples Services,Head of Childrens Social Care,085333,Coxhoe Satelite Home,Supplies and Services,304403,Equipment and Materials,12-Dec-2018,000008139071207,WEBUY.COM,5065,Other consumables,19.00,0.00,19.00
Children and Young Peoples Services,Head of Childrens Social Care,085333,Coxhoe Satelite Home,Supplies and Services,324117,Provisions E324,12-Dec-2018,000008139071213,CO-OP GROUP 310016,5411,Catering costs - provisions,5.40,0.00,5.40
Children and Young Peoples Services,Childrens Services Operational Support,052986,CYPS - Locality and Operational Support,Supplies and Services,312011,Newspapers books and periodicals E312,12-Dec-2018,000008139071265,HOME BARGAINS,5251,Books-school library,23.16,0.00,23.16
Children and Young Peoples Services,Childrens Services Operational Support,052986,CYPS - Locality and Operational Support,Supplies and Services,324117,Provisions E324,12-Dec-2018,000008139071267,ASDA STORES,5411,Catering costs - provisions,42.79,0.00,42.79
Children and Young Peoples Services,Childrens Services Operational Support,052986,CYPS - Locality and Operational Support,Supplies and Services,328041,Clothing uniforms and laundry E328,12-Dec-2018,000008139071273,B & M RETAIL,5310,Clothing uniforms and laundry,11.48,0.00,11.48
Children and Young Peoples Services,Head of Education and Skills,071732,Dean Bank Childcare,Supplies and Services,328041,Clothing uniforms and laundry E328,12-Dec-2018,000008139071295,B & M RETAIL,5310,Clothing uniforms and laundry,80.35,0.00,80.35
Children and Young Peoples Services,"Head of Early Help, Inclusion and Vulnerable Children",071445,Chester le Street One Point Hub,Supplies and Services,324117,Provisions E324,12-Dec-2018,000008139071389,BESTWAY WHOLESALE,5451,Catering costs - provisions,14.75,0.00,14.75
Children and Young Peoples Services,"Head of Early Help, Inclusion and Vulnerable Children",071445,Chester le Street One Point Hub,Supplies and Services,324117,Provisions E324,12-Dec-2018,000008139071393,BESTWAY WHOLESALE,5451,Catering costs - provisions,90.73,0.00,90.73
Children and Young Peoples Services,"Head of Early Help, Inclusion and Vulnerable Children",085955,Auckland,Supplies and Services,312011,Newspapers books and periodicals E312,12-Dec-2018,000008139071399,AMZN Mktp UK M21ZT9O14,5942,Books-school library,11.94,1.99,9.95
Children and Young Peoples Services,"Head of Early Help, Inclusion and Vulnerable Children",085952,Secure Education,Supplies and Services,304259,Equipment and Materials,12-Dec-2018,000008139071403,AMZN Mktp UK M21ZZ0O94,5942,Equipment-purchase and rental,64.00,10.67,53.33
Children and Young Peoples Services,"Head of Early Help, Inclusion and Vulnerable Children",085955,Auckland,Supplies and Services,312011,Newspapers books and periodicals E312,12-Dec-2018,000008139071405,AMZN Mktp UK M22HY9C14,5942,Books-school library,3.19,0.53,2.66
Children and Young Peoples Services,"Head of Early Help, Inclusion and Vulnerable Children",085955,Auckland,Supplies and Services,312011,Newspapers books and periodicals E312,12-Dec-2018,000008139071409,AMZN Mktp UK M22XI8C34,5942,Books-school library,10.00,1.67,8.33
Children and Young Peoples Services,"Head of Early Help, Inclusion and Vulnerable Children",085954,Walworth,Supplies and Services,328041,Clothing uniforms and laundry E328,12-Dec-2018,000008139071413,M and M Direct Ltd,5941,Clothing uniforms and laundry,332.83,0.00,332.83
Children and Young Peoples Services,"Head of Early Help, Inclusion and Vulnerable Children",085955,Auckland,Supplies and Services,312011,Newspapers books and periodicals E312,12-Dec-2018,000008139071417,AMZN Mktp UK M235L1F14,5942,Books-school library,7.95,1.33,6.62
Children and Young Peoples Services,"Head of Early Help, Inclusion and Vulnerable Children",085952,Secure Education,Supplies and Services,384999,Miscellaneous Expenses,12-Dec-2018,000008139071421,AMZN Mktp UK M27566F94,5942,Other expenses,8.99,0.00,8.99
Children and Young Peoples Services,"Head of Early Help, Inclusion and Vulnerable Children",085955,Auckland,Supplies and Services,312011,Newspapers books and periodicals E312,12-Dec-2018,000008139071425,AMZN Mktp UK M29V87O94,5942,Books-school library,12.82,2.14,10.68
Children and Young Peoples Services,"Head of Early Help, Inclusion and Vulnerable Children",085955,Auckland,Supplies and Services,304259,Equipment and Materials,12-Dec-2018,000008139071429,WWW.ARGOS.CO.UK,5310,Equipment-purchase and rental,33.94,5.66,28.28
Children and Young Peoples Services,"Head of Early Help, Inclusion and Vulnerable Children",085955,Auckland,Supplies and Services,324117,Provisions E324,12-Dec-2018,000008139071433,TESCO STORES 6329,5411,Catering costs - provisions,81.88,0.00,81.88
Children and Young Peoples Services,"Head of Early Help, Inclusion and Vulnerable Children",085955,Auckland,Supplies and Services,328041,Clothing uniforms and laundry E328,12-Dec-2018,000008139071437,VERY,5964,Clothing uniforms and laundry,379.98,0.00,379.98
Children and Young Peoples Services,"Head of Early Help, Inclusion and Vulnerable Children",085957,Secure Management,Supplies and Services,342033,Computers and Communications,12-Dec-2018,000008139071441,VERY,5964,Computer hardware,-7.99,0.00,-7.99
Regeneration and Local Services,Culture & Sport,054813,Gala Theatre - Technical,Supplies and Services,312011,Newspapers books and periodicals E312,12-Dec-2018,000008139071447,Amazon.co.uk M20U67O34,5969,Books-school library,30.97,0.00,30.97
Regeneration and Local Services,Culture & Sport,054813,Gala Theatre - Technical,Supplies and Services,312011,Newspapers books and periodicals E312,12-Dec-2018,000008139071453,Amazon.co.uk M29FN8O14,5969,Books-school library,23.54,0.00,23.54
Regeneration and Local Services,Direct Services,010367,C&G - South Grounds Maintenance,Supplies and Services,304221,Equipment and Materials,12-Dec-2018,000008139071467,HORNS GARDEN CENTR,5261,Direct materials,99.96,0.00,99.96
Regeneration and Local Services,Direct Services,010301,C&G - North Grounds Maintenance,Supplies and Services,328041,Clothing uniforms and laundry E328,12-Dec-2018,000008139071473,THOMAS OWEN & SONS /N/,5611,Clothing uniforms and laundry,55.68,9.28,46.40
Regeneration and Local Services,Culture & Sport,011060,Hardwick Park Catering,Supplies and Services,324117,Provisions E324,12-Dec-2018,000008139071481,JR HOLLAND FOODSERVICE,5422,Catering costs - provisions,65.03,0.00,65.03
Regeneration and Local Services,Culture & Sport,011060,Hardwick Park Catering,Supplies and Services,324117,Provisions E324,12-Dec-2018,000008139071487,JR HOLLAND FOODSERVICE,5422,Catering costs - provisions,36.73,0.00,36.73
Regeneration and Local Services,Culture & Sport,054815,Gala Theatre Stage School,Supplies and Services,324117,Provisions E324,12-Dec-2018,000008139071525,TESCO STORES 6029,5411,Catering costs - provisions,8.00,0.00,8.00
Regeneration and Local Services,Economic Development and Housing,030757,Interserve/Skills Support for the Unemployed,Employees,040149,Recruitment Instruction and Training,12-Dec-2018,000008139071537,WWW.CSKILLS.ORG,8249,Training-all costs,36.00,6.00,30.00
Regeneration and Local Services,Economic Development and Housing,030757,Interserve/Skills Support for the Unemployed,Employees,040149,Recruitment Instruction and Training,12-Dec-2018,000008139071543,WWW.CSKILLS.ORG,8249,Training-all costs,36.00,6.00,30.00
Regeneration and Local Services,Economic Development and Housing,030757,Interserve/Skills Support for the Unemployed,Employees,040149,Recruitment Instruction and Training,12-Dec-2018,000008139071549,WWW.CSKILLS.ORG,8249,Training-all costs,36.00,6.00,30.00
Regeneration and Local Services,Economic Development and Housing,030757,Interserve/Skills Support for the Unemployed,Employees,040149,Recruitment Instruction and Training,12-Dec-2018,000008139071553,WWW.CSKILLS.ORG,8249,Training-all costs,36.00,6.00,30.00
Children and Young Peoples Services,Head of Childrens Social Care,085331,New Lea Childrens Home,Supplies and Services,328041,Clothing uniforms and laundry E328,12-Dec-2018,000008139071563,www.asos.com,5651,Clothing uniforms and laundry,144.99,0.00,144.99
Regeneration and Local Services,Direct Services,010525,Catering - Green Lane,Supplies and Services,324117,Provisions E324,12-Dec-2018,000008139071581,JR HOLLAND FOODSERVICE,5422,Catering costs - provisions,55.46,0.00,55.46
Regeneration and Local Services,Direct Services,030691,"Catering - Durham Dales Centre			",Supplies and Services,324117,Provisions E324,12-Dec-2018,000008139071711,JR HOLLAND FOODSERVICE,5422,Catering costs - provisions,123.43,0.00,123.43
Adult and Health Services,Head of Adults,055643,Hawthorn House LD Respite Unit,Supplies and Services,324117,Provisions E324,12-Dec-2018,000008139071761,JR HOLLAND FOODSERVICE,5422,Catering costs - provisions,17.05,0.00,17.05
Children and Young Peoples Services,Head of Childrens Social Care,085380,Operations Manager Adoption & Fostering,Supplies and Services,324117,Provisions E324,12-Dec-2018,000008139071781,ASDA STORES,5411,Catering costs - provisions,20.74,0.00,20.74
Regeneration and Local Services,Direct Services,010301,C&G - North Grounds Maintenance,Supplies and Services,304221,Equipment and Materials,12-Dec-2018,000008139071793,HARELAW SAWMILL,5211,Direct materials,255.61,0.00,255.61
Children and Young Peoples Services,Head of Childrens Social Care,085342,9 Cedar Drive Aycliffe,Supplies and Services,312011,Newspapers books and periodicals E312,12-Dec-2018,000008139071807,AMZN Mktp UK M227V4OV4,5942,Books-school library,9.99,0.00,9.99
Children and Young Peoples Services,"Head of Early Help, Inclusion and Vulnerable Children",085957,Secure Management,Supplies and Services,384999,Miscellaneous Expenses,12-Dec-2018,000008139071813,AMZN Mktp UK M29YA8C14,5942,Other expenses,58.98,9.83,49.15
Children and Young Peoples Services,"Head of Early Help, Inclusion and Vulnerable Children",085956,Lumley,Supplies and Services,384999,Miscellaneous Expenses,12-Dec-2018,000008139071819,AMZN MKTP UK M220S0CJ4,5942,Other expenses,32.96,0.00,32.96
Children and Young Peoples Services,"Head of Early Help, Inclusion and Vulnerable Children",085956,Lumley,Supplies and Services,304649,Equipment and Materials,12-Dec-2018,000008139071825,AMZN Mktp UK M21MH4FO4,5942,Toys,7.28,1.21,6.07
Children and Young Peoples Services,"Head of Early Help, Inclusion and Vulnerable Children",085956,Lumley,Supplies and Services,384999,Miscellaneous Expenses,12-Dec-2018,000008139071827,AMZN Mktp UK M230W6OQ4,5942,Other expenses,39.95,0.00,39.95
Children and Young Peoples Services,"Head of Early Help, Inclusion and Vulnerable Children",085965,Barnard,Supplies and Services,384999,Miscellaneous Expenses,12-Dec-2018,000008139071831,WWW.ARGOS.CO.UK,5310,Other expenses,33.94,0.00,33.94
Children and Young Peoples Services,Head of Childrens Social Care,085372,Young People Services - North,Supplies and Services,332047,Printing Stationery and Gen Off Exps,12-Dec-2018,000008139071859,NCS TRUST,8641,Stationery,10.00,0.00,10.00
Regeneration and Local Services,Culture & Sport,054235,Bishop Auckland Town Hall Cafe,Supplies and Services,324117,Provisions E324,12-Dec-2018,000008139071875,JR HOLLAND FOODSERVICE,5422,Catering costs - provisions,68.94,0.00,68.94
Regeneration and Local Services,Transport and Contracted Services,031704,Care Connect - CCTV Countywide,Supplies and Services,384956,Miscellaneous Expenses,12-Dec-2018,000008139071895,SECURITY INDUSTRY,7393,Licences,220.00,0.00,220.00
Regeneration and Local Services,Culture & Sport,026591,Hardwick Park,Supplies and Services,304245,Equipment and Materials,12-Dec-2018,000008139071903,THE RANGE,5311,Materials,26.96,0.00,26.96
Regeneration and Local Services,Culture & Sport,011204,Events,Supplies and Services,348037,Subsistence E348,12-Dec-2018,000008139071909,THE LAMP ROOM,5812,Subsistence,15.30,0.00,15.30
Regeneration and Local Services,Direct Services,021324,Catering - Meadowfield,Supplies and Services,324117,Provisions E324,12-Dec-2018,000008139071917,JR HOLLAND FOODSERVICE,5422,Catering costs - provisions,71.26,0.00,71.26
Regeneration and Local Services,Direct Services,021324,Catering - Meadowfield,Supplies and Services,324117,Provisions E324,12-Dec-2018,000008139071921,JR HOLLAND FOODSERVICE,5422,Catering costs - provisions,14.19,0.00,14.19
Children and Young Peoples Services,Head of Childrens Social Care,085333,Coxhoe Satelite Home,Supplies and Services,324117,Provisions E324,12-Dec-2018,000008139071991,TESCO STORES 2916,5411,Catering costs - provisions,62.53,0.00,62.53
Regeneration and Local Services,Business Support,030053,Building Capacity Exchange,Transport,235057,Public Transport,12-Dec-2018,000008139072007,NALDO TICKET LOGPAY,4111,Staff travelling,3.72,0.00,3.72
Adult and Health Services,Head of Adults,055306,Spennymoor Pathways,Supplies and Services,324117,Provisions E324,12-Dec-2018,000008139072085,ASDA SUPERSTORE 4987,5411,Catering costs - provisions,6.00,0.00,6.00
Regeneration and Local Services,Direct Services,021235,Catering - Wharton Park,Supplies and Services,324117,Provisions E324,12-Dec-2018,000008139072089,JR HOLLAND FOODSERVICE,5422,Catering costs - provisions,13.36,0.00,13.36
Regeneration and Local Services,Spatial Policy Planning Assets & Environment,031071,Sustainability and Climate Change,Transport,235057,Public Transport,12-Dec-2018,000008139072111,S-BAHN BERLIN GMBH,4111,Staff travelling,8.16,0.00,8.16
Regeneration and Local Services,Spatial Policy Planning Assets & Environment,031071,Sustainability and Climate Change,Transport,235057,Public Transport,12-Dec-2018,000008139072117,S-BAHN BERLIN GMBH,4111,Staff travelling,8.16,0.00,8.16
Regeneration and Local Services,Spatial Policy Planning Assets & Environment,031071,Sustainability and Climate Change,Transport,235057,Public Transport,12-Dec-2018,000008139072119,S-BAHN BERLIN GMBH,4111,Staff travelling,8.16,0.00,8.16
Regeneration and Local Services,Economic Development and Housing,030771,Durham Advance Flexible Fund,Transport,235057,Public Transport,12-Dec-2018,000008139072205,GO NORTH EAST LIMITED,4131,Staff travelling,4.00,0.00,4.00
Regeneration and Local Services,Economic Development and Housing,030554,International Relations,Supplies and Services,384999,Miscellaneous Expenses,12-Dec-2018,000008139072219,AMZN Mktp UK M25JW0CC4,5942,Other expenses,14.99,0.00,14.99
Children and Young Peoples Services,Childrens Services Operational Support,052986,CYPS - Locality and Operational Support,Supplies and Services,308011,Furniture,12-Dec-2018,000008139072229,BURNSIDE CARPETS,5713,Furniture repair and replacement,390.00,0.00,390.00
Children and Young Peoples Services,Head of Childrens Social Care,085342,9 Cedar Drive Aycliffe,Supplies and Services,304221,Equipment and Materials,12-Dec-2018,000008144227219,WINDLESTONE NURSERY,5261,Direct materials,40.00,0.00,40.00
Children and Young Peoples Services,"Head of Early Help, Inclusion and Vulnerable Children",085956,Lumley,Supplies and Services,304649,Equipment and Materials,12-Dec-2018,000008144227629,SPORTSDIRECT.COM,5941,Toys,22.99,3.83,19.16
Children and Young Peoples Services,"Head of Early Help, Inclusion and Vulnerable Children",085954,Walworth,Supplies and Services,328041,Clothing uniforms and laundry E328,12-Dec-2018,000008151245737,SPORTSDIRECT.COM,5941,Clothing uniforms and laundry,87.99,14.67,73.32
Regeneration and Local Services,Direct Services,021242,Catering - County Hall,Supplies and Services,324117,Provisions E324,12-Dec-2018,000008167195781,FREEMAN CATERING BUTCH,5422,Catering costs - provisions,445.95,0.00,445.95
Regeneration and Local Services,Culture & Sport,054812,Gala Theatre - Catering etc,Supplies and Services,324117,Provisions E324,12-Dec-2018,000008167195799,FREEMAN CATERING BUTCH,5422,Catering costs - provisions,16.20,0.00,16.20
Regeneration and Local Services,Culture & Sport,011060,Hardwick Park Catering,Supplies and Services,324117,Provisions E324,12-Dec-2018,000008167196067,FREEMAN CATERING BUTCH,5422,Catering costs - provisions,72.02,0.00,72.02
Regeneration and Local Services,Direct Services,021234,Catering - Locomotion,Supplies and Services,324117,Provisions E324,12-Dec-2018,000008167196117,FREEMAN CATERING BUTCH,5422,Catering costs - provisions,102.78,0.00,102.78
Regeneration and Local Services,Direct Services,021234,Catering - Locomotion,Supplies and Services,324117,Provisions E324,12-Dec-2018,000008167196121,FREEMAN CATERING BUTCH,5422,Catering costs - provisions,58.49,0.00,58.49
Regeneration and Local Services,Direct Services,010525,Catering - Green Lane,Supplies and Services,324117,Provisions E324,12-Dec-2018,000008167196141,FREEMAN CATERING BUTCH,5422,Catering costs - provisions,51.58,0.00,51.58
Regeneration and Local Services,Direct Services,010525,Catering - Green Lane,Supplies and Services,324117,Provisions E324,12-Dec-2018,000008167196149,FREEMAN CATERING BUTCH,5422,Catering costs - provisions,85.74,0.00,85.74
Regeneration and Local Services,Direct Services,030691,"Catering - Durham Dales Centre			",Supplies and Services,324117,Provisions E324,12-Dec-2018,000008167196281,FREEMAN CATERING BUTCH,5422,Catering costs - provisions,91.56,0.00,91.56
Regeneration and Local Services,Direct Services,030691,"Catering - Durham Dales Centre			",Supplies and Services,324117,Provisions E324,12-Dec-2018,000008167196283,FREEMAN CATERING BUTCH,5422,Catering costs - provisions,49.91,0.00,49.91
Adult and Health Services,Head of Adults,055643,Hawthorn House LD Respite Unit,Supplies and Services,324117,Provisions E324,12-Dec-2018,000008167196317,FREEMAN CATERING BUTCH,5422,Catering costs - provisions,61.50,0.00,61.50
Regeneration and Local Services,Direct Services,021324,Catering - Meadowfield,Supplies and Services,324117,Provisions E324,12-Dec-2018,000008167196453,FREEMAN CATERING BUTCH,5422,Catering costs - provisions,67.69,0.00,67.69
Regeneration and Local Services,Direct Services,021324,Catering - Meadowfield,Supplies and Services,324117,Provisions E324,12-Dec-2018,000008167196457,FREEMAN CATERING BUTCH,5422,Catering costs - provisions,48.72,0.00,48.72
Regeneration and Local Services,Direct Services,021324,Catering - Meadowfield,Supplies and Services,324117,Provisions E324,12-Dec-2018,000008167196461,FREEMAN CATERING BUTCH,5422,Catering costs - provisions,52.76,0.00,52.76
Children and Young Peoples Services,"Head of Early Help, Inclusion and Vulnerable Children",088111,Easington & Peterlee 0-19 Community Family Hub,Supplies and Services,344033,Telephones,13-Dec-2018,000008139070791,AMZN Mktp UK M20C65FC4,5942,Telephones general-all costs,9.87,0.00,9.87
Regeneration and Local Services,Economic Development and Housing,030699,Business Growth and Innovation General,Supplies and Services,304999,Equipment and Materials,13-Dec-2018,000008139070945,MAILCHIMP MISC,5968,Misc equipment tools and materials,0.04,0.00,0.04
Regeneration and Local Services,Economic Development and Housing,030699,Business Growth and Innovation General,Supplies and Services,304999,Equipment and Materials,13-Dec-2018,000008139070947,MAILCHIMP MISC,5968,Misc equipment tools and materials,0.02,0.00,0.02
Regeneration and Local Services,Business Support,030053,Building Capacity Exchange,Transport,235057,Public Transport,13-Dec-2018,000008139072013,NALDO TICKET LOGPAY,4111,Staff travelling,0.10,0.00,0.10
Regeneration and Local Services,Spatial Policy Planning Assets & Environment,031071,Sustainability and Climate Change,Transport,235057,Public Transport,13-Dec-2018,000008139072121,S-BAHN BERLIN GMBH,4111,Staff travelling,0.22,0.00,0.22
Regeneration and Local Services,Spatial Policy Planning Assets & Environment,031071,Sustainability and Climate Change,Transport,235057,Public Transport,13-Dec-2018,000008139072125,S-BAHN BERLIN GMBH,4111,Staff travelling,0.22,0.00,0.22
Regeneration and Local Services,Spatial Policy Planning Assets & Environment,031071,Sustainability and Climate Change,Transport,235057,Public Transport,13-Dec-2018,000008139072127,S-BAHN BERLIN GMBH,4111,Staff travelling,0.22,0.00,0.22
Regeneration and Local Services,Economic Development and Housing,031617,Project Beta Sustainability Fund,Supplies and Services,324117,Provisions E324,13-Dec-2018,000008144227103,WHEATLEY HILL,5411,Catering costs - provisions,40.00,0.00,40.00
Regeneration and Local Services,Economic Development and Housing,031576,B& B - Temp Accom,Supplies and Services,304259,Equipment and Materials,13-Dec-2018,000008144227129,WWW.EASTDURHAMHOMES.CO,9399,Equipment-purchase and rental,61.63,0.00,61.63
Children and Young Peoples Services,"Head of Early Help, Inclusion and Vulnerable Children",088111,Easington & Peterlee 0-19 Community Family Hub,Supplies and Services,344033,Telephones,13-Dec-2018,000008144227133,AMZN Mktp UK M21JJ5FI4,5942,Telephones general-all costs,5.98,0.00,5.98
Children and Young Peoples Services,Head of Childrens Social Care,085100,Strategic Manager Families First Area South,Supplies and Services,384199,Miscellaneous Expenses,13-Dec-2018,000008144227137,SUNDERLAND CC,9399,Other hired and contracted services,10.00,0.00,10.00
Resources,Digital and Customer Services,065481,Technical Services,Supplies and Services,312009,Newspapers books and periodicals E312,13-Dec-2018,000008144227139,AMZN Mktp UK M29L834Y4,5942,Newspapers books and periodicals,136.25,0.00,136.25
Regeneration and Local Services,Technical Services,010979,Construction PPM Unit,Supplies and Services,304335,Equipment and Materials,13-Dec-2018,000008144227143,ISTORAGE LTD,5045,ICT supplies etc,196.80,32.80,164.00
Children and Young Peoples Services,Head of Childrens Social Care,085357,Bespoke Placements,Supplies and Services,352001,Conference Expenses,13-Dec-2018,000008144227157,HARRY JOHNSON,7011,Conferencesseminars fees etc,"1,915.20",319.20,1596.00
Regeneration and Local Services,Direct Services,010383,C&G - South Street Cleansing,Supplies and Services,312011,Newspapers books and periodicals E312,13-Dec-2018,000008144227179,Snowballs,5251,Books-school library,53.00,8.83,44.17
Regeneration and Local Services,Economic Development and Housing,030699,Business Growth and Innovation General,Supplies and Services,304999,Equipment and Materials,13-Dec-2018,000008144227237,LINKEDIN-349 7088976,5968,Misc equipment tools and materials,26.13,0.00,26.13
Regeneration and Local Services,Direct Services,021242,Catering - County Hall,Premises,145009,Cleaning and Domestic Supplies,13-Dec-2018,000008144227315,ALLIANCE DISPOSABLES L,2842,Other cleaning and domestic costs,38.02,6.34,31.68
Regeneration and Local Services,Direct Services,021242,Catering - County Hall,Premises,145009,Cleaning and Domestic Supplies,13-Dec-2018,000008144227321,ALLIANCE DISPOSABLES L,2842,Other cleaning and domestic costs,25.86,4.31,21.55
Regeneration and Local Services,Direct Services,021242,Catering - County Hall,Premises,145009,Cleaning and Domestic Supplies,13-Dec-2018,000008144227321 - 1,ALLIANCE DISPOSABLES L,2842,Other cleaning and domestic costs,0.03,,0.03
Regeneration and Local Services,Direct Services,021242,Catering - County Hall,Supplies and Services,324117,Provisions E324,13-Dec-2018,000008144227325,JR HOLLAND FOODSERVICE,5422,Catering costs - provisions,151.15,0.00,151.15
Regeneration and Local Services,Direct Services,021242,Catering - County Hall,Supplies and Services,324117,Provisions E324,13-Dec-2018,000008144227331,JR HOLLAND FOODSERVICE,5422,Catering costs - provisions,107.03,0.00,107.03
Resources,Digital and Customer Services,065461,Business Support,Supplies and Services,372009,Subscriptions E372,13-Dec-2018,000008144227359,NOMINET UK,7392,Subscriptions 372009,117.00,19.50,97.50
Resources,Digital and Customer Services,065461,Business Support,Supplies and Services,372009,Subscriptions E372,13-Dec-2018,000008144227365,NOMINET UK,7392,Subscriptions 372009,54.00,9.00,45.00
Regeneration and Local Services,Economic Development and Housing,030771,Durham Advance Flexible Fund,Transport,235057,Public Transport,13-Dec-2018,000008144227387,GO NORTH EAST LIMITED,4131,Staff travelling,13.40,0.00,13.40
Regeneration and Local Services,Culture & Sport,054812,Gala Theatre - Catering etc,Premises,145009,Cleaning and Domestic Supplies,13-Dec-2018,000008144227391,ALLIANCE DISPOSABLES L,2842,Other cleaning and domestic costs,101.81,16.97,84.84
Regeneration and Local Services,Culture & Sport,054812,Gala Theatre - Catering etc,Supplies and Services,324117,Provisions E324,13-Dec-2018,000008144227395,JR HOLLAND FOODSERVICE,5422,Catering costs - provisions,55.24,0.00,55.24
Regeneration and Local Services,Culture & Sport,054812,Gala Theatre - Catering etc,Supplies and Services,324117,Provisions E324,13-Dec-2018,000008144227401,JR HOLLAND FOODSERVICE,5422,Catering costs - provisions,1.50,0.00,1.50
Regeneration and Local Services,Culture & Sport,054812,Gala Theatre - Catering etc,Premises,145009,Cleaning and Domestic Supplies,13-Dec-2018,000008144227403,ALLIANCE DISPOSABLES L,2842,Other cleaning and domestic costs,-20.68,-3.44,-17.24
Children and Young Peoples Services,Head of Childrens Social Care,085334,West Rainton Satelite Home,Supplies and Services,324117,Provisions E324,13-Dec-2018,000008144227525,TESCO STORES 2371,5411,Catering costs - provisions,108.39,0.00,108.39
Children and Young Peoples Services,Head of Education and Skills,071903,EYDCP-Sustainability EDS,Supplies and Services,312011,Newspapers books and periodicals E312,13-Dec-2018,000008144227583,Amazon.co.uk M22L144C4,5969,Books-school library,49.24,0.00,49.24
Adult and Health Services,Head of Adults,055202,Support and Recovery,Supplies and Services,304259,Equipment and Materials,13-Dec-2018,000008144227593,AO RETAIL LIMITED,5722,Equipment-purchase and rental,294.00,0.00,294.00
Children and Young Peoples Services,"Head of Early Help, Inclusion and Vulnerable Children",085955,Auckland,Supplies and Services,312011,Newspapers books and periodicals E312,13-Dec-2018,000008144227611,AMZN Mktp UK M237V0444,5942,Books-school library,5.00,0.83,4.17
Children and Young Peoples Services,"Head of Early Help, Inclusion and Vulnerable Children",085965,Barnard,Supplies and Services,328041,Clothing uniforms and laundry E328,13-Dec-2018,000008144227615,FOOTASYLUM PLC,5691,Clothing uniforms and laundry,94.99,0.00,94.99
Children and Young Peoples Services,"Head of Early Help, Inclusion and Vulnerable Children",085952,Secure Education,Supplies and Services,384999,Miscellaneous Expenses,13-Dec-2018,000008144227619,Amazon.co.uk M23TM04L4,5969,Other expenses,6.99,1.17,5.82
Children and Young Peoples Services,"Head of Early Help, Inclusion and Vulnerable Children",085952,Secure Education,Supplies and Services,312011,Newspapers books and periodicals E312,13-Dec-2018,000008144227623,Amazon.co.uk M24ES74W4,5969,Books-school library,15.52,2.59,12.93
Children and Young Peoples Services,"Head of Early Help, Inclusion and Vulnerable Children",085954,Walworth,Supplies and Services,324117,Provisions E324,13-Dec-2018,000008144227631,TESCO STORES 6329,5411,Catering costs - provisions,78.60,0.00,78.60
Children and Young Peoples Services,"Head of Early Help, Inclusion and Vulnerable Children",085962,Aycliffe Secure - Durham,Supplies and Services,304403,Equipment and Materials,13-Dec-2018,000008144227637,WWW.HMV.COM,5735,Other consumables,87.92,0.00,87.92
Children and Young Peoples Services,"Head of Early Help, Inclusion and Vulnerable Children",085955,Auckland,Supplies and Services,328041,Clothing uniforms and laundry E328,13-Dec-2018,000008144227643,WWW.FOOTLOCKER.EU,5661,Clothing uniforms and laundry,144.99,24.17,120.82
Children and Young Peoples Services,"Head of Early Help, Inclusion and Vulnerable Children",085957,Secure Management,Supplies and Services,328041,Clothing uniforms and laundry E328,13-Dec-2018,000008144227647,FOOTASYLUM PLC,5691,Clothing uniforms and laundry,-47.49,0.00,-47.49
Regeneration and Local Services,Culture & Sport,054813,Gala Theatre - Technical,Supplies and Services,312011,Newspapers books and periodicals E312,13-Dec-2018,000008144227655,AMZN Mktp UK M29KX5FM4,5942,Books-school library,95.96,0.00,95.96
Regeneration and Local Services,Culture & Sport,054813,Gala Theatre - Technical,Supplies and Services,312011,Newspapers books and periodicals E312,13-Dec-2018,000008144227661,AMZN Mktp UK M21Z464S4,5942,Books-school library,313.67,0.00,313.67
Regeneration and Local Services,Culture & Sport,054813,Gala Theatre - Technical,Supplies and Services,312011,Newspapers books and periodicals E312,13-Dec-2018,000008144227665,AMZN Mktp UK M25S18434,5942,Books-school library,19.99,0.00,19.99
Regeneration and Local Services,Culture & Sport,054813,Gala Theatre - Technical,Supplies and Services,312011,Newspapers books and periodicals E312,13-Dec-2018,000008144227669,AMZN Mktp UK M26SJ3FN4,5942,Books-school library,14.95,0.00,14.95
Regeneration and Local Services,Culture & Sport,054813,Gala Theatre - Technical,Supplies and Services,312011,Newspapers books and periodicals E312,13-Dec-2018,000008144227673,AMZN Mktp UK M27AM74I4,5942,Books-school library,40.49,0.00,40.49
Children and Young Peoples Services,Childrens Services Operational Support,052986,CYPS - Locality and Operational Support,Supplies and Services,312011,Newspapers books and periodicals E312,13-Dec-2018,000008144227687,AMZN MKTP UK M22SF2FC4,5942,Books-school library,8.95,0.00,8.95
Children and Young Peoples Services,Childrens Services Operational Support,052986,CYPS - Locality and Operational Support,Supplies and Services,312011,Newspapers books and periodicals E312,13-Dec-2018,000008144227693,AMZN MKTP UK M226U4464,5942,Books-school library,11.48,0.00,11.48
Children and Young Peoples Services,Childrens Services Operational Support,052986,CYPS - Locality and Operational Support,Supplies and Services,304403,Equipment and Materials,13-Dec-2018,000008144227697,SP CLEVER EQUIPMENT,5734,Other consumables,169.90,0.00,169.90
Children and Young Peoples Services,Childrens Services Operational Support,052986,CYPS - Locality and Operational Support,Supplies and Services,312011,Newspapers books and periodicals E312,13-Dec-2018,000008144227701,AMZN Mktp UK M20H714F4,5942,Books-school library,37.73,0.00,37.73
Regeneration and Local Services,Culture & Sport,011060,Hardwick Park Catering,Premises,145009,Cleaning and Domestic Supplies,13-Dec-2018,000008144227707,ALLIANCE DISPOSABLES L,2842,Other cleaning and domestic costs,101.90,16.98,84.92
Regeneration and Local Services,Culture & Sport,011060,Hardwick Park Catering,Supplies and Services,324117,Provisions E324,13-Dec-2018,000008144227715,JR HOLLAND FOODSERVICE,5422,Catering costs - provisions,14.89,0.00,14.89
Regeneration and Local Services,Direct Services,021234,Catering - Locomotion,Supplies and Services,324117,Provisions E324,13-Dec-2018,000008144227741,JR HOLLAND FOODSERVICE,5422,Catering costs - provisions,71.53,0.00,71.53
Regeneration and Local Services,Economic Development and Housing,030714,Salvus House,Supplies and Services,324117,Provisions E324,13-Dec-2018,000008144227751,CO-OP GROUP FOOD,5411,Catering costs - provisions,2.20,0.00,2.20
